Service,Expense Subtype,Merchant Name,Expense Invoice Date,Total Expense
D1100G-ADULTS & HEALTH,Catering Food & Drink,ICELAND,12/10/2018,52
D1100G-ADULTS & HEALTH,Catering Food & Drink,TESCO STORE 2764,24/10/2018,118.36
D1100G-ADULTS & HEALTH,Education-Library Books,AMZN Mktp UK,25/10/2018,17.2
D1100G-ADULTS & HEALTH,Catering Food & Drink,CENTRAL HILL FOOD & WI,27/12/2018,8.47
D1100G-ADULTS & HEALTH,IT Software-Customised,SUBSTANCE CREATE LTD,20/12/2018,48
D1100G-ADULTS & HEALTH,Accommodation,JURYS INN MANCHESTER,14/11/2018,-125
D1100G-ADULTS & HEALTH,Legal Services-Other,HMCOURTS-SERVICE.G,06/11/2018,0
D1100G-ADULTS & HEALTH,Catering Food & Drink,WASABI BIRMINGHAM NEW,01/10/2018,18.05
D1100G-ADULTS & HEALTH,Legal Services-Other,HMCOURTS-SERVICE.G,15/11/2018,0
D1100G-ADULTS & HEALTH,Vehicle Hire,RENTALCARS.COM,06/11/2018,52.34
D1100G-ADULTS & HEALTH,Catering Food & Drink,TESCO STORES 5999,01/10/2018,68.55
D1100G-ADULTS & HEALTH,Catering Food & Drink,SAINSBURYS S/MKTS,15/10/2018,19.95
D1100G-ADULTS & HEALTH,Healthcare Services,STAFFS AND STOKE PSHIP,13/11/2018,238.64
D1100G-ADULTS & HEALTH,Legal Services-Other,HMCOURTS-SERVICE.G,20/11/2018,75
D1100G-ADULTS & HEALTH,Catering Food & Drink,TESCO STORE 2143,05/12/2018,180.14
D1100G-ADULTS & HEALTH,Facilities-Market Research,Amazon Prime,17/10/2018,-7.99
D1100G-ADULTS & HEALTH,Banquet & Catering,WWW.EVENTSUPPLIES.CO.U,02/11/2018,123.12
D1100G-ADULTS & HEALTH,Catering Food & Drink,ICELAND,28/12/2018,28.4
D1100G-ADULTS & HEALTH,Building-Others,TESCO STORE 2764,08/10/2018,26.6
D1100G-ADULTS & HEALTH,Education-Library Books,AMZN Mktp UK,23/10/2018,218.84
D1100G-ADULTS & HEALTH,Accommodation,JURYS INN MANCHESTER,13/11/2018,915
D1100G-ADULTS & HEALTH,Catering Food & Drink,TESCO STORES 5999,27/12/2018,62.66
D1100G-ADULTS & HEALTH,Public Transport,LUL TICKET MACHINE,10/10/2018,22.9
D1100G-ADULTS & HEALTH,Catering Food & Drink,TESCO STORE 2143,05/12/2018,57.2
D1100G-ADULTS & HEALTH,Catering Food & Drink,TESCO-STORES 6567,20/11/2018,19.85
D1100G-ADULTS & HEALTH,Catering Food & Drink,WWW.ICELAND.CO.UK,10/12/2018,182.25
D1100G-ADULTS & HEALTH,Consultancy-Other,WWW.PMGLTD.CO.UK,29/10/2018,474
D1100G-ADULTS & HEALTH,Catering Food & Drink,MN WEST NORWOOD HALAL,06/12/2018,58.13
D1100G-ADULTS & HEALTH,Financial Services,CASH ADVANCE FEE,07/12/2018,11.8
D1100G-ADULTS & HEALTH,Legal Services-Other,HMCOURTS-SERVICE.G,03/12/2018,75
D1100G-ADULTS & HEALTH,Conference Expenses,PUBLIC HEALTH ENGLAND,05/11/2018,48.00
D1100G-ADULTS & HEALTH,Catering Food & Drink,SAINSBURY'S,21/12/2018,13.5
D1100G-ADULTS & HEALTH,Legal Services-Other,HMCOURTS-SERVICE.G,30/10/2018,0
D1100G-ADULTS & HEALTH,Stationery,WWW.IDCARDCENTRE.CO.UK,20/11/2018,633.54
D1100G-ADULTS & HEALTH,Education-Library Books,AMZN Mktp UK,22/10/2018,23.98
D1100G-ADULTS & HEALTH,Catering Food & Drink,TESCO STORE 2143,06/12/2018,12.8
D1100G-ADULTS & HEALTH,Catering Food & Drink,ICELAND,19/10/2018,30
D1100G-ADULTS & HEALTH,Facilities-Printing,Amazon.co.uk,23/10/2018,98.69
D1100G-ADULTS & HEALTH,Taxi Fares,UBER TRIP XQVHY HELP.UBER,10/10/2018,2.82
D1100G-ADULTS & HEALTH,Catering Food & Drink,ICELAND,20/11/2018,18
D1100G-ADULTS & HEALTH,Financial Services,ROYAL BANK UK /,21/11/2018,400
D1100G-ADULTS & HEALTH,Catering Food & Drink,PAUL,12/10/2018,11.86
D1100G-ADULTS & HEALTH,Catering Food & Drink,ICELAND,17/12/2018,12.38
D1100G-ADULTS & HEALTH,Catering Food & Drink,WWW.ICELAND.CO.UK,01/10/2018,159
D1100G-ADULTS & HEALTH,Legal Services-Other,HMCOURTS-SERVICE.G,09/10/2018,0
D1100G-ADULTS & HEALTH,Catering Food & Drink,CENTRAL HILL FOOD & WI,19/12/2018,4.69
D1100G-ADULTS & HEALTH,Catering Food & Drink,WWW.ICELAND.CO.UK,16/11/2018,138.14
D1100G-ADULTS & HEALTH,Legal Services-Other,HMCOURTS-SERVICE.G,02/11/2018,0
D1100G-ADULTS & HEALTH,Consultancy-Business,EB *JAPANESE ORIGAMI T,28/11/2018,5
D1100G-ADULTS & HEALTH,Catering Food & Drink,SAINSBURYS S/MKTS,05/11/2018,24.1
D1100G-ADULTS & HEALTH,Financial Services,CASH ADVANCE FEE,09/10/2018,11.8
D1100G-ADULTS & HEALTH,Catering Food & Drink,ICELAND,14/12/2018,23.99
D1100G-ADULTS & HEALTH,Catering Food & Drink,WWW.ICELAND.CO.UK,24/10/2018,157.06
D1100G-ADULTS & HEALTH,Legal Services-Other,HMCOURTS-SERVICE.G,11/10/2018,0
D1100G-ADULTS & HEALTH,Catering Food & Drink,TESCO STORES 5999,05/11/2018,45.77
D1100G-ADULTS & HEALTH,Domestic Goods-Other,ARGOS RETAIL GROUP,03/12/2018,27.99
D1100G-ADULTS & HEALTH,Catering Food & Drink,ICELAND,08/10/2018,35.02
D1100G-ADULTS & HEALTH,Catering Food & Drink,TESCO STORES 5999,08/10/2018,48.9
D1100G-ADULTS & HEALTH,Catering Food & Drink,TESCO STORES 5999,21/11/2018,53.55
D1100G-ADULTS & HEALTH,Conference Expenses,EB *PUBLIC SPEAKING AN,05/11/2018,275
D1100G-ADULTS & HEALTH,Legal Services-Other,HMCOURTS-SERVICE.G,08/10/2018,0
D1100G-ADULTS & HEALTH,Legal Services-Other,HMCOURTS-SERVICE.G,29/10/2018,0
D1100G-ADULTS & HEALTH,Education-Library Books,AMZN MKTP UK,05/11/2018,8.99
D1100G-ADULTS & HEALTH,Taxi Fares,WWW.ADDISONLEE.COM,18/11/2018,16.25
D1100G-ADULTS & HEALTH,Catering Food & Drink,TESCO STORE 2764,19/12/2018,126.32
D1100G-ADULTS & HEALTH,Catering Food & Drink,ICELAND,19/12/2018,24.5
D1100G-ADULTS & HEALTH,Building-Others,AMZN Mktp UK,23/10/2018,15.82
D1100G-ADULTS & HEALTH,Legal Services-Other,HMCOURTS-SERVICE.G,26/11/2018,150
D1100G-ADULTS & HEALTH,Legal Services-Other,HMCOURTS-SERVICE.G,18/12/2018,150
D1100G-ADULTS & HEALTH,Catering Food & Drink,ICELAND,19/11/2018,43.5
D1100G-ADULTS & HEALTH,Taxi Fares,UBER TRIP ZJQFI HELP.UBER,21/10/2018,20.84
D1100G-ADULTS & HEALTH,Catering Food & Drink,WWW.ICELAND.CO.UK,15/10/2018,184.81
D1100G-ADULTS & HEALTH,Catering Food & Drink,ICELAND,28/11/2018,26.2
D1100G-ADULTS & HEALTH,Legal Services-Other,HMCOURTS-SERVICE.G,18/10/2018,0
D1100G-ADULTS & HEALTH,Education-Arts/Crafts,COWLING & WILCOX LTD,23/10/2018,18
D1100G-ADULTS & HEALTH,Consultancy-Business,EB *EMBROIDER A SHOPPI,27/11/2018,5
D1100G-ADULTS & HEALTH,Catering Food & Drink,TESCO STORES 5999,23/10/2018,66.19
D1100G-ADULTS & HEALTH,Accommodation,SEA BREEZE HOUSE,17/10/2018,65
D1100G-ADULTS & HEALTH,Catering Food & Drink,TESCO STORE 2143,04/12/2018,146.76
D1100G-ADULTS & HEALTH,Legal Services-Other,HMCOURTS-SERVICE.G,05/12/2018,150
D1100G-ADULTS & HEALTH,Catering Food & Drink,TESCO STORE 2445,20/11/2018,169.69
D1100G-ADULTS & HEALTH,Catering Food & Drink,SAINSBURYS S/MKTS,09/10/2018,29.25
D1100G-ADULTS & HEALTH,Catering Food & Drink,WWW.ICELAND.CO.UK,08/11/2018,151.2
D1100G-ADULTS & HEALTH,Travel/Subsistence,LOCO2  *LO-12CPPQ,13/12/2018,19.4
D1100G-ADULTS & HEALTH,Catering Food & Drink,ICELAND,26/11/2018,28.94
D1100G-ADULTS & HEALTH,Facilities-Printing,BM PAYMENTS SERVIC,04/12/2018,432
D1100G-ADULTS & HEALTH,Domestic Goods-Other,ARGOS DIRECT,30/11/2018,199.99
D1100G-ADULTS & HEALTH,Stationery,LONDON GRAPHIC CENTRE,06/11/2018,16.98
D1100G-ADULTS & HEALTH,Catering Food & Drink,SAINSBURY'S,24/10/2018,15.5
D1100G-ADULTS & HEALTH,Domestic Goods-Other,CURRYS SUPERSTORE,12/10/2018,208
D1100G-ADULTS & HEALTH,Legal Services-Other,HMCOURTS-SERVICE.G,06/12/2018,225
D1100G-ADULTS & HEALTH,Sports Equipment,YOGA STUDIO,25/10/2018,19.5
D1100G-ADULTS & HEALTH,Catering Food & Drink,LIDL UK LONDON,07/11/2018,26.72
D1100G-ADULTS & HEALTH,Catering Food & Drink,TESCO STORES 5999,14/11/2018,40.41
D1100G-ADULTS & HEALTH,Financial Services,CASH ADVANCE FEE,06/11/2018,11.8
D1100G-ADULTS & HEALTH,Financial Services,CASH ADVANCE FEE,13/11/2018,5.9
D1100G-ADULTS & HEALTH,Catering Food & Drink,TESCO STORES 5999,15/10/2018,48.95
D1100G-ADULTS & HEALTH,Catering Food & Drink,MN WEST NORWOOD HALAL,12/11/2018,31.41
D1100G-ADULTS & HEALTH,Catering Food & Drink,ICELAND,05/11/2018,71.4
D1100G-ADULTS & HEALTH,Travel/Subsistence,TRAINLINE,28/11/2018,-29.5
D1100G-ADULTS & HEALTH,Financial Services,ROYAL BANK UK /,05/11/2018,400
D1100G-ADULTS & HEALTH,Catering Food & Drink,WWW.ICELAND.CO.UK,03/12/2018,154.77
D1100G-ADULTS & HEALTH,Financial Services,CASH ADVANCE FEE,22/11/2018,11.8
D1100G-ADULTS & HEALTH,Catering Food & Drink,WWW.ICELAND.CO.UK,28/12/2018,93.54
D1100G-ADULTS & HEALTH,Legal Services-Other,HMCOURTS-SERVICE.G,10/10/2018,0
D1100G-ADULTS & HEALTH,Taxi Fares,UBER TRIP KN6EA HELP.UBER,10/10/2018,2.25
D1100G-ADULTS & HEALTH,Taxi Fares,UBER TRIP 747E5 HELP.UBER,10/10/2018,2.25
D1100G-ADULTS & HEALTH,Legal Services-Other,HMCOURTS-SERVICE.G,14/12/2018,75
D1100G-ADULTS & HEALTH,Catering Food & Drink,ASDA STORES LTD 5871,19/12/2018,21
D1100G-ADULTS & HEALTH,Catering Food & Drink,SAINSBURYS S/MKTS,04/12/2018,19.6
D1100G-ADULTS & HEALTH,Public Transport,HEATHROW EXPRESS,12/10/2018,22
D1100G-ADULTS & HEALTH,Catering Food & Drink,TESCO STORE 2764,20/11/2018,130.11
D1100G-ADULTS & HEALTH,Catering Food & Drink,TESCO STORES 5999,04/12/2018,58.37
D1100G-ADULTS & HEALTH,Domestic Goods-Other,ARGOS DIRECT,04/12/2018,244.98
D1100G-ADULTS & HEALTH,Legal Services-Other,HMCOURTS-SERVICE.G,27/11/2018,75
D1100G-ADULTS & HEALTH,Catering Food & Drink,TESCO STORES 5999,26/11/2018,37.17
D1100G-ADULTS & HEALTH,Accommodation,JURYS INN MANCHESTER,10/11/2018,1040
D1100G-ADULTS & HEALTH,Financial Services,PO VAUXHALL STREET 5179,12/11/2018,200
D1100G-ADULTS & HEALTH,Domestic Goods-Other,AMAZON.CO.UK,27/11/2018,10.18
D1100G-ADULTS & HEALTH,Catering Food & Drink,ICELAND,24/12/2018,19.5
D1100G-ADULTS & HEALTH,Financial Services,ROYAL BANK UK /,08/10/2018,400
D1100G-ADULTS & HEALTH,Education-Library Books,AMZN Mktp UK,19/10/2018,10.75
D1100G-ADULTS & HEALTH,Education-Library Books,AMZN MKTP UK,21/11/2018,3.69
D1100G-ADULTS & HEALTH,Organised Activities,DMN/TRINITYARMS,16/11/2018,50
D1100G-ADULTS & HEALTH,Taxi Fares,UBER TRIP ZSBTR HELP.UBER,14/10/2018,25.51
D1100G-ADULTS & HEALTH,Catering Food & Drink,MN WEST NORWOOD HALAL,08/10/2018,185.35
D1100G-ADULTS & HEALTH,Catering Food & Drink,TESCO STORE 2764,12/11/2018,105.71
D1100G-ADULTS & HEALTH,Taxi Fares,WWW.ADDISONLEE.COM,19/12/2018,0
D1100G-ADULTS & HEALTH,Financial Services,Sainsburys Bank CASH,14/12/2018,400
D1100G-ADULTS & HEALTH,Organised Activities,DMN/TRINITYARMS,13/12/2018,-50
D1100G-ADULTS & HEALTH,Travel/Subsistence,SE BRIXTON TO,14/12/2018,28.3
D1100G-ADULTS & HEALTH,Domestic Goods-Other,WWW.ARGOS.CO.UK,31/10/2018,242.92
D1100G-ADULTS & HEALTH,Catering Food & Drink,MARKS&SPENCER PLC SACA,18/12/2018,25.25
D1100G-ADULTS & HEALTH,Stationery,EUROFFICE.CO.UK,19/10/2018,173.24
D1100G-ADULTS & HEALTH,Catering Food & Drink,TESCO STORES 5999,17/12/2018,69.18
D1100G-ADULTS & HEALTH,Legal Services-Other,HMCOURTS-SERVICE.G,04/10/2018,0
D1100G-ADULTS & HEALTH,Catering Food & Drink,ICELAND,23/11/2018,9.47
D1100G-ADULTS & HEALTH,Catering Food & Drink,TESCO STORE 2764,06/12/2018,72.42
D1100G-ADULTS & HEALTH,Catering Food & Drink,SAINSBURYS,29/11/2018,49.85
D1100G-ADULTS & HEALTH,Catering Food & Drink,MN WEST NORWOOD HALAL,05/11/2018,55.47
D1100G-ADULTS & HEALTH,Catering Food & Drink,CO-OP GROUP FOOD,29/12/2018,174.1
D1100G-ADULTS & HEALTH,Legal Services-Other,HMCOURTS-SERVICE.G,31/12/2018,150
D1100G-ADULTS & HEALTH,Facilities-Printing,WWW.SOLOPRESS.COM,30/10/2018,54
D1100G-ADULTS & HEALTH,Catering Food & Drink,ICELAND,06/12/2018,55.05
D1100G-ADULTS & HEALTH,Consultancy-Other,TVLICENSING.CO.UK,27/11/2018,150.5
D1100G-ADULTS & HEALTH,Consultancy-Business,FORTRESS MASTER LOCKSMITH,12/10/2018,34.18
D1100G-ADULTS & HEALTH,Financial Services,ROYAL BANK UK /,06/12/2018,400
D1100G-ADULTS & HEALTH,Legal Services-Other,HMCOURTS-SERVICE.G,23/10/2018,0
D1100G-ADULTS & HEALTH,Domestic Goods-Other,AMZ*Orion Shopping,16/11/2018,-17.2
D1100G-ADULTS & HEALTH,IT Services,T101 Limited,27/11/2018,1526.18
D1100G-ADULTS & HEALTH,IT Software-Customised,WWW.EUKHOST.COM,15/11/2018,29.94
D1100G-ADULTS & HEALTH,Financial Services,CASH ADVANCE FEE,17/12/2018,11.8
D1100G-ADULTS & HEALTH,Catering Food & Drink,TESCO STORES 5999,29/10/2018,47.85
D1100G-ADULTS & HEALTH,Legal Services-Other,HMCOURTS-SERVICE.G,13/11/2018,0
D1100G-ADULTS & HEALTH,Catering Food & Drink,ICELAND,13/12/2018,70.06
D1100G-ADULTS & HEALTH,Catering Food & Drink,TESCO STORE 2445,02/10/2018,168.56
D1100G-ADULTS & HEALTH,Catering Food & Drink,TESCO STORE 2764,08/10/2018,194.22
D1100G-ADULTS & HEALTH,Legal Services-Other,HMCOURTS-SERVICE.G,10/12/2018,150
D1100G-ADULTS & HEALTH,Travel/Subsistence,TRAINLINE,27/11/2018,0
D1100G-ADULTS & HEALTH,Banquet & Catering,WWW.EVENTSUPPLIES.CO.U,17/12/2018,164.16
D1100G-ADULTS & HEALTH,Education-Library Books,AMZN Mktp UK,02/11/2018,61.49
D1100G-ADULTS & HEALTH,Conference Expenses,PAYPAL,04/10/2018,98.2
D1100G-ADULTS & HEALTH,Taxi Fares,UBER TRIP ADQZS HELP.UBER,12/10/2018,7.75
D1100G-ADULTS & HEALTH,Facilities-Printing,GRAFENIA PLC,16/11/2018,46.8
D1200G-RESIDENT SERVICES (GF),Building-Timber,SCREWFIX BRIXTON,30/10/2018,159.99
D1200G-RESIDENT SERVICES (GF),Facilities-Market Research,MAILCHIMP,16/11/2018,71.27
D1200G-RESIDENT SERVICES (GF),Education-Library Books,AMZN Mktp UK,13/10/2018,28.47
D1200G-RESIDENT SERVICES (GF),Taxi Fares,TILL 2ND DEC JULIET,10/12/2018,320
D1200G-RESIDENT SERVICES (GF),Travel/Subsistence,OYSTER AUTO-TOP UP,16/11/2018,20
D1200G-RESIDENT SERVICES (GF),Mail Services-Postage,THE POST OFFICE,14/11/2018,67
D1200G-RESIDENT SERVICES (GF),Taxi Fares,CIVIC TO SE6,14/11/2018,40
D1200G-RESIDENT SERVICES (GF),Travel/Subsistence,OYSTER AUTO-TOP UP,12/10/2018,40
D1200G-RESIDENT SERVICES (GF),Travel/Subsistence,OYSTER AUTO-TOP UP,07/10/2018,20
D1200G-RESIDENT SERVICES (GF),Education-Library Books,AMZN MKTP UK,18/11/2018,36
D1200G-RESIDENT SERVICES (GF),Education-Library Books,Amazon.co.uk,18/10/2018,9.18
D1200G-RESIDENT SERVICES (GF),Education-Library Books,WWW.PRISONS.ORG.UK,18/12/2018,19.99
D1200G-RESIDENT SERVICES (GF),Facilities-Printing,THE READING AGENCY,27/11/2018,114.49
D1200G-RESIDENT SERVICES (GF),Consultancy-Business,FORTRESS MASTER LOCKSMITH,10/12/2018,94.1
D1200G-RESIDENT SERVICES (GF),Domestic Goods-Other,ARGOS RETAIL GROUP,28/11/2018,24.99
D1200G-RESIDENT SERVICES (GF),Travel/Subsistence,OYSTER AUTO-TOP UP,15/12/2018,20
D1200G-RESIDENT SERVICES (GF),Travel/Subsistence,TRAINLINE,01/11/2018,109.73
D1200G-RESIDENT SERVICES (GF),Travel/Subsistence,OYSTER AUTO-TOP UP,15/11/2018,20
D1200G-RESIDENT SERVICES (GF),Travel/Subsistence,OYSTER AUTO-TOP UP,14/11/2018,100
D1200G-RESIDENT SERVICES (GF),Organised Activities,MY DONATE,01/10/2018,250
D1200G-RESIDENT SERVICES (GF),Facilities-Market Research,Amazon Prime,06/10/2018,7.99
D1200G-RESIDENT SERVICES (GF),Education-Library Books,AMZN Mktp UK,31/12/2018,10.8
D1200G-RESIDENT SERVICES (GF),Domestic Goods-Other,WWW.DISCOUNTDISPLAYS.C,01/12/2018,1586.97
D1200G-RESIDENT SERVICES (GF),Catering Equipment,AMZN MKTP UK,26/11/2018,8.82
D1200G-RESIDENT SERVICES (GF),Building-Timber,JEWSON 3302,30/10/2018,157.18
D1200G-RESIDENT SERVICES (GF),Accommodation,BRITISH A,19/12/2018,46.08
D1200G-RESIDENT SERVICES (GF),Domestic Goods-Other,ARGOS,20/12/2018,308.94
D1200G-RESIDENT SERVICES (GF),Domestic Goods-Other,WWW.ARGOS.CO.UK,30/11/2018,-279.98
D1200G-RESIDENT SERVICES (GF),Travel/Subsistence,OYSTER AUTO-TOP UP,25/11/2018,20
D1200G-RESIDENT SERVICES (GF),Travel/Subsistence,OYSTER AUTO-TOP UP,09/11/2018,40
D1200G-RESIDENT SERVICES (GF),Travel/Subsistence,OYSTER AUTO-TOP UP,08/11/2018,20
D1200G-RESIDENT SERVICES (GF),Travel/Subsistence,OYSTER ONLINE,08/11/2018,50
D1200G-RESIDENT SERVICES (GF),Travel/Subsistence,OYSTER AUTO-TOP UP,21/10/2018,20
D1200G-RESIDENT SERVICES (GF),Travel/Subsistence,OYSTER AUTO-TOP UP,18/10/2018,80
D1200G-RESIDENT SERVICES (GF),Financial Services,HM PASSPORT OFFICE,01/10/2018,58.5
D1200G-RESIDENT SERVICES (GF),Travel/Subsistence,OYSTER AUTO-TOP UP,25/10/2018,20
D1200G-RESIDENT SERVICES (GF),Education-Library Books,Amazon.co.uk,04/12/2018,14.98
D1200G-RESIDENT SERVICES (GF),Consultancy-Business,FORTRESS MASTER LOCKSMITH,22/11/2018,12.78
D1200G-RESIDENT SERVICES (GF),Travel/Subsistence,OYSTER AUTO-TOP UP,09/12/2018,40
D1200G-RESIDENT SERVICES (GF),Travel/Subsistence,TFL AUTOSETTLEMENT,02/10/2018,40
D1200G-RESIDENT SERVICES (GF),Financial Services,LONDON BRGH OF LAMBETH,08/11/2018,20
D1200G-RESIDENT SERVICES (GF),Catering Equipment,AMZN MKTP UK,08/12/2018,39.99
D1200G-RESIDENT SERVICES (GF),Education-Library Books,AMZN Mktp UK,19/12/2018,97.97
D1200G-RESIDENT SERVICES (GF),Cycles Purchase,HALFORDS 0716,26/11/2018,75
D1200G-RESIDENT SERVICES (GF),Financial Services,GRO HM PASSPORT OFFICE,28/11/2018,-9.25
D1200G-RESIDENT SERVICES (GF),Travel/Subsistence,OYSTER ONLINE,06/12/2018,20
D1200G-RESIDENT SERVICES (GF),Facilities-Market Research,Amazon Prime,06/12/2018,7.99
D1200G-RESIDENT SERVICES (GF),Travel/Subsistence,OYSTER AUTO-TOP UP,25/11/2018,40
D1200G-RESIDENT SERVICES (GF),Travel/Subsistence,OYSTER ONLINE,17/12/2018,60
D1200G-RESIDENT SERVICES (GF),Travel/Subsistence,OYSTER AUTO-TOP UP,12/12/2018,80
D1200G-RESIDENT SERVICES (GF),Travel/Subsistence,OYSTER AUTO-TOP UP,07/12/2018,20
D1200G-RESIDENT SERVICES (GF),Travel/Subsistence,OYSTER AUTO-TOP UP,12/10/2018,20
D1200G-RESIDENT SERVICES (GF),Education-Other,CARTRIDGEPEOPLE.COM,30/10/2018,260.7
D1200G-RESIDENT SERVICES (GF),Building-Others,AMZN MKTP UK,07/11/2018,24.3
D1200G-RESIDENT SERVICES (GF),Education-Other,WAYFAIR #2595871098,25/10/2018,241.96
D1200G-RESIDENT SERVICES (GF),Domestic Goods-Other,TIMPSON LTD,09/10/2018,0
D1200G-RESIDENT SERVICES (GF),Furniture-Domestic Furniture,WWW.IKEA.COM,11/10/2018,250
D1200G-RESIDENT SERVICES (GF),Utilities,EDF ENERGY-DOM,21/11/2018,2627.43
D1200G-RESIDENT SERVICES (GF),Travel/Subsistence,OYSTER AUTO-TOP UP,16/10/2018,20
D1200G-RESIDENT SERVICES (GF),Mail Services-Postage,THE POST OFFICE,11/10/2018,2.01
D1200G-RESIDENT SERVICES (GF),Travel/Subsistence,OYSTER AUTO-TOP UP,31/10/2018,20
D1200G-RESIDENT SERVICES (GF),Financial Services,NATIONWIDE /W0278Z,29/12/2018,170
D1200G-RESIDENT SERVICES (GF),Domestic Goods-Other,ARGOS LTD,05/10/2018,0
D1200G-RESIDENT SERVICES (GF),Travel/Subsistence,OYSTER AUTO-TOP UP,21/12/2018,60
D1200G-RESIDENT SERVICES (GF),Travel/Subsistence,AUTO TOP-UP ARREARS,27/11/2018,20
D1200G-RESIDENT SERVICES (GF),Travel/Subsistence,OYSTER AUTO-TOP UP,01/12/2018,20
D1200G-RESIDENT SERVICES (GF),Domestic Goods-Other,TK MAXX,03/12/2018,26.03
D1200G-RESIDENT SERVICES (GF),Catering Food & Drink,TESCO STORES-2143,03/12/2018,13.1
D1200G-RESIDENT SERVICES (GF),Travel/Subsistence,OYSTER AUTO-TOP UP,14/11/2018,80
D1200G-RESIDENT SERVICES (GF),Domestic Goods-Other,AMZN MKTP UK,07/11/2018,25.99
D1200G-RESIDENT SERVICES (GF),Catering Food & Drink,SAINSBURY'S,12/10/2018,41.2
D1200G-RESIDENT SERVICES (GF),Horticultural-Other,EVEREDGE,19/11/2018,156.9
D1200G-RESIDENT SERVICES (GF),Travel/Subsistence,OYSTER AUTO-TOP UP,14/12/2018,20
D1200G-RESIDENT SERVICES (GF),Travel/Subsistence,OYSTER AUTO-TOP UP,15/12/2018,40
D1200G-RESIDENT SERVICES (GF),Taxi Fares,WWW.ADDISONLEE.COM,14/12/2018,16.60
D1200G-RESIDENT SERVICES (GF),Facilities-Market Research,Amazon Prime,06/11/2018,7.99
D1200G-RESIDENT SERVICES (GF),Couriers,DHL,11/10/2018,87.78
D1200G-RESIDENT SERVICES (GF),Travel/Subsistence,OYSTER ONLINE,05/10/2018,60
D1200G-RESIDENT SERVICES (GF),Travel/Subsistence,OYSTER AUTO-TOP UP,07/10/2018,40
D1200G-RESIDENT SERVICES (GF),Education-Library Books,AMZN Mktp UK,05/10/2018,4.65
D1200G-RESIDENT SERVICES (GF),Education-Other,AMZN Mktp UK,09/12/2018,26.98
D1200G-RESIDENT SERVICES (GF),Furniture-Office Furniture,WWW.DIRECT2U.CO.UK,30/10/2018,397.8
D1200G-RESIDENT SERVICES (GF),Consultancy-Business,WWW.PLANNINGPORTAL.CO.,18/12/2018,618
D1200G-RESIDENT SERVICES (GF),Facilities-Printing,Amazon.co.uk,05/12/2018,10.49
D1200G-RESIDENT SERVICES (GF),Catering Food & Drink,TESCO STORE 2143,10/12/2018,5.91
D1200G-RESIDENT SERVICES (GF),Travel/Subsistence,OYSTER AUTO-TOP UP,24/11/2018,40
D1200G-RESIDENT SERVICES (GF),Travel/Subsistence,OYSTER ONLINE,03/12/2018,-20
D1200G-RESIDENT SERVICES (GF),Travel/Subsistence,OYSTER ONLINE,27/12/2018,30
D1200G-RESIDENT SERVICES (GF),Taxi Fares,JULIET 9TH DEC ENDING,12/12/2018,80
D1200G-RESIDENT SERVICES (GF),Domestic Goods-Other,ARGOS RETAIL GROUP,21/11/2018,82.97
D1200G-RESIDENT SERVICES (GF),Travel/Subsistence,TRAINLINE,14/11/2018,8.09
D1200G-RESIDENT SERVICES (GF),Travel/Subsistence,OYSTER AUTO-TOP UP,01/11/2018,20
D1200G-RESIDENT SERVICES (GF),Travel/Subsistence,OYSTER AUTO-TOP UP,24/10/2018,20
D1200G-RESIDENT SERVICES (GF),Catering Food & Drink,MARKS&SPENCER PLC SACA,05/10/2018,24.3
D1200G-RESIDENT SERVICES (GF),Travel/Subsistence,OYSTER AUTO-TOP UP,05/10/2018,40
D1200G-RESIDENT SERVICES (GF),Clothing-Children/Adults,IZ *Hustlebucks,11/10/2018,300
D1200G-RESIDENT SERVICES (GF),Consultancy-Business,CANVAS EVENTS LTD,01/11/2018,108
D1200G-RESIDENT SERVICES (GF),Travel/Subsistence,OYSTER AUTO-TOP UP,01/12/2018,80
D1200G-RESIDENT SERVICES (GF),Travel/Subsistence,LUL TICKET MACHINE,19/10/2018,170
D1200G-RESIDENT SERVICES (GF),Catering Food & Drink,AIRY FOOD AND WINE,01/10/2018,20.5
D1200G-RESIDENT SERVICES (GF),Education-Other,BRIXTON EASY SERVICE LTD,18/10/2018,7.99
D1200G-RESIDENT SERVICES (GF),Travel/Subsistence,ZIPCAR,15/11/2018,118.8
D1200G-RESIDENT SERVICES (GF),Domestic Goods-Other,CURRYS ONLINE,05/12/2018,349.99
D1200G-RESIDENT SERVICES (GF),Travel/Subsistence,OYSTER AUTO-TOP UP,05/12/2018,60
D1200G-RESIDENT SERVICES (GF),Education-Library Books,AMZN MKTP UK,29/11/2018,54.36
D1200G-RESIDENT SERVICES (GF),Travel/Subsistence,OYSTER ONLINE,06/11/2018,20
D1200G-RESIDENT SERVICES (GF),Travel/Subsistence,TFL AUTOSETTLEMENT,10/10/2018,20
D1200G-RESIDENT SERVICES (GF),Travel/Subsistence,OYSTER AUTO-TOP UP,01/11/2018,20
D1200G-RESIDENT SERVICES (GF),Accommodation,PREMIER INN 44536865,24/10/2018,111
D1200G-RESIDENT SERVICES (GF),Taxi Fares,CIVIC TW7 SE5CR7,05/11/2018,170
D1200G-RESIDENT SERVICES (GF),Education-Library Books,AMZN MKTP UK,31/12/2018,7.77
D1200G-RESIDENT SERVICES (GF),Catering Food & Drink,SAINSBURYS S/MKTS,31/12/2018,49.75
D1200G-RESIDENT SERVICES (GF),Stationery,BOARDSDIRECT.CO.UK,17/12/2018,184.05
D1200G-RESIDENT SERVICES (GF),Building-Timber,SCREWFIX BRIXTON,22/10/2018,57.86
D1200G-RESIDENT SERVICES (GF),Building-Tools,AMZN MKTP UK,04/12/2018,37.99
D1200G-RESIDENT SERVICES (GF),Taxi Fares,CIVIC TO WALWORTH POLI,05/12/2018,25
D1200G-RESIDENT SERVICES (GF),Domestic Goods-Other,ARGOS RETAIL GROUP,04/12/2018,519
D1200G-RESIDENT SERVICES (GF),Travel/Subsistence,OYSTER AUTO-TOP UP,15/12/2018,20
D1200G-RESIDENT SERVICES (GF),Education-Other,AMZN Mktp UK,10/10/2018,305.82
D1200G-RESIDENT SERVICES (GF),Education-Other,AMAZON.CO.UK,31/10/2018,197.5
D1200G-RESIDENT SERVICES (GF),Domestic Goods-Other,ARGOS RETAIL GROUP,18/12/2018,114.96
D1200G-RESIDENT SERVICES (GF),Travel/Subsistence,OYSTER AUTO-TOP UP,21/11/2018,20
D1200G-RESIDENT SERVICES (GF),Financial Services,LBL NOT PRESENT,19/11/2018,500.54
D1200G-RESIDENT SERVICES (GF),Travel/Subsistence,AUTO TOP-UP ARREARS,26/10/2018,40
D1200G-RESIDENT SERVICES (GF),Travel/Subsistence,OYSTER ONLINE,18/10/2018,15
D1200G-RESIDENT SERVICES (GF),Travel/Subsistence,OYSTER AUTO-TOP UP,10/11/2018,20
D1200G-RESIDENT SERVICES (GF),Building-Plumbing,PLUMB CENTER FFO,07/11/2018,-41.27
D1200G-RESIDENT SERVICES (GF),Travel/Subsistence,OYSTER AUTO-TOP UP,05/11/2018,40
D1200G-RESIDENT SERVICES (GF),Education-Library Books,AMZN Mktp UK,25/10/2018,199.98
D1200G-RESIDENT SERVICES (GF),Taxi Fares,SE5 TO E9 PLUS WAITING,21/12/2018,50
D1200G-RESIDENT SERVICES (GF),Travel/Subsistence,OYSTER AUTO-TOP UP,20/12/2018,20
D1200G-RESIDENT SERVICES (GF),Travel/Subsistence,OYSTER ONLINE,07/12/2018,30
D1200G-RESIDENT SERVICES (GF),Travel/Subsistence,OYSTER AUTO-TOP UP,08/12/2018,60
D1200G-RESIDENT SERVICES (GF),Travel/Subsistence,OYSTER AUTO-TOP UP,23/11/2018,20
D1200G-RESIDENT SERVICES (GF),Travel/Subsistence,OYSTER AUTO-TOP UP,21/11/2018,40
D1200G-RESIDENT SERVICES (GF),Travel/Subsistence,OYSTER AUTO-TOP UP,10/11/2018,20
D1200G-RESIDENT SERVICES (GF),Travel/Subsistence,OYSTER AUTO-TOP UP,20/10/2018,40
D1200G-RESIDENT SERVICES (GF),Taxi Fares,SE10 CIVIC W9,06/11/2018,150
D1200G-RESIDENT SERVICES (GF),Domestic Goods-Other,AMAZON.CO.UK,05/11/2018,60
D1200G-RESIDENT SERVICES (GF),Travel/Subsistence,OYSTER ONLINE,08/10/2018,40
D1200G-RESIDENT SERVICES (GF),Consultancy-Business,FORTRESS MASTER LOCKSMITH,30/11/2018,7
D1200G-RESIDENT SERVICES (GF),Building-Paint,SENATOR DEVELOPMEN,30/10/2018,19.99
D1200G-RESIDENT SERVICES (GF),Arts & Leisure Services,WWW.LECTERN-S.CO.UK,26/11/2018,372
D1200G-RESIDENT SERVICES (GF),Catering Food & Drink,TESCO STORE 2143,30/10/2018,22.47
D1200G-RESIDENT SERVICES (GF),Stationery,AMZN MKTP UK,27/11/2018,33.72
D1200G-RESIDENT SERVICES (GF),Travel/Subsistence,OYSTER AUTO-TOP UP,19/12/2018,60
D1200G-RESIDENT SERVICES (GF),Travel/Subsistence,EUROSTAR INTERNET,27/11/2018,242
D1200G-RESIDENT SERVICES (GF),Domestic Goods-Other,WWW.ARGOS.CO.UK,27/11/2018,209.98
D1200G-RESIDENT SERVICES (GF),Travel/Subsistence,OYSTER AUTO-TOP UP,08/12/2018,60
D1200G-RESIDENT SERVICES (GF),Travel/Subsistence,OYSTER AUTO-TOP UP,01/12/2018,40
D1200G-RESIDENT SERVICES (GF),Travel/Subsistence,OYSTER AUTO-TOP UP,14/12/2018,20
D1200G-RESIDENT SERVICES (GF),Travel/Subsistence,LUL TICKET MACHINE,21/11/2018,60
D1200G-RESIDENT SERVICES (GF),Mail Services-Postage,THE POST OFFICE,13/11/2018,18.8
D1200G-RESIDENT SERVICES (GF),Travel/Subsistence,OYSTER ONLINE,05/11/2018,60
D1200G-RESIDENT SERVICES (GF),Domestic Goods-Other,ARGOS RETAIL GROUP,26/10/2018,59.99
D1200G-RESIDENT SERVICES (GF),Taxi Fares,KINGS TO CIVIC,02/10/2018,14
D1200G-RESIDENT SERVICES (GF),Taxi Fares,CR0 TO SW2 RETURN,01/10/2018,130
D1200G-RESIDENT SERVICES (GF),Travel/Subsistence,OYSTER ONLINE,13/11/2018,30
D1200G-RESIDENT SERVICES (GF),Travel/Subsistence,OYSTER ONLINE,25/10/2018,20
D1200G-RESIDENT SERVICES (GF),Education-Arts/Crafts,AMZN Mktp UK,08/12/2018,8.49
D1200G-RESIDENT SERVICES (GF),Education-Library Books,AMZN MKTP UK,02/12/2018,45.04
D1200G-RESIDENT SERVICES (GF),Catering Equipment,AMZN MKTP UK,26/11/2018,25.93
D1200G-RESIDENT SERVICES (GF),Catering Food & Drink,TESCO STORES-2143,10/12/2018,18.75
D1200G-RESIDENT SERVICES (GF),Accommodation,AIRBNB * HME3CFEDN2,28/11/2018,713.66
D1200G-RESIDENT SERVICES (GF),Travel/Subsistence,OYSTER ONLINE,29/11/2018,30
D1200G-RESIDENT SERVICES (GF),Taxi Fares,SW16 TO SW2 ONE WAY,21/11/2018,25
D1200G-RESIDENT SERVICES (GF),Travel/Subsistence,OYSTER ONLINE,16/11/2018,-20
D1200G-RESIDENT SERVICES (GF),Travel/Subsistence,OYSTER ONLINE,16/11/2018,10
D1200G-RESIDENT SERVICES (GF),Travel/Subsistence,OYSTER AUTO-TOP UP,15/11/2018,60
D1200G-RESIDENT SERVICES (GF),Telecommunications,O2 UK PAYMENT,15/10/2018,"3,474.29"
D1200G-RESIDENT SERVICES (GF),Travel/Subsistence,OYSTER AUTO-TOP UP,17/10/2018,20
D1200G-RESIDENT SERVICES (GF),Travel/Subsistence,LUL TICKET MACHINE,02/11/2018,140
D1200G-RESIDENT SERVICES (GF),Travel/Subsistence,OYSTER AUTO-TOP UP,31/10/2018,40
D1200G-RESIDENT SERVICES (GF),Education-Other,IKEA LIMITED,04/11/2018,180
D1200G-RESIDENT SERVICES (GF),Healthcare Services,WWW.CIPFA.ORG.UK/PFMCO,21/11/2018,780
D1200G-RESIDENT SERVICES (GF),Education-Library Books,AMZN MKTP UK AMAZON.CO.UK,02/10/2018,-326.19
D1200G-RESIDENT SERVICES (GF),Building-Timber,SCREWFIX BRIXTON,19/12/2018,84.08
D1200G-RESIDENT SERVICES (GF),Building-Timber,WWW.SELCOBW.COM,17/12/2018,59.52
D1200G-RESIDENT SERVICES (GF),Travel/Subsistence,OYSTER ONLINE,20/12/2018,-30
D1200G-RESIDENT SERVICES (GF),Taxi Fares,ABEX6F810 LONDON NET C,15/11/2018,52.7
D1200G-RESIDENT SERVICES (GF),Catering Food & Drink,SAN MARINO,10/10/2018,303
D1200G-RESIDENT SERVICES (GF),Education-Library Books,AMZN MKTP UK,08/12/2018,9.61
D1200G-RESIDENT SERVICES (GF),Financial Services,SAINSBURYS           CASH,25/10/2018,150
D1200G-RESIDENT SERVICES (GF),Education-Other,AMZN Mktp UK,19/12/2018,13.9
D1200G-RESIDENT SERVICES (GF),Books/Publications/Resources,WHICH,08/10/2018,10.75
D1200G-RESIDENT SERVICES (GF),Travel/Subsistence,TRAINLINE,19/11/2018,34.43
D1200G-RESIDENT SERVICES (GF),Building-General,WWW.ZORO.CO.UK,12/12/2018,180.57
D1200G-RESIDENT SERVICES (GF),Domestic Goods-Other,DIMENSIONS DISPLAYS,08/11/2018,569.98
D1200G-RESIDENT SERVICES (GF),Consultancy-Business,ARMOUR LOCK AND SAFE,05/10/2018,51
D1200G-RESIDENT SERVICES (GF),Taxi Fares,SE2 TOSW2 RETURN,21/12/2018,160
D1200G-RESIDENT SERVICES (GF),Travel/Subsistence,OYSTER AUTO-TOP UP,21/12/2018,40
D1200G-RESIDENT SERVICES (GF),Travel/Subsistence,TRAINLINE,12/11/2018,70.5
D1200G-RESIDENT SERVICES (GF),Travel/Subsistence,OYSTER ONLINE,09/10/2018,20
D1200G-RESIDENT SERVICES (GF),Travel/Subsistence,TRAINLINE,03/10/2018,136.5
D1200G-RESIDENT SERVICES (GF),Catering Food & Drink,SAINSBURYS S/MKTS,04/10/2018,215
D1200G-RESIDENT SERVICES (GF),Education-Library Books,AMZN MKTP UK,27/11/2018,29.99
D1200G-RESIDENT SERVICES (GF),Travel/Subsistence,OYSTER AUTO-TOP UP,23/12/2018,20
D1200G-RESIDENT SERVICES (GF),Travel/Subsistence,OYSTER AUTO-TOP UP,23/12/2018,80
D1200G-RESIDENT SERVICES (GF),Travel/Subsistence,OYSTER ONLINE,07/12/2018,20
D1200G-RESIDENT SERVICES (GF),Facilities-Market Research,WAYFAIR #2270810694,02/12/2018,291.98
D1200G-RESIDENT SERVICES (GF),Travel/Subsistence,OYSTER AUTO-TOP UP,22/11/2018,40
D1200G-RESIDENT SERVICES (GF),Travel/Subsistence,TRAINLINE,10/10/2018,25.48
D1200G-RESIDENT SERVICES (GF),Travel/Subsistence,OYSTER AUTO-TOP UP,02/11/2018,40
D1200G-RESIDENT SERVICES (GF),Travel/Subsistence,OYSTER AUTO-TOP UP,03/10/2018,20
D1200G-RESIDENT SERVICES (GF),Travel/Subsistence,TFL ROAD CHARGE,07/11/2018,11.5
D1200G-RESIDENT SERVICES (GF),Travel/Subsistence,OYSTER AUTO-TOP UP,07/10/2018,20
D1200G-RESIDENT SERVICES (GF),Catering Food & Drink,SAINSBURYS S/MKTS,31/10/2018,12.65
D1200G-RESIDENT SERVICES (GF),Building-Timber,SCREWFIX DIRECT,09/10/2018,49.99
D1200G-RESIDENT SERVICES (GF),Cleaning-Laundry Service,S.I.S.T DRY CLEANERS L,14/11/2018,50
D1200G-RESIDENT SERVICES (GF),Catering Equipment,AMZN MKTP UK,26/11/2018,23.92
D1200G-RESIDENT SERVICES (GF),Travel/Subsistence,AUTO TOP-UP ARREARS,05/12/2018,20
D1200G-RESIDENT SERVICES (GF),Mail Services-Postage,THE POST OFFICE,21/12/2018,20.62
D1200G-RESIDENT SERVICES (GF),Travel/Subsistence,OYSTER AUTO-TOP UP,31/12/2018,20
D1200G-RESIDENT SERVICES (GF),Travel/Subsistence,LUL TICKET MACHINE,06/11/2018,46.2
D1200G-RESIDENT SERVICES (GF),Travel/Subsistence,OYSTER AUTO-TOP UP,04/10/2018,40
D1200G-RESIDENT SERVICES (GF),Travel/Subsistence,OYSTER AUTO-TOP UP,28/10/2018,20
D1200G-RESIDENT SERVICES (GF),Travel/Subsistence,OYSTER AUTO-TOP UP,08/11/2018,60
D1200G-RESIDENT SERVICES (GF),Education-Other,IKEA LIMITED,06/11/2018,388.55
D1200G-RESIDENT SERVICES (GF),Travel/Subsistence,TRAINLINE,18/12/2018,56.75
D1200G-RESIDENT SERVICES (GF),Travel/Subsistence,LUL TICKET MACHINE,19/12/2018,10
D1200G-RESIDENT SERVICES (GF),Travel/Subsistence,OYSTER AUTO-TOP UP,10/12/2018,20
D1200G-RESIDENT SERVICES (GF),Domestic Goods-Other,CURRYS ONLINE,28/11/2018,219
D1200G-RESIDENT SERVICES (GF),Domestic Goods-Other,WWW.COOPELECTRICAL,28/11/2018,294.99
D1200G-RESIDENT SERVICES (GF),Cemetery & Crematorium,DIGNITY FUNERALS,15/10/2018,872
D1200G-RESIDENT SERVICES (GF),Accommodation,AIRBNB * HM33KDNCB4,30/10/2018,519.66
D1200G-RESIDENT SERVICES (GF),Education-Library Books,AMZN MKTP UK,06/12/2018,12.57
D1200G-RESIDENT SERVICES (GF),Building-Timber,SELCO TRADING CTR,25/10/2018,434.58
D1200G-RESIDENT SERVICES (GF),Domestic Goods-Other,AMAZON.CO.UK,31/10/2018,11.21
D1200G-RESIDENT SERVICES (GF),Furniture-Domestic Furniture,CRUSHED VELVET FURNITU,19/12/2018,275
D1200G-RESIDENT SERVICES (GF),Travel/Subsistence,TRAINLINE,26/11/2018,46.38
D1200G-RESIDENT SERVICES (GF),Travel/Subsistence,OYSTER AUTO-TOP UP,26/10/2018,80
D1200G-RESIDENT SERVICES (GF),Consultancy-Business,AWEBER COMMUNICATIONS,15/11/2018,143.37
D1200G-RESIDENT SERVICES (GF),Taxi Fares,CIVIC SE26 CR7 BR3,29/10/2018,90
D1200G-RESIDENT SERVICES (GF),Travel/Subsistence,OYSTER ONLINE,12/10/2018,40
D1200G-RESIDENT SERVICES (GF),Travel/Subsistence,LUL TICKET MACHINE,09/10/2018,50
D1200G-RESIDENT SERVICES (GF),Education-Library Books,AMZN Mktp UK,15/10/2018,17.67
D1200G-RESIDENT SERVICES (GF),Education-Library Books,AMAZON.CO.UK AMAZON.CO.UK,17/10/2018,15.41
D1200G-RESIDENT SERVICES (GF),Education-Library Books,AMAZON.CO.UK,13/11/2018,10.48
D1200G-RESIDENT SERVICES (GF),Building-Timber,SCREWFIX DIRECT,18/10/2018,39.99
D1200G-RESIDENT SERVICES (GF),Travel/Subsistence,OYSTER AUTO-TOP UP,22/11/2018,120
D1200G-RESIDENT SERVICES (GF),Domestic Goods-Other,WWW.ARGOS.CO.UK,13/12/2018,76.94
D1200G-RESIDENT SERVICES (GF),Travel/Subsistence,OYSTER AUTO-TOP UP,13/10/2018,60
D1200G-RESIDENT SERVICES (GF),Travel/Subsistence,OYSTER ONLINE,03/10/2018,25
D1200G-RESIDENT SERVICES (GF),Financial Services-Grants,CAMDENMEDIA,08/10/2018,50.00
D1200G-RESIDENT SERVICES (GF),Travel/Subsistence,TRAINLINE,31/10/2018,49.53
D1200G-RESIDENT SERVICES (GF),Travel/Subsistence,OYSTER AUTO-TOP UP,07/10/2018,40
D1200G-RESIDENT SERVICES (GF),Catering Food & Drink,TESCO STORES 5470,12/12/2018,54
D1200G-RESIDENT SERVICES (GF),Furniture-Domestic Furniture,WWW.IKEA.COM,16/11/2018,520
D1200G-RESIDENT SERVICES (GF),Consultancy-Business,CANVAS EVENTS LTD,01/12/2018,108
D1200G-RESIDENT SERVICES (GF),Accommodation,EASYJET,20/12/2018,31.16
D1200G-RESIDENT SERVICES (GF),Taxi Fares,JULIET TILL SUN04TH,06/11/2018,240
D1200G-RESIDENT SERVICES (GF),Travel/Subsistence,OYSTER AUTO-TOP UP,09/11/2018,20
D1200G-RESIDENT SERVICES (GF),Books/Publications/Resources,HERNE HILL LONDIS,06/12/2018,114.75
D1200G-RESIDENT SERVICES (GF),Building-Tools,ARGOS,26/10/2018,16.99
D1200G-RESIDENT SERVICES (GF),Legal Services-Other,HMCOURTS-SERVICE.G,31/10/2018,885.00
D1200G-RESIDENT SERVICES (GF),Travel/Subsistence,OYSTER AUTO-TOP UP,10/12/2018,40
D1200G-RESIDENT SERVICES (GF),Travel/Subsistence,OYSTER AUTO-TOP UP,19/12/2018,80
D1200G-RESIDENT SERVICES (GF),Financial Services,HM PASSPORT OFFICE,28/12/2018,85
D1200G-RESIDENT SERVICES (GF),Travel/Subsistence,OYSTER AUTO-TOP UP,23/11/2018,80
D1200G-RESIDENT SERVICES (GF),Accommodation,FLEXISTAY LTD,13/12/2018,605
D1200G-RESIDENT SERVICES (GF),Travel/Subsistence,OYSTER AUTO-TOP UP,15/11/2018,40
D1200G-RESIDENT SERVICES (GF),Travel/Subsistence,TRAINLINE,20/11/2018,-46.5
D1200G-RESIDENT SERVICES (GF),Travel/Subsistence,OYSTER AUTO-TOP UP,09/11/2018,80
D1200G-RESIDENT SERVICES (GF),Domestic Goods-Other,WWW.ARGOS.CO.UK,06/11/2018,70.95
D1200G-RESIDENT SERVICES (GF),Travel/Subsistence,OYSTER AUTO-TOP UP,16/11/2018,20
D1200G-RESIDENT SERVICES (GF),Travel/Subsistence,OYSTER AUTO-TOP UP,14/10/2018,20
D1200G-RESIDENT SERVICES (GF),Catering Food & Drink,APNI RASIO,07/11/2018,369
D1200G-RESIDENT SERVICES (GF),Travel/Subsistence,OYSTER ONLINE,09/11/2018,30
D1200G-RESIDENT SERVICES (GF),Education-Other,AMZN Mktp UK,11/10/2018,33.98
D1200G-RESIDENT SERVICES (GF),Education-Library Books,AMZN Mktp UK,05/12/2018,92.98
D1200G-RESIDENT SERVICES (GF),Travel/Subsistence,OYSTER AUTO-TOP UP,23/12/2018,60
D1200G-RESIDENT SERVICES (GF),Travel/Subsistence,OYSTER AUTO-TOP UP,29/12/2018,20
D1200G-RESIDENT SERVICES (GF),Domestic Goods-Other,ARGOS RETAIL GROUP,09/11/2018,73.99
D1200G-RESIDENT SERVICES (GF),Professional & Advisory Services,UNITE STUDENTS,19/10/2018,1941.43
D1200G-RESIDENT SERVICES (GF),Travel/Subsistence,OYSTER AUTO-TOP UP,15/11/2018,20
D1200G-RESIDENT SERVICES (GF),Travel/Subsistence,OYSTER ONLINE,14/11/2018,-30
D1200G-RESIDENT SERVICES (GF),Travel/Subsistence,OYSTER AUTO-TOP UP,18/10/2018,60
D1200G-RESIDENT SERVICES (GF),Taxi Fares,WWW.MINICABS.CO.UK,10/10/2018,-16.25
D1200G-RESIDENT SERVICES (GF),Education-Other,AMZN MKTP UK,21/11/2018,149.97
D1200G-RESIDENT SERVICES (GF),Facilities-Printing,Amazon.co.uk,24/10/2018,15.64
D1200G-RESIDENT SERVICES (GF),Travel/Subsistence,OYSTER ONLINE,06/12/2018,30
D1200G-RESIDENT SERVICES (GF),Accommodation,HOL INN BIRM CITY,14/11/2018,347.26
D1200G-RESIDENT SERVICES (GF),Travel/Subsistence,OYSTER AUTO-TOP UP,29/10/2018,20
D1200G-RESIDENT SERVICES (GF),Travel/Subsistence,TRAINLINE,08/10/2018,-34.1
D1200G-RESIDENT SERVICES (GF),Catering Food & Drink,MARKS & SPENCER PLC SA,30/10/2018,4.5
D1200G-RESIDENT SERVICES (GF),Travel/Subsistence,OYSTER ONLINE,09/11/2018,5
D1200G-RESIDENT SERVICES (GF),Mail Services-Postage,THE POST OFFICE,22/10/2018,80
D1200G-RESIDENT SERVICES (GF),Building-Timber,SELCO TRADING CTR,20/11/2018,197.41
D1200G-RESIDENT SERVICES (GF),Travel/Subsistence,TRAINLINE,28/12/2018,79.99
D1200G-RESIDENT SERVICES (GF),Travel/Subsistence,OYSTER AUTO-TOP UP,13/12/2018,20
D1200G-RESIDENT SERVICES (GF),Travel/Subsistence,OYSTER AUTO-TOP UP,15/12/2018,40
D1200G-RESIDENT SERVICES (GF),Travel/Subsistence,OYSTER ONLINE,15/10/2018,60
D1200G-RESIDENT SERVICES (GF),Travel/Subsistence,OYSTER ONLINE,11/10/2018,30
D1200G-RESIDENT SERVICES (GF),Travel/Subsistence,OYSTER AUTO-TOP UP,10/10/2018,40
D1200G-RESIDENT SERVICES (GF),Travel/Subsistence,OYSTER AUTO-TOP UP,31/10/2018,40
D1200G-RESIDENT SERVICES (GF),Domestic Goods-Other,POUNDLAND,24/10/2018,11
D1200G-RESIDENT SERVICES (GF),Furniture-Domestic Furniture,WAYFAIR #2579034938,11/10/2018,671.25
D1200G-RESIDENT SERVICES (GF),Accommodation,HAMPTON BY HILTON,19/12/2018,65.45
D1200G-RESIDENT SERVICES (GF),Travel/Subsistence,OYSTER AUTO-TOP UP,10/12/2018,20
D1200G-RESIDENT SERVICES (GF),Furniture-Domestic Furniture,WWW.IKEA.COM,13/11/2018,295
D1200G-RESIDENT SERVICES (GF),Mail Services-Postage,THE POST OFFICE,22/10/2018,185
D1200G-RESIDENT SERVICES (GF),Travel/Subsistence,TRAINLINE,16/10/2018,103.23
D1200G-RESIDENT SERVICES (GF),Building-Timber,ACRE LANE BUILDERS,14/11/2018,40
D1200G-RESIDENT SERVICES (GF),Financial Services,HM PASSPORT OFFICE,30/11/2018,85
D1200G-RESIDENT SERVICES (GF),Catering Food & Drink,TESCO STORE 2764,10/10/2018,223.7
D1200G-RESIDENT SERVICES (GF),Catering Food & Drink,MARKS&SPENCER PLC SACA,11/10/2018,42.35
D1200G-RESIDENT SERVICES (GF),Travel/Subsistence,AUTO TOP-UP ARREARS,20/11/2018,20
D1200G-RESIDENT SERVICES (GF),Catering Food & Drink,TESCO STORE 2143,26/10/2018,50
D1200G-RESIDENT SERVICES (GF),Travel/Subsistence,OYSTER AUTO-TOP UP,16/11/2018,40
D1200G-RESIDENT SERVICES (GF),Travel/Subsistence,OYSTER AUTO-TOP UP,05/10/2018,100
D1200G-RESIDENT SERVICES (GF),Education-Library Books,AMZN MKTP UK,22/10/2018,5.64
D1200G-RESIDENT SERVICES (GF),IT Software-Customised,SurveyMonkey,30/11/2018,280
D1200G-RESIDENT SERVICES (GF),Financial Services,CASH ADVANCE FEE,31/10/2018,5.9
D1200G-RESIDENT SERVICES (GF),Cemetery & Crematorium,WWW.ARGOS.CO.UK,10/12/2018,163.93
D1200G-RESIDENT SERVICES (GF),Travel/Subsistence,OYSTER ONLINE,19/12/2018,30
D1200G-RESIDENT SERVICES (GF),Travel/Subsistence,OYSTER ONLINE,22/11/2018,30
D1200G-RESIDENT SERVICES (GF),Travel/Subsistence,OYSTER AUTO-TOP UP,15/11/2018,40
D1200G-RESIDENT SERVICES (GF),Travel/Subsistence,TRAINLINE,21/11/2018,200.2
D1200G-RESIDENT SERVICES (GF),Taxi Fares,SW2CR0CR0,13/11/2018,60
D1200G-RESIDENT SERVICES (GF),Taxi Fares,BJORN TILL 15 NOV,15/11/2018,120
D1200G-RESIDENT SERVICES (GF),Travel/Subsistence,TRAINLINE,04/10/2018,145.18
D1200G-RESIDENT SERVICES (GF),Travel/Subsistence,OYSTER AUTO-TOP UP,16/11/2018,60
D1200G-RESIDENT SERVICES (GF),Travel/Subsistence,OYSTER AUTO-TOP UP,13/10/2018,20
D1200G-RESIDENT SERVICES (GF),Travel/Subsistence,OYSTER ONLINE,03/10/2018,40
D1200G-RESIDENT SERVICES (GF),Horticultural-Other,JOSEPH ROCHFORD GARDEN,06/11/2018,178.32
D1200G-RESIDENT SERVICES (GF),IT Software,ADOBE  CREATIVE CLOUD,02/12/2018,83.24
D1200G-RESIDENT SERVICES (GF),Furniture-Domestic Furniture,PAYPAL,19/12/2018,249
D1200G-RESIDENT SERVICES (GF),Taxi Fares,SW16 TO SW2 RETURN,21/11/2018,50
D1200G-RESIDENT SERVICES (GF),Facilities-Printing,Amazon.co.uk,20/11/2018,55.99
D1200G-RESIDENT SERVICES (GF),Legal Services-General Support,CASH ADVANCE FEE,07/11/2018,26.26
D1200G-RESIDENT SERVICES (GF),Travel/Subsistence,OYSTER AUTO-TOP UP,04/10/2018,40
D1200G-RESIDENT SERVICES (GF),Financial Services,HM PASSPORT OFFICE,13/10/2018,85
D1200G-RESIDENT SERVICES (GF),Taxi Fares,CIVIC TO CR0,05/11/2018,40
D1200G-RESIDENT SERVICES (GF),Education-Other,IKEA LIMITED,02/11/2018,90
D1200G-RESIDENT SERVICES (GF),Education-Library Books,AMZN Mktp UK,07/10/2018,494.75
D1200G-RESIDENT SERVICES (GF),Catering Food & Drink,TESCO STORE 2143,06/12/2018,9.5
D1200G-RESIDENT SERVICES (GF),Domestic Goods-Other,WWW.ARGOS.CO.UK,19/12/2018,1308.83
D1200G-RESIDENT SERVICES (GF),Travel/Subsistence,OYSTER AUTO-TOP UP,28/11/2018,140
D1200G-RESIDENT SERVICES (GF),Catering Food & Drink,TESCO STORES-2143,30/11/2018,15.90
D1200G-RESIDENT SERVICES (GF),Accommodation,HOLIDAY INN EXPRESS LONDO,23/11/2018,297
D1200G-RESIDENT SERVICES (GF),Travel/Subsistence,OYSTER ONLINE,23/11/2018,30
D1200G-RESIDENT SERVICES (GF),Travel/Subsistence,OYSTER AUTO-TOP UP,14/12/2018,100
D1200G-RESIDENT SERVICES (GF),Education-Library Books,AMAZON.CO.UK,29/10/2018,14.12
D1200G-RESIDENT SERVICES (GF),Domestic Goods-Commercial,HUCK NETS (UK) LTD,20/12/2018,348.86
D1200G-RESIDENT SERVICES (GF),Haulage,PAYPAL,18/12/2018,165.26
D1200G-RESIDENT SERVICES (GF),Travel/Subsistence,OYSTER ONLINE,28/11/2018,-30
D1200G-RESIDENT SERVICES (GF),Travel/Subsistence,LUL TICKET MACHINE,07/12/2018,30
D1200G-RESIDENT SERVICES (GF),Travel/Subsistence,OYSTER AUTO-TOP UP,07/12/2018,20
D1200G-RESIDENT SERVICES (GF),Travel/Subsistence,OYSTER AUTO-TOP UP,23/11/2018,20
D1200G-RESIDENT SERVICES (GF),Travel/Subsistence,OYSTER AUTO-TOP UP,12/12/2018,60
D1200G-RESIDENT SERVICES (GF),Travel/Subsistence,OYSTER AUTO-TOP UP,19/10/2018,40
D1200G-RESIDENT SERVICES (GF),Travel/Subsistence,OYSTER ONLINE,04/10/2018,10
D1200G-RESIDENT SERVICES (GF),Catering Food & Drink,COSTCUTTER,02/10/2018,61
D1200G-RESIDENT SERVICES (GF),Catering Food & Drink,MIMOSA FOODS,19/10/2018,113.25
D1200G-RESIDENT SERVICES (GF),Travel/Subsistence,TRAINLINE,10/10/2018,60
D1200G-RESIDENT SERVICES (GF),Travel/Subsistence,OYSTER ONLINE,29/11/2018,10
D1200G-RESIDENT SERVICES (GF),Domestic Goods-Other,POUNDLAND LTD,24/11/2018,13
D1200G-RESIDENT SERVICES (GF),Travel/Subsistence,OYSTER AUTO-TOP UP,17/11/2018,40
D1200G-RESIDENT SERVICES (GF),Travel/Subsistence,OYSTER AUTO-TOP UP,23/11/2018,20
D1200G-RESIDENT SERVICES (GF),Travel/Subsistence,TRAINLINE,08/10/2018,120.3
D1200G-RESIDENT SERVICES (GF),Taxi Fares,SE15 TO CR0 RETURN,15/10/2018,80
D1200G-RESIDENT SERVICES (GF),Travel/Subsistence,TRAINLINE,29/10/2018,34.63
D1200G-RESIDENT SERVICES (GF),Travel/Subsistence,OYSTER ONLINE,17/10/2018,110
D1200G-RESIDENT SERVICES (GF),Financial Services,HM PASSPORT OFFICE,05/10/2018,58.5
D1200G-RESIDENT SERVICES (GF),Catering Food & Drink,MARKS&SPENCER PLC,22/10/2018,30
D1200G-RESIDENT SERVICES (GF),Books/Publications/Resources,CASH ADVANCE FEE,03/10/2018,4.72
D1200G-RESIDENT SERVICES (GF),Education-Other,AMZN Mktp UK,07/12/2018,10.5
D1200G-RESIDENT SERVICES (GF),IT Software-Customised,HOTJAR,08/12/2018,98.6
D1200G-RESIDENT SERVICES (GF),Furniture-Domestic Furniture,WAYFAIR #2612878808,06/12/2018,580
D1200G-RESIDENT SERVICES (GF),Education-Other,UCLONLINESTORE,20/12/2018,100
D1200G-RESIDENT SERVICES (GF),Travel/Subsistence,OYSTER AUTO-TOP UP,28/11/2018,40
D1200G-RESIDENT SERVICES (GF),Facilities-Printing,Amazon.co.uk,04/12/2018,18.1
D1200G-RESIDENT SERVICES (GF),Travel/Subsistence,LUL TICKET MACHINE,03/12/2018,315
D1200G-RESIDENT SERVICES (GF),Travel/Subsistence,OYSTER ONLINE,26/10/2018,30
D1200G-RESIDENT SERVICES (GF),Travel/Subsistence,OYSTER AUTO-TOP UP,11/10/2018,20
D1200G-RESIDENT SERVICES (GF),Education-Library Books,AMAZON.CO.UK,29/11/2018,12.72
D1200G-RESIDENT SERVICES (GF),Professional & Advisory Services,WWW.FTA.CO.UK,12/10/2018,708.00
D1200G-RESIDENT SERVICES (GF),Consultancy-Business,HOO*HOOTSUITE INC,24/12/2018,30
D1200G-RESIDENT SERVICES (GF),Arts & Leisure Services,ATG TICKETS,05/12/2018,2200
D1200G-RESIDENT SERVICES (GF),Travel/Subsistence,OYSTER ONLINE,20/12/2018,20
D1200G-RESIDENT SERVICES (GF),Domestic Goods-Other,WWW.ARGOS.CO.UK,28/11/2018,1255.91
D1200G-RESIDENT SERVICES (GF),Travel/Subsistence,OYSTER AUTO-TOP UP,22/11/2018,20
D1200G-RESIDENT SERVICES (GF),Catering Food & Drink,LOW COST SUPERMARKET,14/11/2018,90
D1200G-RESIDENT SERVICES (GF),Travel/Subsistence,OYSTER ONLINE,05/10/2018,30
D1200G-RESIDENT SERVICES (GF),Arts & Leisure Services,THORPE PARK RESORT FIN,05/10/2018,245
D1200G-RESIDENT SERVICES (GF),Education-Library Books,AMZN MKTP UK AMAZON.CO.UK,10/10/2018,2.75
D1200G-RESIDENT SERVICES (GF),Travel/Subsistence,OYSTER ONLINE,04/10/2018,40
D1200G-RESIDENT SERVICES (GF),Travel/Subsistence,OYSTER AUTO-TOP UP,06/10/2018,40
D1200G-RESIDENT SERVICES (GF),Accommodation,PREMIER INN 44536865,05/12/2018,150.5
D1200G-RESIDENT SERVICES (GF),Travel/Subsistence,OYSTER AUTO-TOP UP,30/11/2018,20
D1200G-RESIDENT SERVICES (GF),Education-Other,PARTRIDGE & PRINT,26/11/2018,808
D1200G-RESIDENT SERVICES (GF),Domestic Goods-Other,POUNDLAND LTD 1203,22/11/2018,3
D1200G-RESIDENT SERVICES (GF),Travel/Subsistence,LUL TICKET MACHINE,19/11/2018,50
D1200G-RESIDENT SERVICES (GF),Travel/Subsistence,OYSTER ONLINE,13/11/2018,25
D1200G-RESIDENT SERVICES (GF),Travel/Subsistence,OYSTER AUTO-TOP UP,20/10/2018,40
D1200G-RESIDENT SERVICES (GF),Domestic Goods-Other,POUNDLAND LTD 1203,04/10/2018,61
D1200G-RESIDENT SERVICES (GF),Education-Library Books,AMZN MKTP UK,28/10/2018,28.14
D1200G-RESIDENT SERVICES (GF),Travel/Subsistence,LUL TICKET MACHINE,12/10/2018,30
D1200G-RESIDENT SERVICES (GF),Taxi Fares,SCHOOL RUN SW9 TO SE27,10/10/2018,500
D1200G-RESIDENT SERVICES (GF),Domestic Goods-Other,WWW.LUGGAGESUPERST,01/11/2018,143.1
D1200G-RESIDENT SERVICES (GF),Travel/Subsistence,OYSTER ONLINE,08/10/2018,60
D1200G-RESIDENT SERVICES (GF),Facilities-Printing,Amazon.co.uk,09/11/2018,60
D1200G-RESIDENT SERVICES (GF),Travel/Subsistence,OYSTER ONLINE,02/11/2018,49
D1200G-RESIDENT SERVICES (GF),Building-Electrical,PREMIER FARNELL,15/10/2018,149.99
D1200G-RESIDENT SERVICES (GF),Financial Services,DVLA VEHICLE TAX,04/12/2018,140
D1200G-RESIDENT SERVICES (GF),Works-Construction,PP*NULIFEBUILD,30/11/2018,350
D1200G-RESIDENT SERVICES (GF),Taxi Fares,KEESHWN AND KEYONTE,13/11/2018,120
D1200G-RESIDENT SERVICES (GF),Taxi Fares,CVICSW8CR0,15/10/2018,85
D1200G-RESIDENT SERVICES (GF),Taxi Fares,SE15 TO CR0,01/10/2018,80
D1200G-RESIDENT SERVICES (GF),Catering Food & Drink,TESCO STORE 2143,03/10/2018,37.28
D1200G-RESIDENT SERVICES (GF),Travel/Subsistence,OYSTER ONLINE,24/10/2018,-25
D1200G-RESIDENT SERVICES (GF),Books/Publications/Resources,WHICH,08/12/2018,10.75
D1200G-RESIDENT SERVICES (GF),Education-Library Books,AMZN Mktp UK,30/10/2018,11.99
D1200G-RESIDENT SERVICES (GF),Catering Food & Drink,TESCO STORES-2143,21/12/2018,14.1
D1200G-RESIDENT SERVICES (GF),Travel/Subsistence,OYSTER ONLINE,29/11/2018,10
D1200G-RESIDENT SERVICES (GF),Domestic Goods-Other,PAYPAL,30/11/2018,6.9
D1200G-RESIDENT SERVICES (GF),Haulage,BIG RED REMOVALS,13/12/2018,660
D1200G-RESIDENT SERVICES (GF),Travel/Subsistence,OYSTER AUTO-TOP UP,11/10/2018,20
D1200G-RESIDENT SERVICES (GF),Taxi Fares,SW9 SE27 SCHOOL RUN,01/10/2018,250
D1200G-RESIDENT SERVICES (GF),Travel/Subsistence,OYSTER AUTO-TOP UP,24/10/2018,20
D1200G-RESIDENT SERVICES (GF),Travel/Subsistence,OYSTER ONLINE,24/10/2018,30
D1200G-RESIDENT SERVICES (GF),Education-Other,AMZN MKTP UK,30/11/2018,14.97
D1200G-RESIDENT SERVICES (GF),Building-General,TOOLSTATION LTD,30/11/2018,9.99
D1200G-RESIDENT SERVICES (GF),Domestic Goods-Other,WWW.ARGOS.CO.UK,06/12/2018,146.93
D1200G-RESIDENT SERVICES (GF),Education-Library Books,AMZN Mktp UK,14/12/2018,73.44
D1200G-RESIDENT SERVICES (GF),Travel/Subsistence,LUL TICKET MACHINE,09/11/2018,75
D1200G-RESIDENT SERVICES (GF),Travel/Subsistence,OYSTER ONLINE,08/10/2018,49
D1200G-RESIDENT SERVICES (GF),Education-Other,AMAZON.CO.UK AMAZON.CO.UK,10/10/2018,18.44
D1200G-RESIDENT SERVICES (GF),Education-Library Books,AMZN Mktp UK,20/10/2018,12.79
D1200G-RESIDENT SERVICES (GF),Catering Food & Drink,LIDL UK  LONDON,09/12/2018,8.17
D1200G-RESIDENT SERVICES (GF),Building-Timber,SELCO TRADING CTR,23/10/2018,81.11
D1200G-RESIDENT SERVICES (GF),Travel/Subsistence,TFL AUTOSETTLEMENT,20/12/2018,20
D1200G-RESIDENT SERVICES (GF),Taxi Fares,BR1 TO METROPOL,13/11/2018,140
D1200G-RESIDENT SERVICES (GF),Financial Services,LONDON BRGH OF LAMBETH,15/10/2018,10
D1200G-RESIDENT SERVICES (GF),Financial Services,DVLA DRIVER ONLINE,17/10/2018,34
D1200G-RESIDENT SERVICES (GF),Travel/Subsistence,OYSTER AUTO-TOP UP,10/11/2018,120
D1200G-RESIDENT SERVICES (GF),Travel/Subsistence,OYSTER AUTO-TOP UP,06/10/2018,60
D1200G-RESIDENT SERVICES (GF),Education-Library Books,AMZN MKTP UK,20/10/2018,3.78
D1200G-RESIDENT SERVICES (GF),Travel/Subsistence,OYSTER ONLINE,05/12/2018,60
D1200G-RESIDENT SERVICES (GF),Taxi Fares,SE11 TO SE24 TO SE27,22/11/2018,30
D1200G-RESIDENT SERVICES (GF),Travel/Subsistence,OYSTER AUTO-TOP UP,12/12/2018,40
D1200G-RESIDENT SERVICES (GF),Travel/Subsistence,TRAINLINE,15/11/2018,23.04
D1200G-RESIDENT SERVICES (GF),Education-Library Books,AMZN MKTP UK,27/10/2018,37.24
D1200G-RESIDENT SERVICES (GF),Travel/Subsistence,OYSTER ONLINE,02/10/2018,30
D1200G-RESIDENT SERVICES (GF),Education-Library Books,AMZN MKTP UK,13/11/2018,25.79
D1200G-RESIDENT SERVICES (GF),Education-Other,WH SMITH,29/10/2018,1.99
D1200G-RESIDENT SERVICES (GF),Furniture-Domestic Furniture,WWW.IKEA.COM,23/10/2018,240
D1200G-RESIDENT SERVICES (GF),Legal Services-Other,HMCOURTS-SERVICE.G,30/11/2018,800.5
D1200G-RESIDENT SERVICES (GF),Accommodation,EASYJET,18/12/2018,226.24
D1200G-RESIDENT SERVICES (GF),Travel/Subsistence,OYSTER ONLINE,04/12/2018,40
D1200G-RESIDENT SERVICES (GF),Domestic Goods-Other,CURRYS ONLINE,05/12/2018,-349.99
D1200G-RESIDENT SERVICES (GF),Travel/Subsistence,OYSTER AUTO-TOP UP,07/12/2018,40
D1200G-RESIDENT SERVICES (GF),Taxi Fares,E17 TO SW9 3 TIMES,20/11/2018,240
D1200G-RESIDENT SERVICES (GF),Travel/Subsistence,TRAINLINE,16/11/2018,109.58
D1200G-RESIDENT SERVICES (GF),Travel/Subsistence,OYSTER ONLINE,18/10/2018,20
D1200G-RESIDENT SERVICES (GF),Mail Services-Postage,THE POST OFFICE,04/10/2018,45
D1200G-RESIDENT SERVICES (GF),Works-Construction,SQ *COMPARE THE MAN AND V,12/10/2018,-80.47
D1200G-RESIDENT SERVICES (GF),Travel/Subsistence,TRAINLINE,30/10/2018,15.51
D1200G-RESIDENT SERVICES (GF),Catering Food & Drink,APNI RASIO,02/11/2018,240
D1200G-RESIDENT SERVICES (GF),Catering Food & Drink,ASDA GEORGE COM LEEDS,06/10/2018,-23
D1200G-RESIDENT SERVICES (GF),Education-Other,AMZN MKTP UK,02/12/2018,37.21
D1200G-RESIDENT SERVICES (GF),Travel/Subsistence,OYSTER AUTO-TOP UP,06/12/2018,20
D1200G-RESIDENT SERVICES (GF),Domestic Goods-Other,WWW.ARGOS.CO.UK,24/12/2018,474.94
D1200G-RESIDENT SERVICES (GF),Travel/Subsistence,LUL TICKET MACHINE,10/12/2018,50
D1200G-RESIDENT SERVICES (GF),Travel/Subsistence,SACKVILLE TRAVELSERVIC,07/12/2018,1190
D1200G-RESIDENT SERVICES (GF),Travel/Subsistence,OYSTER ONLINE,13/12/2018,20
D1200G-RESIDENT SERVICES (GF),Travel/Subsistence,OYSTER AUTO-TOP UP,27/10/2018,40
D1200G-RESIDENT SERVICES (GF),Travel/Subsistence,OYSTER AUTO-TOP UP,06/10/2018,20
D1200G-RESIDENT SERVICES (GF),Education-Library Books,Amazon.co.uk,04/10/2018,29.37
D1200G-RESIDENT SERVICES (GF),Facilities-Market Research,Amazon Prime,11/10/2018,7.99
D1200G-RESIDENT SERVICES (GF),Financial Services,NATWEST BANK  /,30/10/2018,200
D1200G-RESIDENT SERVICES (GF),Education-Library Books,AMZN MKTP UK,12/12/2018,6.98
D1200G-RESIDENT SERVICES (GF),Travel/Subsistence,TRAINLINE,03/12/2018,3.87
D1200G-RESIDENT SERVICES (GF),Travel/Subsistence,OYSTER AUTO-TOP UP,16/12/2018,20
D1200G-RESIDENT SERVICES (GF),Travel/Subsistence,OYSTER AUTO-TOP UP,07/11/2018,40
D1200G-RESIDENT SERVICES (GF),Telecommunications,02 BRIXTON,09/11/2018,10
D1200G-RESIDENT SERVICES (GF),Travel/Subsistence,OYSTER AUTO-TOP UP,28/10/2018,40
D1200G-RESIDENT SERVICES (GF),Facilities-Storage,WWW.SAFESTORE.CO.UK,29/10/2018,518.77
D1200G-RESIDENT SERVICES (GF),Travel/Subsistence,AUTO TOP-UP ARREARS,02/10/2018,20
D1200G-RESIDENT SERVICES (GF),Travel/Subsistence,TRAINLINE,02/10/2018,72.95
D1200G-RESIDENT SERVICES (GF),Catering Food & Drink,LOW COST SUPERMARKET,30/10/2018,30
D1200G-RESIDENT SERVICES (GF),Taxi Fares,WWW.MINICABS.CO.UK,31/10/2018,25.63
D1200G-RESIDENT SERVICES (GF),Education-Other,IKEA LIMITED,04/11/2018,55
D1200G-RESIDENT SERVICES (GF),Taxi Fares,E1 TO GATWICK,21/12/2018,80
D1200G-RESIDENT SERVICES (GF),Taxi Fares,SW9 TO CR4 TILL 16 NOV,28/11/2018,400
D1200G-RESIDENT SERVICES (GF),Travel/Subsistence,OYSTER AUTO-TOP UP,30/11/2018,40
D1200G-RESIDENT SERVICES (GF),Catering Food & Drink,TESCO STORES-2143,02/11/2018,4.00
D1200G-RESIDENT SERVICES (GF),Furniture-Domestic Furniture,DFS Trading Limited,04/11/2018,548
D1200G-RESIDENT SERVICES (GF),Travel/Subsistence,OYSTER AUTO-TOP UP,02/11/2018,20
D1200G-RESIDENT SERVICES (GF),Travel/Subsistence,OYSTER ONLINE,22/10/2018,25
D1200G-RESIDENT SERVICES (GF),Domestic Goods-Other,AMAZON.CO.UK AMAZON.CO.UK,14/10/2018,22.86
D1200G-RESIDENT SERVICES (GF),Education-Other,OSC FURNITURE LTD,25/10/2018,1000
D1200G-RESIDENT SERVICES (GF),Cycles Purchase,FW EVANS CYCLES,17/10/2018,39.99
D1200G-RESIDENT SERVICES (GF),Accommodation,HAMPTON BY HILTON,05/12/2018,64.8
D1200G-RESIDENT SERVICES (GF),Legal Services-General Support,NATWEST BANK  /,06/11/2018,800
D1200G-RESIDENT SERVICES (GF),Travel/Subsistence,OYSTER AUTO-TOP UP,19/10/2018,20
D1200G-RESIDENT SERVICES (GF),Travel/Subsistence,OYSTER AUTO-TOP UP,21/10/2018,20
D1200G-RESIDENT SERVICES (GF),Travel/Subsistence,OYSTER ONLINE,16/10/2018,120
D1200G-RESIDENT SERVICES (GF),Travel/Subsistence,OYSTER AUTO-TOP UP,25/10/2018,40
D1200G-RESIDENT SERVICES (GF),Travel/Subsistence,OYSTER AUTO-TOP UP,24/10/2018,80
D1200G-RESIDENT SERVICES (GF),Catering Food & Drink,AMZN Mktp UK,30/10/2018,11.53
D1200G-RESIDENT SERVICES (GF),Catering Food & Drink,MARKS&SPENCER PLC SACA,05/12/2018,6.6
D1200G-RESIDENT SERVICES (GF),Catering Food & Drink,TESCO STORE 2143,21/12/2018,20
D1200G-RESIDENT SERVICES (GF),Travel/Subsistence,OYSTER AUTO-TOP UP,21/12/2018,40
D1200G-RESIDENT SERVICES (GF),Travel/Subsistence,OYSTER AUTO-TOP UP,23/12/2018,20
D1200G-RESIDENT SERVICES (GF),Taxi Fares,SE19 TO CIVIC,28/11/2018,25
D1200G-RESIDENT SERVICES (GF),Mail Services-Postage,POSTOFFICE SELFSERVICE,22/11/2018,26.55
D1200G-RESIDENT SERVICES (GF),Financial Services,LBL NOT PRESENT,13/12/2018,50
D1200G-RESIDENT SERVICES (GF),Travel/Subsistence,OYSTER ONLINE,21/11/2018,30
D1200G-RESIDENT SERVICES (GF),Travel/Subsistence,OYSTER ONLINE,19/10/2018,20
D1200G-RESIDENT SERVICES (GF),Books/Publications/Resources,CASH ADVANCE FEE,13/11/2018,4.72
D1200G-RESIDENT SERVICES (GF),Education-Other,POUNDLAND LTD,28/11/2018,7
D1200G-RESIDENT SERVICES (GF),Travel/Subsistence,OYSTER AUTO-TOP UP,13/10/2018,20
D1200G-RESIDENT SERVICES (GF),Accommodation,AIRBNB * HM3RW5WEXQ,05/12/2018,1166.35
D1200G-RESIDENT SERVICES (GF),Furniture-Office Furniture,WWW.POSTURITE.CO.UK,20/12/2018,580.28
D1200G-RESIDENT SERVICES (GF),Travel/Subsistence,OYSTER AUTO-TOP UP,28/11/2018,20
D1200G-RESIDENT SERVICES (GF),Education-Library Books,AMZN MKTP UK,28/11/2018,20.41
D1200G-RESIDENT SERVICES (GF),Travel/Subsistence,OYSTER AUTO-TOP UP,29/11/2018,40
D1200G-RESIDENT SERVICES (GF),Accommodation,Hotel on Booking.com,26/11/2018,760
D1200G-RESIDENT SERVICES (GF),Catering Food & Drink,LOW COST SUPERMARKET,30/10/2018,30
D1200G-RESIDENT SERVICES (GF),Haulage,PAYPAL,22/10/2018,60
D1200G-RESIDENT SERVICES (GF),Travel/Subsistence,OYSTER AUTO-TOP UP,24/10/2018,20
D1200G-RESIDENT SERVICES (GF),Taxi Fares,CIVIC TO E7,02/10/2018,80
D1200G-RESIDENT SERVICES (GF),Travel/Subsistence,OYSTER ONLINE,02/10/2018,0
D1200G-RESIDENT SERVICES (GF),Education-Library Books,AMAZON.CO.UK AMAZON.CO.UK,09/10/2018,8.99
D1200G-RESIDENT SERVICES (GF),Building-Plumbing,PLUMB CENTER FFO,01/11/2018,41.27
D1200G-RESIDENT SERVICES (GF),Travel/Subsistence,OYSTER AUTO-TOP UP,20/12/2018,40
D1200G-RESIDENT SERVICES (GF),Travel/Subsistence,OYSTER AUTO-TOP UP,25/12/2018,20
D1200G-RESIDENT SERVICES (GF),Catering Food & Drink,MARKS&SPENCER PLC SACA,30/11/2018,54.9
D1200G-RESIDENT SERVICES (GF),Travel/Subsistence,OYSTER AUTO-TOP UP,01/12/2018,80
D1200G-RESIDENT SERVICES (GF),Taxi Fares,THE KEEN GROUP,19/11/2018,48.38
D1200G-RESIDENT SERVICES (GF),Domestic Goods-Other,CURRYS ONLINE,17/10/2018,775
D1200G-RESIDENT SERVICES (GF),Catering Food & Drink,SAINSBURY'S SMKT,11/10/2018,16.65
D1200G-RESIDENT SERVICES (GF),Travel/Subsistence,OYSTER AUTO-TOP UP,04/11/2018,40
D1200G-RESIDENT SERVICES (GF),Travel/Subsistence,TRAINLINE,01/11/2018,19.68
D1200G-RESIDENT SERVICES (GF),Accommodation,TRAVELODGE GB0000,25/10/2018,205.5
D1200G-RESIDENT SERVICES (GF),Education-Library Books,AMZN Mktp UK,06/11/2018,48.64
D1200G-RESIDENT SERVICES (GF),Education-Library Books,Amazon.co.uk,06/11/2018,16.26
D1200G-RESIDENT SERVICES (GF),Education-Other,ECO UK MERCHANT LTD,03/10/2018,6.00
D1200G-RESIDENT SERVICES (GF),Accommodation,EASYJET,18/12/2018,75.39
D1200G-RESIDENT SERVICES (GF),Domestic Goods-Other,ARGOS RETAIL GROUP,20/12/2018,99.99
D1200G-RESIDENT SERVICES (GF),Catering Food & Drink,MARKS&SPENCER PLC SACA,22/11/2018,42.5
D1200G-RESIDENT SERVICES (GF),Furniture-Domestic Furniture,WWW.IKEA.COM,14/12/2018,15.7
D1200G-RESIDENT SERVICES (GF),Travel/Subsistence,OYSTER AUTO-TOP UP,16/12/2018,80
D1200G-RESIDENT SERVICES (GF),Travel/Subsistence,OYSTER AUTO-TOP UP,21/11/2018,20
D1200G-RESIDENT SERVICES (GF),Travel/Subsistence,OYSTER AUTO-TOP UP,20/10/2018,40
D1200G-RESIDENT SERVICES (GF),Travel/Subsistence,OYSTER AUTO-TOP UP,17/10/2018,40
D1200G-RESIDENT SERVICES (GF),Healthcare Services,WWW.AEWMWEB.COM,12/10/2018,160
D1200G-RESIDENT SERVICES (GF),Travel/Subsistence,OYSTER ONLINE,10/10/2018,30
D1200G-RESIDENT SERVICES (GF),Works-Construction,PP*NULIFEBUILD,03/10/2018,275
D1200G-RESIDENT SERVICES (GF),Education-Other,POUNDLAND LTD,03/10/2018,14
D1200G-RESIDENT SERVICES (GF),Cemetery & Crematorium,AMZN Mktp UK,26/10/2018,53.5
D1200G-RESIDENT SERVICES (GF),Travel/Subsistence,OYSTER AUTO-TOP UP,30/12/2018,20
D1200G-RESIDENT SERVICES (GF),Travel/Subsistence,TRAINLINE,28/11/2018,78.05
D1200G-RESIDENT SERVICES (GF),Travel/Subsistence,OYSTER AUTO-TOP UP,02/12/2018,40
D1200G-RESIDENT SERVICES (GF),Domestic Goods-Other,WWW.ARGOS.CO.UK,13/12/2018,124.99
D1200G-RESIDENT SERVICES (GF),Travel/Subsistence,OYSTER AUTO-TOP UP,16/12/2018,60
D1200G-RESIDENT SERVICES (GF),Travel/Subsistence,OYSTER AUTO-TOP UP,19/10/2018,60
D1200G-RESIDENT SERVICES (GF),Mail Services-Postage,THE POST OFFICE,15/10/2018,8.85
D1200G-RESIDENT SERVICES (GF),Education-Library Books,AMZN MKTP UK,12/11/2018,17.73
D1200G-RESIDENT SERVICES (GF),Education-Library Books,AMAZON.CO.UK,31/10/2018,70.62
D1200G-RESIDENT SERVICES (GF),Domestic Goods-Other,AMAZON.CO.UK,29/11/2018,8.99
D1200G-RESIDENT SERVICES (GF),Professional & Advisory Services,WWW.FTA.CO.UK,26/11/2018,99.66
D1200G-RESIDENT SERVICES (GF),Education-Library Books,AMZN MKTP UK,17/12/2018,85.1
D1200G-RESIDENT SERVICES (GF),Taxi Fares,SW2 TO SE2,21/12/2018,80
D1200G-RESIDENT SERVICES (GF),Travel/Subsistence,OYSTER ONLINE,06/12/2018,10
D1200G-RESIDENT SERVICES (GF),Travel/Subsistence,TRAINLINE,24/12/2018,-3.2
D1200G-RESIDENT SERVICES (GF),Taxi Fares,BJORN LAST PAYMENT,28/11/2018,60
D1200G-RESIDENT SERVICES (GF),Mail Services-Postage,THE POST OFFICE,06/11/2018,23.01
D1200G-RESIDENT SERVICES (GF),Travel/Subsistence,OYSTER AUTO-TOP UP,21/10/2018,40
D1200G-RESIDENT SERVICES (GF),Financial Services,LONDON BRGH OF LAMBETH,02/10/2018,50
D1200G-RESIDENT SERVICES (GF),Travel/Subsistence,OYSTER AUTO-TOP UP,30/10/2018,20
D1200G-RESIDENT SERVICES (GF),Catering Food & Drink,TESCO STORE 2572,09/11/2018,200
D1200G-RESIDENT SERVICES (GF),Facilities-Advertising,WH SMITH,22/10/2018,8.99
D1200G-RESIDENT SERVICES (GF),Education-Library Books,AMAZON.CO.UK AMAZON.CO.UK,04/10/2018,24.99
D1200G-RESIDENT SERVICES (GF),Education-Other,ECO UK MERCHANT LTD,12/10/2018,5.5
D1200G-RESIDENT SERVICES (GF),Domestic Goods-Other,WWW.ARGOS.CO.UK,04/10/2018,63.94
D1200G-RESIDENT SERVICES (GF),Consultancy-Business,CANVAS EVENTS LTD,01/10/2018,72
D1200G-RESIDENT SERVICES (GF),Facilities-Storage,WWW.SAFESTORE.CO.UK,19/12/2018,556.91
D1200G-RESIDENT SERVICES (GF),Catering Food & Drink,TESCO STORES-2143,22/11/2018,4
D1200G-RESIDENT SERVICES (GF),Travel/Subsistence,OYSTER AUTO-TOP UP,19/11/2018,20
D1200G-RESIDENT SERVICES (GF),Travel/Subsistence,OYSTER AUTO-TOP UP,10/11/2018,20
D1200G-RESIDENT SERVICES (GF),Travel/Subsistence,TFL CYCLE HIRE,05/10/2018,90
D1200G-RESIDENT SERVICES (GF),Catering Food & Drink,MARKS&SPENCER PLC,03/12/2018,78.5
D1200G-RESIDENT SERVICES (GF),Building-Timber,SCREWFIX BRIXTON,21/11/2018,70.46
D1200G-RESIDENT SERVICES (GF),Education-Library Books,AMZN Mktp UK,22/10/2018,25.99
D1200G-RESIDENT SERVICES (GF),Domestic Goods-Other,AMAZON.CO.UK,22/11/2018,124.99
D1200G-RESIDENT SERVICES (GF),Legal Services-General Support,NO 5 CHAMBERS LTD,11/10/2018,234
D1200G-RESIDENT SERVICES (GF),Travel/Subsistence,TRAINLINE,29/10/2018,47.85
D1200G-RESIDENT SERVICES (GF),Travel/Subsistence,OYSTER TELESALES,06/11/2018,10
D1200G-RESIDENT SERVICES (GF),Travel/Subsistence,LUL TICKET MACHINE,02/10/2018,220
D1200G-RESIDENT SERVICES (GF),Travel/Subsistence,OYSTER AUTO-TOP UP,31/10/2018,100
D1200G-RESIDENT SERVICES (GF),Travel/Subsistence,OYSTER AUTO-TOP UP,05/10/2018,40
D1200G-RESIDENT SERVICES (GF),Travel/Subsistence,OYSTER AUTO-TOP UP,07/10/2018,20
D1200G-RESIDENT SERVICES (GF),Education-Library Books,Etsy.com - HoneySalvadori,15/11/2018,24.9
D1200G-RESIDENT SERVICES (GF),Education-Other,QUALITY HOUSEWARE,30/10/2018,7.5
D1200G-RESIDENT SERVICES (GF),Stationery,AMZN Mktp UK,13/12/2018,17.08
D1200G-RESIDENT SERVICES (GF),Accommodation,BRITISH A,20/12/2018,96.89
D1200G-RESIDENT SERVICES (GF),Facilities-Advertising,EXPRESS NEWS,19/12/2018,35
D1200G-RESIDENT SERVICES (GF),Travel/Subsistence,OYSTER ONLINE,04/12/2018,60
D1200G-RESIDENT SERVICES (GF),Travel/Subsistence,LUL TICKET MACHINE,04/12/2018,200
D1200G-RESIDENT SERVICES (GF),Travel/Subsistence,OYSTER AUTO-TOP UP,30/11/2018,40
D1200G-RESIDENT SERVICES (GF),Travel/Subsistence,OYSTER ONLINE,12/12/2018,-20
D1200G-RESIDENT SERVICES (GF),Taxi Fares,KINGSLEY BOOKING,05/11/2018,50
D1200G-RESIDENT SERVICES (GF),Professional & Advisory Services,COMPARE THE MAN AND VA,18/10/2018,75.1
D1200G-RESIDENT SERVICES (GF),Travel/Subsistence,OYSTER ONLINE,07/11/2018,150
D1200G-RESIDENT SERVICES (GF),Travel/Subsistence,LUL TICKET MACHINE,05/10/2018,25
D1200G-RESIDENT SERVICES (GF),Utilities,CASTLE WATER,06/12/2018,47.3
D1200G-RESIDENT SERVICES (GF),Travel/Subsistence,OYSTER AUTO-TOP UP,05/12/2018,20
D1200G-RESIDENT SERVICES (GF),Travel/Subsistence,OYSTER ONLINE,27/11/2018,79
D1200G-RESIDENT SERVICES (GF),Travel/Subsistence,TFL ROAD CHARGE,12/10/2018,11.5
D1200G-RESIDENT SERVICES (GF),Travel/Subsistence,OYSTER ONLINE,09/10/2018,30
D1200G-RESIDENT SERVICES (GF),Taxi Fares,SUNDAY SE15 TO CR0,10/10/2018,80
D1200G-RESIDENT SERVICES (GF),Legal Services-Other,COUNTY COURT,19/11/2018,612
D1200G-RESIDENT SERVICES (GF),Travel/Subsistence,OYSTER AUTO-TOP UP,06/12/2018,40
D1200G-RESIDENT SERVICES (GF),Furniture-Domestic Furniture,WWW.IKEA.COM,10/10/2018,240
D1200G-RESIDENT SERVICES (GF),Education-Library Books,AMZN Mktp UK,17/10/2018,17.85
D1200G-RESIDENT SERVICES (GF),Accommodation,CASH ADVANCE FEE,31/12/2018,5.02
D1200G-RESIDENT SERVICES (GF),Catering Food & Drink,TESCO STORE 2143,02/10/2018,102.6
D1200G-RESIDENT SERVICES (GF),Furniture-Office Furniture,AJ PRODUCTS UK LTD,30/10/2018,356.4
D1200G-RESIDENT SERVICES (GF),Building-Timber,SCREWFIX BRIXTON,03/12/2018,121.13
D1200G-RESIDENT SERVICES (GF),Travel/Subsistence,OYSTER AUTO-TOP UP,14/11/2018,40
D1200G-RESIDENT SERVICES (GF),Stationery,AMZN MKTP UK,29/11/2018,4.77
D1200G-RESIDENT SERVICES (GF),Travel/Subsistence,OYSTER ONLINE,18/12/2018,60
D1200G-RESIDENT SERVICES (GF),Catering Food & Drink,TESCO STORE 2143,04/12/2018,90.95
D1200G-RESIDENT SERVICES (GF),Travel/Subsistence,OYSTER AUTO-TOP UP,16/12/2018,60
D1200G-RESIDENT SERVICES (GF),Travel/Subsistence,OYSTER AUTO-TOP UP,14/12/2018,60
D1200G-RESIDENT SERVICES (GF),Travel/Subsistence,OYSTER AUTO-TOP UP,18/11/2018,60
D1200G-RESIDENT SERVICES (GF),Travel/Subsistence,AUTO TOP-UP ARREARS,02/10/2018,80
D1200G-RESIDENT SERVICES (GF),Domestic Goods-Other,AMAZON.CO.UK AMAZON.CO.UK,09/10/2018,271.29
D1200G-RESIDENT SERVICES (GF),Travel/Subsistence,OYSTER AUTO-TOP UP,06/10/2018,20
D1200G-RESIDENT SERVICES (GF),Travel/Subsistence,OYSTER AUTO-TOP UP,02/11/2018,40
D1200G-RESIDENT SERVICES (GF),Catering Food & Drink,LOW COST SUPERMARKET,24/10/2018,120
D1200G-RESIDENT SERVICES (GF),Education-Library Books,AMZN MKTP UK,14/11/2018,35.04
D1200G-RESIDENT SERVICES (GF),Education-Other,BRIXTON 3,05/12/2018,40
D1200G-RESIDENT SERVICES (GF),Education-Other,SAINSBURYS S/MKTS,03/10/2018,5
D1200G-RESIDENT SERVICES (GF),Travel/Subsistence,OYSTER AUTO-TOP UP,31/10/2018,40
D1200G-RESIDENT SERVICES (GF),Education-Other,AMAZON.CO.UK,10/11/2018,73.28
D1200G-RESIDENT SERVICES (GF),Financial Services,DVLA VEHICLE TAX,27/11/2018,140
D1200G-RESIDENT SERVICES (GF),Catering Food & Drink,SAINSBURYS S/MKTS,10/12/2018,15.1
D1200G-RESIDENT SERVICES (GF),Accommodation,FLEXISTAY LTD,28/11/2018,400
D1200G-RESIDENT SERVICES (GF),Consultancy-Other,OFFICIALRECORDCOUK,27/11/2018,46.98
D1200G-RESIDENT SERVICES (GF),Accommodation,Hotel on Booking.com,23/11/2018,120
D1200G-RESIDENT SERVICES (GF),Stationery,PARTRIDGES,27/10/2018,10.78
D1200G-RESIDENT SERVICES (GF),Travel/Subsistence,OYSTER AUTO-TOP UP,12/10/2018,20
D1200G-RESIDENT SERVICES (GF),IT Software,EXCEL TAXIS NETWORK,03/10/2018,56
D1200G-RESIDENT SERVICES (GF),Travel/Subsistence,TFL AUTOSETTLEMENT,03/10/2018,20
D1200G-RESIDENT SERVICES (GF),Furniture-Domestic Furniture,ARGOS DIRECT,21/11/2018,799.99
D1200G-RESIDENT SERVICES (GF),Consultancy-Business,HOO*HOOTSUITE INC,24/10/2018,30
D1200G-RESIDENT SERVICES (GF),Education-Library Books,AMZN MKTP UK,29/11/2018,21.08
D1200G-RESIDENT SERVICES (GF),Travel/Subsistence,OYSTER AUTO-TOP UP,05/12/2018,40
D1200G-RESIDENT SERVICES (GF),Travel/Subsistence,LUL TICKET MACHINE,14/11/2018,50
D1200G-RESIDENT SERVICES (GF),Travel/Subsistence,OYSTER AUTO-TOP UP,26/10/2018,20
D1200G-RESIDENT SERVICES (GF),Travel/Subsistence,LUL TICKET MACHINE,10/10/2018,70
D1200G-RESIDENT SERVICES (GF),Travel/Subsistence,TICKETOFFICESALE,06/12/2018,55
D1200G-RESIDENT SERVICES (GF),Education-Library Books,AMAZON.CO.UK,19/10/2018,8.99
D1200G-RESIDENT SERVICES (GF),Education-Other,AMZN Mktp UK,09/12/2018,23.09
D1200G-RESIDENT SERVICES (GF),Building-Timber,ACRE LANE BUILDERS,21/11/2018,121.2
D1200G-RESIDENT SERVICES (GF),Education-Library Books,AMZN Mktp UK,03/10/2018,29.65
D1200G-RESIDENT SERVICES (GF),Accommodation,FLEXISTAY LTD,06/12/2018,160
D1200G-RESIDENT SERVICES (GF),Travel/Subsistence,OYSTER ONLINE,06/12/2018,60
D1200G-RESIDENT SERVICES (GF),Accommodation,LONDON DUDLEY HOTEL,04/12/2018,110
D1200G-RESIDENT SERVICES (GF),Catering Food & Drink,APNI RASIO,13/11/2018,393
D1200G-RESIDENT SERVICES (GF),Travel/Subsistence,TRAMLINK SHOP,22/10/2018,40
D1200G-RESIDENT SERVICES (GF),Travel/Subsistence,SE BRIXTON TO,21/11/2018,42.8
D1200G-RESIDENT SERVICES (GF),Education-Library Books,Amazon.co.uk,16/12/2018,8.99
D1200G-RESIDENT SERVICES (GF),Furniture-Domestic Furniture,WAYFAIR #2587362138,23/11/2018,440
D1200G-RESIDENT SERVICES (GF),Facilities-Market Research,WAYFAIR #2613630838,12/12/2018,159.99
D1200G-RESIDENT SERVICES (GF),Travel/Subsistence,SHRIJI KIOSK,09/10/2018,25
D1200G-RESIDENT SERVICES (GF),Building-Timber,SELCO TRADING CTR,23/10/2018,158.5
D1200G-RESIDENT SERVICES (GF),Facilities-Retail,GAZEBOSHOP,07/11/2018,251.11
D1200G-RESIDENT SERVICES (GF),Financial Services,HM PASSPORT OFFICE,27/11/2018,108
D1200G-RESIDENT SERVICES (GF),Travel/Subsistence,OYSTER AUTO-TOP UP,04/12/2018,20
D1200G-RESIDENT SERVICES (GF),Travel/Subsistence,OYSTER AUTO-TOP UP,25/11/2018,20
D1200G-RESIDENT SERVICES (GF),Accommodation,FLEXISTAY LTD,09/11/2018,400
D1200G-RESIDENT SERVICES (GF),Travel/Subsistence,OYSTER AUTO-TOP UP,11/11/2018,20
D1200G-RESIDENT SERVICES (GF),Travel/Subsistence,OYSTER ONLINE,26/11/2018,10
D1200G-RESIDENT SERVICES (GF),Taxi Fares,CIVIC 2HRS WAIT CIVIC,06/11/2018,56.6
D1200G-RESIDENT SERVICES (GF),Travel/Subsistence,OYSTER AUTO-TOP UP,28/10/2018,20
D1200G-RESIDENT SERVICES (GF),Education-Other,LONDIS,11/10/2018,218.1
D1200G-RESIDENT SERVICES (GF),Books/Publications/Resources,CASH ADVANCE FEE,04/12/2018,5.02
D1200G-RESIDENT SERVICES (GF),Catering Food & Drink,SAINSBURY'S,12/10/2018,125.2
D1200G-RESIDENT SERVICES (GF),IT Software-Customised,HOTJAR,08/11/2018,96.08
D1200G-RESIDENT SERVICES (GF),Travel/Subsistence,OYSTER ONLINE,21/12/2018,30
D1200G-RESIDENT SERVICES (GF),Catering Food & Drink,TESCO STORE 2143,21/12/2018,230
D1200G-RESIDENT SERVICES (GF),Travel/Subsistence,OYSTER AUTO-TOP UP,01/12/2018,20
D1200G-RESIDENT SERVICES (GF),Travel/Subsistence,OYSTER AUTO-TOP UP,10/11/2018,20
D1200G-RESIDENT SERVICES (GF),Education-Library Books,AMZN MKTP UK,05/12/2018,40.48
D1200G-RESIDENT SERVICES (GF),Travel/Subsistence,OYSTER AUTO-TOP UP,17/10/2018,60
D1200G-RESIDENT SERVICES (GF),Building-Timber,SCREWFIX BRIXTON,08/11/2018,57.88
D1200G-RESIDENT SERVICES (GF),Consultancy-Business,WUFOO.COM,19/10/2018,14
D1200G-RESIDENT SERVICES (GF),Consultancy-Business,BLS*MONDAY.COM,03/10/2018,74.4
D1200G-RESIDENT SERVICES (GF),Financial Services,HM PASSPORT OFFICE,20/12/2018,80.5
D1200G-RESIDENT SERVICES (GF),Domestic Goods-Other,WWW.ARGOS.CO.UK,24/11/2018,734.93
D1200G-RESIDENT SERVICES (GF),Travel/Subsistence,OYSTER AUTO-TOP UP,17/12/2018,40
D1200G-RESIDENT SERVICES (GF),Travel/Subsistence,OYSTER AUTO-TOP UP,15/12/2018,20
D1200G-RESIDENT SERVICES (GF),Travel/Subsistence,AUTO TOP-UP ARREARS,02/10/2018,40
D1200G-RESIDENT SERVICES (GF),Taxi Fares,WWW.MINICABS.CO.UK,30/10/2018,33.13
D1200G-RESIDENT SERVICES (GF),Travel/Subsistence,OYSTER AUTO-TOP UP,10/11/2018,60
D1200G-RESIDENT SERVICES (GF),Facilities-Printing,AMZ,08/11/2018,-60
D1200G-RESIDENT SERVICES (GF),Education-Library Books,Amazon.co.uk,05/12/2018,13.99
D1200G-RESIDENT SERVICES (GF),Education-Musical Instruments,WWW.GEAR4MUSIC.COM,12/10/2018,259.99
D1200G-RESIDENT SERVICES (GF),Education-Other,POUNDLAND LTD 1203,03/10/2018,1
D1200G-RESIDENT SERVICES (GF),Furniture-Soft Furnishings,POUNDSTRETCHER,14/11/2018,0
D1200G-RESIDENT SERVICES (GF),Building-Plumbing,PLUMB CENTER FFO,07/11/2018,75
D1200G-RESIDENT SERVICES (GF),Domestic Goods-Other,CURRYS ONLINE,27/11/2018,579.99
D1200G-RESIDENT SERVICES (GF),Haulage,PAYPAL,12/12/2018,133.93
D1200G-RESIDENT SERVICES (GF),Domestic Goods-Other,WWW.ARGOS.CO.UK,21/11/2018,132.94
D1200G-RESIDENT SERVICES (GF),Catering Food & Drink,ALDI STORES 776-24,21/11/2018,12.17
D1200G-RESIDENT SERVICES (GF),Financial Services,HM PASSPORT OFFICE,26/10/2018,260.5
D1200G-RESIDENT SERVICES (GF),Travel/Subsistence,OYSTER AUTO-TOP UP,18/11/2018,40
D1200G-RESIDENT SERVICES (GF),Travel/Subsistence,OYSTER ONLINE,29/10/2018,10
D1200G-RESIDENT SERVICES (GF),Education-Other,AMZN Mktp UK,19/12/2018,8.99
D1200G-RESIDENT SERVICES (GF),Catering Food & Drink,SAINSBURYS S/MKTS,12/12/2018,6.6
D1200G-RESIDENT SERVICES (GF),Education-Library Books,AMZN MKTP UK,14/11/2018,39.1
D1200G-RESIDENT SERVICES (GF),Arts & Leisure Services,AFRICAN PEOPLES HISTOR,05/12/2018,996
D1200G-RESIDENT SERVICES (GF),Travel/Subsistence,AUTO TOP-UP ARREARS,21/12/2018,20
D1200G-RESIDENT SERVICES (GF),Building-Timber,SCREWFIX DIRECT,10/12/2018,11.59
D1200G-RESIDENT SERVICES (GF),Consultancy-Business,HOO*HOOTSUITE INC,24/11/2018,30
D1200G-RESIDENT SERVICES (GF),IT Software,ADOBE  CREATIVE CLOUD,02/11/2018,83.24
D1200G-RESIDENT SERVICES (GF),Taxi Fares,BR1 TO HA8,21/12/2018,80
D1200G-RESIDENT SERVICES (GF),Travel/Subsistence,OYSTER AUTO-TOP UP,24/11/2018,20
D1200G-RESIDENT SERVICES (GF),Domestic Goods-Other,WWW.ARGOS.CO.UK,18/10/2018,348.9
D1200G-RESIDENT SERVICES (GF),Travel/Subsistence,OYSTER AUTO-TOP UP,17/10/2018,60
D1200G-RESIDENT SERVICES (GF),Financial Services,GRO HM PASSPORT OFFICE,30/10/2018,9.25
D1200G-RESIDENT SERVICES (GF),Education-Library Books,AMAZON.CO.UK AMAZON.CO.UK,04/10/2018,9.99
D1200G-RESIDENT SERVICES (GF),Taxi Fares,WWW.ADDISONLEE.COM,05/10/2018,39.6
D1200G-RESIDENT SERVICES (GF),Domestic Goods-Other,ARGOS RETAIL GROUP,01/10/2018,29.99
D1200G-RESIDENT SERVICES (GF),Travel/Subsistence,OYSTER ONLINE,02/10/2018,20
D1200G-RESIDENT SERVICES (GF),Building-Timber,SCREWFIX BRIXTON,27/11/2018,31.24
D1200G-RESIDENT SERVICES (GF),Building-Timber,SCREWFIX BRIXTON,30/11/2018,183.16
D1200G-RESIDENT SERVICES (GF),Education-Library Books,AMZN Mktp UK,05/10/2018,29.48
D1200G-RESIDENT SERVICES (GF),Taxi Fares,SW16 TO SW2,18/12/2018,20
D1200G-RESIDENT SERVICES (GF),Accommodation,PREMIER INN 44536865,18/12/2018,278.5
D1200G-RESIDENT SERVICES (GF),Domestic Goods-Other,WWW.ARGOS.CO.UK,27/11/2018,256.94
D1200G-RESIDENT SERVICES (GF),Travel/Subsistence,OYSTER ONLINE,26/11/2018,20
D1200G-RESIDENT SERVICES (GF),Travel/Subsistence,OYSTER ONLINE,26/11/2018,20
D1200G-RESIDENT SERVICES (GF),Travel/Subsistence,TRAINLINE,25/10/2018,104.75
D1200G-RESIDENT SERVICES (GF),Facilities-Market Research,Amazon Prime,03/10/2018,7.99
D1200G-RESIDENT SERVICES (GF),Travel/Subsistence,OYSTER AUTO-TOP UP,11/11/2018,20
D1200G-RESIDENT SERVICES (GF),Travel/Subsistence,TFL OYST PHOTOCARD,30/10/2018,10
D1200G-RESIDENT SERVICES (GF),Travel/Subsistence,OYSTER AUTO-TOP UP,08/11/2018,20
D1200G-RESIDENT SERVICES (GF),Education-Library Books,AMZN MKTP UK,24/10/2018,15.88
D1200G-RESIDENT SERVICES (GF),Education-Other,TESCO STORE 2143,26/10/2018,49.34
D1200G-RESIDENT SERVICES (GF),Education-Library Books,AMZN Mktp UK,29/10/2018,125.24
D1200G-RESIDENT SERVICES (GF),Building-Timber,SCREWFIX DIRECT,27/11/2018,24.26
D1200G-RESIDENT SERVICES (GF),IT Software,ADOBE  CREATIVE CLOUD,02/10/2018,83.24
D1200G-RESIDENT SERVICES (GF),Education-Library Books,AMAZON.CO.UK,26/12/2018,9.99
D1200G-RESIDENT SERVICES (GF),Travel/Subsistence,OYSTER AUTO-TOP UP,01/12/2018,80
D1200G-RESIDENT SERVICES (GF),Facilities-Advertising,EXPRESS NEWS,12/12/2018,140
D1200G-RESIDENT SERVICES (GF),Accommodation,HIGHSTREET VOCUHERS,16/11/2018,1200
D1200G-RESIDENT SERVICES (GF),Travel/Subsistence,TRAINLINE,02/10/2018,131.19
D1200G-RESIDENT SERVICES (GF),Travel/Subsistence,OYSTER AUTO-TOP UP,27/10/2018,20
D1200G-RESIDENT SERVICES (GF),Domestic Goods-Other,WWW.ARGOS.CO.UK,11/10/2018,82.95
D1200G-RESIDENT SERVICES (GF),Travel/Subsistence,OYSTER ONLINE,02/10/2018,25
D1200G-RESIDENT SERVICES (GF),Travel/Subsistence,OYSTER AUTO-TOP UP,06/10/2018,80
D1200G-RESIDENT SERVICES (GF),Domestic Goods-Other,POUNDLAND LTD 1203,22/11/2018,15.1
D1200G-RESIDENT SERVICES (GF),Building-Timber,SELCO OLD KENT ROA,17/12/2018,16.32
D1200G-RESIDENT SERVICES (GF),Domestic Goods-Other,WWW.ARGOS.CO.UK,05/12/2018,189.99
D1200G-RESIDENT SERVICES (GF),Travel/Subsistence,OYSTER AUTO-TOP UP,10/12/2018,20
D1200G-RESIDENT SERVICES (GF),Domestic Goods-Other,CURRYS ONLINE,07/12/2018,153
D1200G-RESIDENT SERVICES (GF),Travel/Subsistence,OYSTER AUTO-TOP UP,26/10/2018,60
D1200G-RESIDENT SERVICES (GF),Travel/Subsistence,OYSTER ONLINE,01/10/2018,20
D1200G-RESIDENT SERVICES (GF),Travel/Subsistence,OYSTER AUTO-TOP UP,05/10/2018,20
D1200G-RESIDENT SERVICES (GF),Domestic Goods-Other,AMZN MKTP UK,28/11/2018,5.61
D1200G-RESIDENT SERVICES (GF),Catering Food & Drink,APNI RASIO,23/11/2018,275
D1200G-RESIDENT SERVICES (GF),Domestic Goods-Other,WWW.ARGOS.CO.UK,14/12/2018,65
D1200G-RESIDENT SERVICES (GF),Travel/Subsistence,OYSTER ONLINE,09/10/2018,40
D1200G-RESIDENT SERVICES (GF),Horticultural-Other,WWW.PRESTIGEFLOWERS.CO.U,24/10/2018,93.87
D1200G-RESIDENT SERVICES (GF),Education-Other,DEMCO EUROPE,02/11/2018,999
D1200G-RESIDENT SERVICES (GF),Professional & Advisory Services,WWW.FTA.CO.UK,25/10/2018,63.54
D1200G-RESIDENT SERVICES (GF),Taxi Fares,WWW.ADDISONLEE.COM,17/12/2018,30.9
D1200G-RESIDENT SERVICES (GF),Catering Food & Drink,MARKS&SPENCER PLC SACA,04/12/2018,24.85
D1200G-RESIDENT SERVICES (GF),Travel/Subsistence,OYSTER ONLINE,06/11/2018,20
D1200G-RESIDENT SERVICES (GF),Travel/Subsistence,OYSTER AUTO-TOP UP,04/11/2018,20
D1200G-RESIDENT SERVICES (GF),Education-Other,AMZN Mktp UK,10/10/2018,220.87
D1200G-RESIDENT SERVICES (GF),Travel/Subsistence,OYSTER AUTO-TOP UP,06/10/2018,20
D1200G-RESIDENT SERVICES (GF),Travel/Subsistence,OYSTER ONLINE,05/12/2018,50
D1200G-RESIDENT SERVICES (GF),Catering Food & Drink,SAINSBURYS S/MKTS,05/12/2018,18
D1200G-RESIDENT SERVICES (GF),Education-Library Books,AMZN MKTP UK,17/12/2018,204.97
D1200G-RESIDENT SERVICES (GF),Travel/Subsistence,LUL TICKET MACHINE,02/10/2018,50
D1200G-RESIDENT SERVICES (GF),Travel/Subsistence,OYSTER ONLINE,12/11/2018,20
D1200G-RESIDENT SERVICES (GF),Travel/Subsistence,OYSTER ONLINE,26/10/2018,-30
D1200G-RESIDENT SERVICES (GF),Travel/Subsistence,OYSTER AUTO-TOP UP,03/10/2018,20
D1200G-RESIDENT SERVICES (GF),Travel/Subsistence,OYSTER ONLINE,08/10/2018,50
D1200G-RESIDENT SERVICES (GF),Books/Publications/Resources,SAINSBURYS           CASH,12/11/2018,160
D1200G-RESIDENT SERVICES (GF),Building-Timber,SCREWFIX BRIXTON,30/11/2018,174.15
D1200G-RESIDENT SERVICES (GF),Arts & Leisure Services,HIGHSTREET VOCUHERS,06/11/2018,406.5
D1200G-RESIDENT SERVICES (GF),Travel/Subsistence,OYSTER ONLINE,05/12/2018,20
D1200G-RESIDENT SERVICES (GF),Financial Services,HM PASSPORT OFFICE,18/12/2018,143.5
D1200G-RESIDENT SERVICES (GF),Catering Food & Drink,TESCO STORE 2143,19/12/2018,30
D1200G-RESIDENT SERVICES (GF),Travel/Subsistence,OYSTER ONLINE,10/12/2018,30
D1200G-RESIDENT SERVICES (GF),Travel/Subsistence,OYSTER ONLINE,07/12/2018,20
D1200G-RESIDENT SERVICES (GF),Travel/Subsistence,OYSTER AUTO-TOP UP,09/12/2018,60
D1200G-RESIDENT SERVICES (GF),Travel/Subsistence,OYSTER AUTO-TOP UP,12/12/2018,40
D1200G-RESIDENT SERVICES (GF),Domestic Goods-Other,CURRYS ONLINE,04/11/2018,537.99
D1200G-RESIDENT SERVICES (GF),Travel/Subsistence,OYSTER AUTO-TOP UP,25/10/2018,40
D1200G-RESIDENT SERVICES (GF),Education-Other,CASH ADVANCE FEE,06/12/2018,2.95
D1200G-RESIDENT SERVICES (GF),Catering Food & Drink,CO-OP GROUP 070803,12/12/2018,4
D1200G-RESIDENT SERVICES (GF),Education-Other,ICELAND,05/11/2018,10.39
D1200G-RESIDENT SERVICES (GF),Travel/Subsistence,OYSTER AUTO-TOP UP,21/12/2018,20
D1200G-RESIDENT SERVICES (GF),Travel/Subsistence,AUTO TOP-UP ARREARS,13/11/2018,20
D1200G-RESIDENT SERVICES (GF),Travel/Subsistence,OYSTER AUTO-TOP UP,26/12/2018,20
D1200G-RESIDENT SERVICES (GF),Domestic Goods-Other,CURRYS ONLINE,06/12/2018,344.99
D1200G-RESIDENT SERVICES (GF),Travel/Subsistence,OYSTER AUTO-TOP UP,02/12/2018,60
D1200G-RESIDENT SERVICES (GF),Domestic Goods-Other,WWW.ARGOS.CO.UK,17/12/2018,1889.92
D1200G-RESIDENT SERVICES (GF),Financial Services-Grants,PAYPAL,04/10/2018,70
D1200G-RESIDENT SERVICES (GF),Education-Library Books,AMZN MKTP UK,16/11/2018,8.9
D1200G-RESIDENT SERVICES (GF),Taxi Fares,WWW.MINICABS.CO.UK,02/10/2018,65
D1200G-RESIDENT SERVICES (GF),Travel/Subsistence,OYSTER AUTO-TOP UP,07/11/2018,80
D1200G-RESIDENT SERVICES (GF),Travel/Subsistence,Southeastern,16/10/2018,11.8
D1200G-RESIDENT SERVICES (GF),Catering Equipment,AMZN MKTP UK,27/11/2018,12.5
D1200G-RESIDENT SERVICES (GF),Accommodation,RADISSON BLU HOTEL GLA,20/12/2018,4.75
D1200G-RESIDENT SERVICES (GF),Financial Services,GRO HM PASSPORT OFFICE,27/11/2018,61.8
D1200G-RESIDENT SERVICES (GF),Taxi Fares,SE21 TO CRO,29/10/2018,120
D1200G-RESIDENT SERVICES (GF),Furniture-Domestic Furniture,WAYFAIR #2576351908,04/10/2018,418.48
D1200G-RESIDENT SERVICES (GF),Taxi Fares,SW16 TO DA8,18/12/2018,80
D1200G-RESIDENT SERVICES (GF),Domestic Goods-Other,WWW.ARGOS.CO.UK,20/12/2018,222.88
D1200G-RESIDENT SERVICES (GF),Travel/Subsistence,OYSTER AUTO-TOP UP,24/11/2018,80
D1200G-RESIDENT SERVICES (GF),Travel/Subsistence,OYSTER ONLINE,26/11/2018,45
D1200G-RESIDENT SERVICES (GF),Financial Services,HM PASSPORT OFFICE,22/11/2018,85
D1200G-RESIDENT SERVICES (GF),Travel/Subsistence,TRAINLINE,17/12/2018,-17.8
D1200G-RESIDENT SERVICES (GF),Travel/Subsistence,OYSTER ONLINE,12/12/2018,120
D1200G-RESIDENT SERVICES (GF),Mail Services-Postage,POST OFFICE SELF SERVI,02/11/2018,4.45
D1200G-RESIDENT SERVICES (GF),Travel/Subsistence,OYSTER ONLINE,25/10/2018,60
D1200G-RESIDENT SERVICES (GF),Education-Other,CASH ADVANCE FEE,06/11/2018,5.9
D1200G-RESIDENT SERVICES (GF),Domestic Goods-Other,AMAZON.CO.UK AMAZON.CO.UK,08/10/2018,135.44
D1200G-RESIDENT SERVICES (GF),Mail Services-Postage,THE POST OFFICE,11/10/2018,7.3
D1200G-RESIDENT SERVICES (GF),Stationery,AMZN MKTP UK,20/10/2018,4.45
D1200G-RESIDENT SERVICES (GF),Stationery,AMZN Mktp UK,23/10/2018,14.84
D1200G-RESIDENT SERVICES (GF),Travel/Subsistence,OYSTER AUTO-TOP UP,25/12/2018,20
D1200G-RESIDENT SERVICES (GF),Travel/Subsistence,OYSTER AUTO-TOP UP,23/11/2018,20
D1200G-RESIDENT SERVICES (GF),Travel/Subsistence,LUL TICKET MACHINE,20/11/2018,50
D1200G-RESIDENT SERVICES (GF),Travel/Subsistence,OYSTER AUTO-TOP UP,18/10/2018,60
D1200G-RESIDENT SERVICES (GF),Travel/Subsistence,OYSTER ONLINE,14/11/2018,30
D1200G-RESIDENT SERVICES (GF),Travel/Subsistence,OYSTER AUTO-TOP UP,27/10/2018,20
D1200G-RESIDENT SERVICES (GF),Furniture-Domestic Furniture,WWW.IKEA.COM,20/12/2018,145
D1200G-RESIDENT SERVICES (GF),Legal Services-Other,HMCOURTS-SERVICE.G,03/10/2018,964
D1200G-RESIDENT SERVICES (GF),Domestic Goods-Commercial,HUCK NETS (UK) LTD,19/12/2018,750
D1200G-RESIDENT SERVICES (GF),Building-Timber,WWW.SELCOBW.COM,03/12/2018,333.12
D1200G-RESIDENT SERVICES (GF),Consultancy-Business,WWW.PLANNINGPORTAL.CO.,05/11/2018,152
D1200G-RESIDENT SERVICES (GF),Travel/Subsistence,TFL AUTOSETTLEMENT,05/12/2018,40
D1200G-RESIDENT SERVICES (GF),Taxi Fares,WWW.MITAXIS.COM,28/12/2018,220
D1200G-RESIDENT SERVICES (GF),Travel/Subsistence,OYSTER AUTO-TOP UP,09/12/2018,20
D1200G-RESIDENT SERVICES (GF),Travel/Subsistence,OYSTER AUTO-TOP UP,07/12/2018,60
D1200G-RESIDENT SERVICES (GF),Travel/Subsistence,OYSTER AUTO-TOP UP,30/11/2018,20
D1200G-RESIDENT SERVICES (GF),Travel/Subsistence,LUL TICKET MACHINE,17/10/2018,50
D1200G-RESIDENT SERVICES (GF),Travel/Subsistence,TRAINLINE,08/11/2018,62.29
D1200G-RESIDENT SERVICES (GF),Organised Activities,Kindle Unltd,18/10/2018,7.99
D1200G-RESIDENT SERVICES (GF),Travel/Subsistence,OYSTER AUTO-TOP UP,27/10/2018,60
D1200G-RESIDENT SERVICES (GF),Education-Library Books,AMZN Mktp UK,22/10/2018,12.79
D1200G-RESIDENT SERVICES (GF),Education-Library Books,AMZN Mktp UK,10/12/2018,8.89
D1200G-RESIDENT SERVICES (GF),Travel/Subsistence,OYSTER ONLINE,23/10/2018,40
D1200G-RESIDENT SERVICES (GF),Travel/Subsistence,OYSTER AUTO-TOP UP,23/11/2018,20
D1200G-RESIDENT SERVICES (GF),Arts & Leisure Services,WWW.FLIPOUT.CO.UK,07/12/2018,105
D1200G-RESIDENT SERVICES (GF),Travel/Subsistence,TRAINLINE,20/12/2018,5.03
D1200G-RESIDENT SERVICES (GF),Education-Library Books,AMZN Mktp UK,13/12/2018,22.31
D1200G-RESIDENT SERVICES (GF),Travel/Subsistence,OYSTER AUTO-TOP UP,19/12/2018,40
D1200G-RESIDENT SERVICES (GF),Taxi Fares,CHURCH STREET CARS,14/11/2018,15
D1200G-RESIDENT SERVICES (GF),Travel/Subsistence,OYSTER AUTO-TOP UP,17/11/2018,80
D1200G-RESIDENT SERVICES (GF),Taxi Fares,THE KEEN GROUP,06/10/2018,139.3
D1200G-RESIDENT SERVICES (GF),Accommodation,RYANAIR,04/10/2018,9.99
D1200G-RESIDENT SERVICES (GF),Financial Services,CASH ADVANCE FEE,29/11/2018,2.95
D1200G-RESIDENT SERVICES (GF),Consultancy-Business,FORTRESS MASTER LOCKSMITH,09/10/2018,77.07
D1200G-RESIDENT SERVICES (GF),Travel/Subsistence,DIALAFLIGHT - 5823460,19/12/2018,3017.07
D1200G-RESIDENT SERVICES (GF),Travel/Subsistence,OYSTER AUTO-TOP UP,09/12/2018,20
D1200G-RESIDENT SERVICES (GF),Travel/Subsistence,OYSTER AUTO-TOP UP,18/11/2018,20
D1200G-RESIDENT SERVICES (GF),Catering Food & Drink,MARKS&SPENCER PLC,19/11/2018,87
D1200G-RESIDENT SERVICES (GF),Taxi Fares,SE21 TO CR0 W/ESCORT,12/10/2018,60
D1200G-RESIDENT SERVICES (GF),Travel/Subsistence,OYSTER AUTO-TOP UP,10/10/2018,20
D1200G-RESIDENT SERVICES (GF),Travel/Subsistence,OYSTER AUTO-TOP UP,07/11/2018,40
D1200G-RESIDENT SERVICES (GF),Catering Food & Drink,TESCO STORES-2143,05/12/2018,16.99
D1200G-RESIDENT SERVICES (GF),Domestic Goods-Other,CURRYS SUPERSTORE,04/12/2018,-389.99
D1200G-RESIDENT SERVICES (GF),Travel/Subsistence,OYSTER AUTO-TOP UP,21/11/2018,60
D1200G-RESIDENT SERVICES (GF),Travel/Subsistence,OYSTER AUTO-TOP UP,14/11/2018,20
D1200G-RESIDENT SERVICES (GF),Travel/Subsistence,AUTO TOP-UP ARREARS,04/10/2018,20
D1200G-RESIDENT SERVICES (GF),Telecommunications,E N S LTD,15/10/2018,1370.68
D1200G-RESIDENT SERVICES (GF),Travel/Subsistence,LUL TICKET MACHINE,07/11/2018,120
D1200G-RESIDENT SERVICES (GF),Taxi Fares,KINGS TO SW8,04/10/2018,20
D1200G-RESIDENT SERVICES (GF),Facilities-Advertising,EXPRESS NEWS,12/11/2018,30
D1200G-RESIDENT SERVICES (GF),Financial Services,METRO BANK  CLAPHAM HIG,03/12/2018,170
D1200G-RESIDENT SERVICES (GF),Education-Other,C I L I P,04/12/2018,546
D1200G-RESIDENT SERVICES (GF),Education-Other,FORTRESS MASTER LOCKSMITH,12/11/2018,42.2
D1200G-RESIDENT SERVICES (GF),Education-Other,LAMBETH INTERNET PAYM,25/10/2018,21
D1200G-RESIDENT SERVICES (GF),Facilities-Design & Photography,WWW.STOCKSIGNS.CO.UK,21/12/2018,44.52
D1200G-RESIDENT SERVICES (GF),Education-Library Books,AMZN MKTP UK,03/12/2018,19.5
D1200G-RESIDENT SERVICES (GF),Consultancy-Business,BLS*MONDAY.COM,03/11/2018,74.4
D1200G-RESIDENT SERVICES (GF),Travel/Subsistence,OYSTER AUTO-TOP UP,29/11/2018,40
D1200G-RESIDENT SERVICES (GF),Travel/Subsistence,LUL TICKET MACHINE,17/12/2018,20
D1200G-RESIDENT SERVICES (GF),Travel/Subsistence,OYSTER AUTO-TOP UP,14/12/2018,40
D1200G-RESIDENT SERVICES (GF),Taxi Fares,KEESHWN KEYONTE,05/11/2018,240.00
D1200G-RESIDENT SERVICES (GF),Travel/Subsistence,OYSTER ONLINE,26/11/2018,10
D1200G-RESIDENT SERVICES (GF),Travel/Subsistence,OYSTER AUTO-TOP UP,04/10/2018,20
D1200G-RESIDENT SERVICES (GF),Travel/Subsistence,OYSTER ONLINE,17/10/2018,-30
D1200G-RESIDENT SERVICES (GF),Catering Food & Drink,TESCO STORE 2143,02/10/2018,140
D1200G-RESIDENT SERVICES (GF),Travel/Subsistence,OYSTER ONLINE,31/10/2018,60
D1200G-RESIDENT SERVICES (GF),Legal Services-General Support,BINDMANS LLP,25/10/2018,158
D1200G-RESIDENT SERVICES (GF),Education-Other,AMZN Mktp UK,14/10/2018,59.97
D1200G-RESIDENT SERVICES (GF),Education-Other,ICELAND,22/10/2018,43.7
D1200G-RESIDENT SERVICES (GF),Building-General,AMZN MKTP UK,13/12/2018,34.45
D1200G-RESIDENT SERVICES (GF),Travel/Subsistence,TFL AUTOSETTLEMENT,05/12/2018,40
D1200G-RESIDENT SERVICES (GF),Legal Services-General Support,WWW.CARSUK.ORG,27/11/2018,420
D1200G-RESIDENT SERVICES (GF),Travel/Subsistence,OYSTER ONLINE,03/12/2018,-50
D1200G-RESIDENT SERVICES (GF),Travel/Subsistence,TFL ROAD CHARGE,20/11/2018,11.5
D1200G-RESIDENT SERVICES (GF),Domestic Goods-Other,WWW.ARGOS.CO.UK,07/11/2018,33.93
D1200G-RESIDENT SERVICES (GF),Travel/Subsistence,OYSTER ONLINE,11/10/2018,10
D1200G-RESIDENT SERVICES (GF),Travel/Subsistence,OYSTER ONLINE,05/12/2018,99
D1200G-RESIDENT SERVICES (GF),Taxi Fares,CIVIC TO SE11,28/11/2018,15
D1200G-RESIDENT SERVICES (GF),Travel/Subsistence,OYSTER AUTO-TOP UP,30/11/2018,20
D1200G-RESIDENT SERVICES (GF),Travel/Subsistence,OYSTER AUTO-TOP UP,24/11/2018,20
D1200G-RESIDENT SERVICES (GF),Travel/Subsistence,OYSTER AUTO-TOP UP,15/12/2018,40
D1200G-RESIDENT SERVICES (GF),Travel/Subsistence,OYSTER ONLINE,21/11/2018,60
D1200G-RESIDENT SERVICES (GF),Travel/Subsistence,TRAINLINE,11/10/2018,25.76
D1200G-RESIDENT SERVICES (GF),Travel/Subsistence,OYSTER AUTO-TOP UP,19/11/2018,20
D1200G-RESIDENT SERVICES (GF),Travel/Subsistence,OYSTER ONLINE,03/10/2018,30
D1200G-RESIDENT SERVICES (GF),Catering Food & Drink,SAN MARINO,08/11/2018,179
D1200G-RESIDENT SERVICES (GF),Travel/Subsistence,OYSTER ONLINE,07/11/2018,90
D1200G-RESIDENT SERVICES (GF),Travel/Subsistence,AUTO TOP-UP ARREARS,24/10/2018,40
D1200G-RESIDENT SERVICES (GF),Travel/Subsistence,OYSTER AUTO-TOP UP,08/11/2018,20
D1200G-RESIDENT SERVICES (GF),Building-General,AMZN MKTP UK,08/11/2018,17.96
D1200G-RESIDENT SERVICES (GF),Building-Timber,SELCO TRADING CTR,01/11/2018,44.42
D1200G-RESIDENT SERVICES (GF),Travel/Subsistence,OYSTER AUTO-TOP UP,25/11/2018,20
D1200G-RESIDENT SERVICES (GF),Travel/Subsistence,OYSTER ONLINE,23/11/2018,-10
D1200G-RESIDENT SERVICES (GF),Domestic Goods-Other,AMAZON.CO.UK AMAZON.CO.UK,16/10/2018,240
D1200G-RESIDENT SERVICES (GF),Travel/Subsistence,OYSTER ONLINE,11/10/2018,20
D1200G-RESIDENT SERVICES (GF),Travel/Subsistence,AUTO TOP-UP ARREARS,12/10/2018,20
D1200G-RESIDENT SERVICES (GF),Travel/Subsistence,AUTO TOP-UP ARREARS,01/10/2018,20
D1200G-RESIDENT SERVICES (GF),Facilities-Storage,WWW.BIGYELLOW.CO.UK,08/11/2018,108
D1200G-RESIDENT SERVICES (GF),Mail Services-Postage,THE POST OFFICE,13/11/2018,6.5
D1200G-RESIDENT SERVICES (GF),Travel/Subsistence,OYSTER AUTO-TOP UP,13/11/2018,20
D1200G-RESIDENT SERVICES (GF),Travel/Subsistence,TRAINLINE,05/10/2018,87.16
D1200G-RESIDENT SERVICES (GF),Travel/Subsistence,OYSTER ONLINE,30/10/2018,-40
D1200G-RESIDENT SERVICES (GF),Travel/Subsistence,OYSTER AUTO-TOP UP,22/12/2018,20
D1200G-RESIDENT SERVICES (GF),Catering Food & Drink,ASDA STORES 4794,07/12/2018,17.11
D1200G-RESIDENT SERVICES (GF),Professional & Advisory Services,ASSOCIATION FOR COACHING,15/11/2018,140
D1200G-RESIDENT SERVICES (GF),Travel/Subsistence,OYSTER AUTO-TOP UP,28/10/2018,20
D1200G-RESIDENT SERVICES (GF),Education-Other,AMZN Mktp UK,12/10/2018,39.98
D1200G-RESIDENT SERVICES (GF),Education-Library Books,AMZN Mktp UK,08/11/2018,15.4
D1200G-RESIDENT SERVICES (GF),Facilities-Market Research,Prime Fresh,18/10/2018,3.99
D1200G-RESIDENT SERVICES (GF),Utilities,THAMES WATER WEB,15/11/2018,27.08
D1200G-RESIDENT SERVICES (GF),Travel/Subsistence,OYSTER AUTO-TOP UP,05/12/2018,80
D1200G-RESIDENT SERVICES (GF),Travel/Subsistence,OYSTER ONLINE,20/12/2018,20
D1200G-RESIDENT SERVICES (GF),Travel/Subsistence,OYSTER AUTO-TOP UP,25/11/2018,20
D1200G-RESIDENT SERVICES (GF),Taxi Fares,MULTIBALE DISTINATIONS,17/10/2018,95
D1200G-RESIDENT SERVICES (GF),Accommodation,BRITISH A,02/10/2018,263.07
D1200G-RESIDENT SERVICES (GF),Taxi Fares,BR1TO SW8,01/11/2018,70
D1200G-RESIDENT SERVICES (GF),Travel/Subsistence,OYSTER ONLINE,25/10/2018,40
D1200G-RESIDENT SERVICES (GF),Domestic Goods-Commercial,ARGOS CLAPHAM,24/10/2018,119.97
D1200G-RESIDENT SERVICES (GF),Building-Timber,WWW.SELCOBW.COM,30/11/2018,257.05
D1200G-RESIDENT SERVICES (GF),Consultancy-Business,FORTRESS MASTER LOCKSMITH,05/10/2018,101.1
D1200G-RESIDENT SERVICES (GF),Travel/Subsistence,STAGECOACH SERVICE,05/12/2018,54.32
D1200G-RESIDENT SERVICES (GF),Domestic Goods-Other,CURRYS ONLINE,27/11/2018,389.99
D1200G-RESIDENT SERVICES (GF),Travel/Subsistence,OYSTER AUTO-TOP UP,30/11/2018,20
D1200G-RESIDENT SERVICES (GF),Facilities-Advertising,WH SMITH,26/11/2018,9.97
D1200G-RESIDENT SERVICES (GF),Travel/Subsistence,OYSTER ONLINE,21/11/2018,20
D1200G-RESIDENT SERVICES (GF),Travel/Subsistence,OYSTER AUTO-TOP UP,10/12/2018,20
D1200G-RESIDENT SERVICES (GF),Travel/Subsistence,AUTO TOP-UP ARREARS,16/11/2018,20
D1200G-RESIDENT SERVICES (GF),Taxi Fares,WWW.MINICABS.CO.UK,08/10/2018,138.13
D1200G-RESIDENT SERVICES (GF),Education-Library Books,AMAZON.CO.UK,11/11/2018,76.67
D1200G-RESIDENT SERVICES (GF),Travel/Subsistence,TFL CYCLE HIRE,01/12/2018,2
D1200G-RESIDENT SERVICES (GF),Cycles Purchase,HALFORDS 0716,02/10/2018,28.94
D1200G-RESIDENT SERVICES (GF),Furniture-Domestic Furniture,HEALS.CO.UK,26/11/2018,90
D1200G-RESIDENT SERVICES (GF),Stationery,AMZN Mktp UK,23/10/2018,31.09
D1200G-RESIDENT SERVICES (GF),Domestic Goods-Other,ARGOS RETAIL GROUP,19/12/2018,83.98
D1200G-RESIDENT SERVICES (GF),Travel/Subsistence,OYSTER AUTO-TOP UP,30/12/2018,20
D1200G-RESIDENT SERVICES (GF),Travel/Subsistence,LUL TICKET MACHINE,05/10/2018,35
D1200G-RESIDENT SERVICES (GF),Education-Library Books,AMZN MKTP UK,09/11/2018,24.1
D1200G-RESIDENT SERVICES (GF),Accommodation,CASH ADVANCE FEE,26/10/2018,4.43
D1200G-RESIDENT SERVICES (GF),Professional & Advisory Services,CEPHAS PUBLIC POLICY,18/10/2018,489.6
D1200G-RESIDENT SERVICES (GF),Building-General,AMZN MKTP UK,29/11/2018,49.99
D1200G-RESIDENT SERVICES (GF),Building-Timber,JEWSON 3302,30/10/2018,157.18
D1200G-RESIDENT SERVICES (GF),Accommodation,ENTERPRISE,19/12/2018,189
D1200G-RESIDENT SERVICES (GF),Travel/Subsistence,LUL TICKET MACHINE,06/12/2018,10
D1200G-RESIDENT SERVICES (GF),Travel/Subsistence,OYSTER AUTO-TOP UP,16/12/2018,20
D1200G-RESIDENT SERVICES (GF),Mail Services-Postage,POST OFFICE COUNTER,27/10/2018,15.93
D1200G-RESIDENT SERVICES (GF),Travel/Subsistence,OYSTER AUTO-TOP UP,17/11/2018,20
D1200G-RESIDENT SERVICES (GF),Furniture-Domestic Furniture,WWW.IKEA.COM,07/11/2018,210
D1200G-RESIDENT SERVICES (GF),Taxi Fares,SE21 TO SW16,02/11/2018,25
D1200G-RESIDENT SERVICES (GF),Travel/Subsistence,OYSTER ONLINE,22/10/2018,60
D1200G-RESIDENT SERVICES (GF),Travel/Subsistence,OYSTER AUTO-TOP UP,24/10/2018,60
D1200G-RESIDENT SERVICES (GF),Education-Library Books,AMAZON.CO.UK,23/11/2018,20.87
D1200G-RESIDENT SERVICES (GF),Education-Other,AMZN Mktp UK,13/10/2018,33.98
D1200G-RESIDENT SERVICES (GF),Vehicle Parts,PP*ABELLIO LONDON LTD,28/11/2018,96
D1200G-RESIDENT SERVICES (GF),Travel/Subsistence,TFL PENALTY CHARGE,11/12/2018,240
D1200G-RESIDENT SERVICES (GF),Stationery,AMAZON.CO.UK,26/11/2018,8.35
D1200G-RESIDENT SERVICES (GF),Travel/Subsistence,OYSTER AUTO-TOP UP,09/12/2018,20
D1200G-RESIDENT SERVICES (GF),Facilities-Design & Photography,SNAPFISH UK,06/11/2018,33.37
D1200G-RESIDENT SERVICES (GF),Travel/Subsistence,OYSTER ONLINE,06/11/2018,25
D1200G-RESIDENT SERVICES (GF),Education-Library Books,AMZN Mktp UK,13/10/2018,19.48
D1200G-RESIDENT SERVICES (GF),Travel/Subsistence,OYSTER AUTO-TOP UP,01/11/2018,60
D1200G-RESIDENT SERVICES (GF),Travel/Subsistence,OYSTER AUTO-TOP UP,05/10/2018,20
D1200G-RESIDENT SERVICES (GF),Education-Library Books,Amazon.co.uk,25/11/2018,6.99
D1200G-RESIDENT SERVICES (GF),Education-Other,AMZN Mktp UK,12/10/2018,99.95
D1200G-RESIDENT SERVICES (GF),Building-Others,PAYPAL,05/10/2018,1908
D1200G-RESIDENT SERVICES (GF),Education-Other,WWW.SHOPFITTINGSUPPLIE,08/11/2018,522
D1200G-RESIDENT SERVICES (GF),Building-Timber,SCREWFIX BRIXTON,04/12/2018,25.96
D1200G-RESIDENT SERVICES (GF),Cemetery & Crematorium,AMAZON.CO.UK,30/11/2018,13.49
D1200G-RESIDENT SERVICES (GF),Travel/Subsistence,OYSTER AUTO-TOP UP,29/11/2018,40
D1200G-RESIDENT SERVICES (GF),Consultancy-Other,UCL BUSINESS PLC,09/11/2018,120
D1200G-RESIDENT SERVICES (GF),Building-Tools,571 STOCKWELL,26/11/2018,241.2
D1200G-RESIDENT SERVICES (GF),Travel/Subsistence,OYSTER AUTO-TOP UP,21/12/2018,60
D1200G-RESIDENT SERVICES (GF),Travel/Subsistence,OYSTER AUTO-TOP UP,15/12/2018,40
D1200G-RESIDENT SERVICES (GF),Travel/Subsistence,OYSTER ONLINE,16/11/2018,49
D1200G-RESIDENT SERVICES (GF),Mail Services-Postage,POST OFFICE SELF SERVI,08/11/2018,10.62
D1200G-RESIDENT SERVICES (GF),Travel/Subsistence,OYSTER AUTO-TOP UP,05/11/2018,20
D1200G-RESIDENT SERVICES (GF),Travel/Subsistence,OYSTER AUTO-TOP UP,15/11/2018,20
D1200G-RESIDENT SERVICES (GF),Travel/Subsistence,OYSTER AUTO-TOP UP,16/11/2018,120
D1200G-RESIDENT SERVICES (GF),Travel/Subsistence,TRAINLINE,15/10/2018,15.51
D1200G-RESIDENT SERVICES (GF),Travel/Subsistence,OYSTER AUTO-TOP UP,09/11/2018,80
D1200G-RESIDENT SERVICES (GF),Accommodation,BRITISH A,24/10/2018,926.82
D1200G-RESIDENT SERVICES (GF),Education-Library Books,AMZN Mktp UK,11/10/2018,8.79
D1200G-RESIDENT SERVICES (GF),Education-Other,POUNDLAND LTD,31/12/2018,9.05
D1200G-RESIDENT SERVICES (GF),Education-Other,AJ PRODUCTS UK LTD,13/11/2018,981.6
D1200G-RESIDENT SERVICES (GF),Catering Food & Drink,TESCO STORE 2572,05/12/2018,200
D1200G-RESIDENT SERVICES (GF),Travel/Subsistence,OYSTER AUTO-TOP UP,13/12/2018,80
D1200G-RESIDENT SERVICES (GF),Travel/Subsistence,OYSTER ONLINE,12/12/2018,-19
D1200G-RESIDENT SERVICES (GF),Works-Construction,SQ *COMPARE THE MAN AND V,12/10/2018,124.43
D1200G-RESIDENT SERVICES (GF),Travel/Subsistence,AUTO TOP-UP ARREARS,05/10/2018,40
D1200G-RESIDENT SERVICES (GF),Education-Library Books,Amazon.co.uk,06/10/2018,9.37
D1200G-RESIDENT SERVICES (GF),Travel/Subsistence,TRAINLINE,12/11/2018,100.08
D1200G-RESIDENT SERVICES (GF),Catering Food & Drink,LOW COST SUPERMARKET,04/10/2018,50
D1200G-RESIDENT SERVICES (GF),Travel/Subsistence,AUTO TOP-UP ARREARS,23/10/2018,20
D1200G-RESIDENT SERVICES (GF),Mail Services-Postage,POST OFFICE COUNTER,03/10/2018,31.86
D1200G-RESIDENT SERVICES (GF),Travel/Subsistence,OYSTER ONLINE,02/10/2018,20
D1200G-RESIDENT SERVICES (GF),Travel/Subsistence,OYSTER AUTO-TOP UP,04/11/2018,20
D1200G-RESIDENT SERVICES (GF),Financial Services,LAMBETH INTERNET PAYM,25/10/2018,21
D1200G-RESIDENT SERVICES (GF),Domestic Goods-Other,AMAZON.CO.UK,13/12/2018,22.48
D1200G-RESIDENT SERVICES (GF),Facilities-Advertising,FACEBK SWDUAL6BV2,06/11/2018,40.56
D1200G-RESIDENT SERVICES (GF),Financial Services,HM PASSPORT OFFICE,22/12/2018,85
D1200G-RESIDENT SERVICES (GF),Accommodation,LONDON CROYDON HOTEL,19/11/2018,315.66
D1200G-RESIDENT SERVICES (GF),IT Software,EXCEL TAXIS NETWORK,16/11/2018,56
D1200G-RESIDENT SERVICES (GF),Travel/Subsistence,OYSTER AUTO-TOP UP,06/11/2018,20
D1200G-RESIDENT SERVICES (GF),Travel/Subsistence,OYSTER ONLINE,23/10/2018,60
D1200G-RESIDENT SERVICES (GF),Mail Services-Postage,POST OFFICE COUNTER,01/10/2018,2.11
D1200G-RESIDENT SERVICES (GF),Domestic Goods-Other,AMAZON.CO.UK,15/11/2018,27.98
D1200G-RESIDENT SERVICES (GF),Education-Other,ARMOUR LOCK AND SAFE,19/10/2018,6.6
D1200G-RESIDENT SERVICES (GF),Building-Timber,SCREWFIX DIRECT,25/10/2018,119.96
D1200G-RESIDENT SERVICES (GF),Travel/Subsistence,LUL TICKET MACHINE,28/11/2018,30
D1200G-RESIDENT SERVICES (GF),Travel/Subsistence,OYSTER AUTO-TOP UP,29/11/2018,60
D1200G-RESIDENT SERVICES (GF),IT Software,SIMPLY PROPERTY,14/12/2018,-150
D1200G-RESIDENT SERVICES (GF),Travel/Subsistence,OYSTER AUTO-TOP UP,21/10/2018,20
D1200G-RESIDENT SERVICES (GF),Travel/Subsistence,OYSTER AUTO-TOP UP,02/11/2018,80
D1200G-RESIDENT SERVICES (GF),Financial Services,BRIXTON 4,28/11/2018,50
D1200G-RESIDENT SERVICES (GF),Education-Library Books,ABEBOOKS.UK FP5L97,17/10/2018,10.33
D1200G-RESIDENT SERVICES (GF),Clothing-Children/Adults,PRIMARK,16/12/2018,5.9
D1200G-RESIDENT SERVICES (GF),Accommodation,JURYS INN NEWCASTLEGATESH,04/10/2018,170
D1200G-RESIDENT SERVICES (GF),Travel/Subsistence,OYSTER AUTO-TOP UP,26/10/2018,40
D1200G-RESIDENT SERVICES (GF),Domestic Goods-Other,AO RETAIL LIMITED,15/10/2018,654
D1200G-RESIDENT SERVICES (GF),Travel/Subsistence,OYSTER ONLINE,02/11/2018,20
D1200G-RESIDENT SERVICES (GF),Education-Other,CO-OP GROUP 070803,06/11/2018,11.48
D1200G-RESIDENT SERVICES (GF),Education-Other,MORLEYS,24/10/2018,15.45
D1200G-RESIDENT SERVICES (GF),Travel/Subsistence,OYSTER ONLINE,19/10/2018,80
D1200G-RESIDENT SERVICES (GF),Travel/Subsistence,OYSTER AUTO-TOP UP,12/10/2018,40
D1200G-RESIDENT SERVICES (GF),Arts & Leisure Services,BRIXTON RECREATION CTR,02/11/2018,179
D1200G-RESIDENT SERVICES (GF),Education-Library Books,AMZN Mktp UK,07/11/2018,10.82
D1200G-RESIDENT SERVICES (GF),Education-Other,AMAZON.CO.UK,05/11/2018,19.95
D1200G-RESIDENT SERVICES (GF),Travel/Subsistence,OYSTER AUTO-TOP UP,07/12/2018,40
D1200G-RESIDENT SERVICES (GF),Organised Activities,MY DONATE,04/12/2018,300
D1200G-RESIDENT SERVICES (GF),Travel/Subsistence,OYSTER ONLINE,20/11/2018,-5
D1200G-RESIDENT SERVICES (GF),Travel/Subsistence,OYSTER ONLINE,15/10/2018,30
D1200G-RESIDENT SERVICES (GF),Travel/Subsistence,OYSTER ONLINE,17/10/2018,30
D1200G-RESIDENT SERVICES (GF),Travel/Subsistence,OYSTER AUTO-TOP UP,12/10/2018,60
D1200G-RESIDENT SERVICES (GF),Travel/Subsistence,EUSTON STN SST,14/10/2018,30
D1200G-RESIDENT SERVICES (GF),Domestic Goods-Other,WWW.ARGOS.CO.UK,09/11/2018,235.94
D1200G-RESIDENT SERVICES (GF),Travel/Subsistence,OYSTER AUTO-TOP UP,04/11/2018,20
D1200G-RESIDENT SERVICES (GF),Catering Food & Drink,TESCO STORE 2143,02/10/2018,131.4
D1200G-RESIDENT SERVICES (GF),Education-Other,AMAZON.CO.UK,05/11/2018,24.97
D1200G-RESIDENT SERVICES (GF),Furniture-Domestic Furniture,WWW.IKEA.COM,20/11/2018,330
D1200G-RESIDENT SERVICES (GF),Cycles Purchase,THE LONDON CYCLE WORKS,11/10/2018,14
D1200G-RESIDENT SERVICES (GF),Building-Timber,SELCO TRADING CTR,24/10/2018,104.69
D1200G-RESIDENT SERVICES (GF),Mail Services-Postage,AMZN Mktp UK,16/12/2018,2.37
D1200G-RESIDENT SERVICES (GF),Stationery,AMZN Mktp UK,26/10/2018,8.5
D1200G-RESIDENT SERVICES (GF),Catering Food & Drink,TESCO STORE 2143,19/12/2018,70
D1200G-RESIDENT SERVICES (GF),Financial Services,LONDON BOROUGH OF NEWH,10/12/2018,27
D1200G-RESIDENT SERVICES (GF),Accommodation,FLEXISTAY LTD,26/11/2018,555
D1200G-RESIDENT SERVICES (GF),Travel/Subsistence,LOW COST SUPERMARKET,26/10/2018,100
D1200G-RESIDENT SERVICES (GF),Travel/Subsistence,OYSTER ONLINE,21/11/2018,70
D1200G-RESIDENT SERVICES (GF),Travel/Subsistence,OYSTER AUTO-TOP UP,20/10/2018,100
D1200G-RESIDENT SERVICES (GF),Travel/Subsistence,AUTO TOP-UP ARREARS,20/11/2018,20
D1200G-RESIDENT SERVICES (GF),Travel/Subsistence,OYSTER AUTO-TOP UP,02/11/2018,20
D1200G-RESIDENT SERVICES (GF),Domestic Goods-Other,WWW.ARGOS.CO.UK,02/10/2018,224.99
D1200G-RESIDENT SERVICES (GF),Education-Library Books,AMAZON.CO.UK,25/11/2018,149.69
D1200G-RESIDENT SERVICES (GF),Education-Other,CEL-UK,01/11/2018,1214.76
D1200G-RESIDENT SERVICES (GF),Furniture-Domestic Furniture,BEDWORLD,05/12/2018,177.45
D1200G-RESIDENT SERVICES (GF),Accommodation,THE MAIDS HEAD HOTEL L,19/12/2018,432
D1200G-RESIDENT SERVICES (GF),Haulage,PAYPAL,29/11/2018,139.48
D1200G-RESIDENT SERVICES (GF),Education-Library Books,AMZN MKTP UK,20/11/2018,252.04
D1200G-RESIDENT SERVICES (GF),Facilities-Printing,VISTAPR*VistaPrint.com,08/10/2018,1569.54
D1200G-RESIDENT SERVICES (GF),Domestic Goods-Other,CURRYS ONLINE,17/10/2018,-365.62
D1200G-RESIDENT SERVICES (GF),Travel/Subsistence,OYSTER ONLINE,04/10/2018,55
D1200G-RESIDENT SERVICES (GF),Education-Library Books,AMZN MKTP UK,31/10/2018,52.23
D1200G-RESIDENT SERVICES (GF),Financial Services,THE HOME OFFICE,05/10/2018,26
D1200G-RESIDENT SERVICES (GF),Catering Food & Drink,SAINSBURY'S SMKT,02/10/2018,7.3
D1200G-RESIDENT SERVICES (GF),Furniture-Domestic Furniture,WWW.IKEA.COM,12/12/2018,257.75
D1200G-RESIDENT SERVICES (GF),Consultancy-Other,DONATE.GOSH.ORG,02/11/2018,100
D1200G-RESIDENT SERVICES (GF),Building-Paint,S LONDON DECORTORS,22/11/2018,58.01
D1200G-RESIDENT SERVICES (GF),Accommodation,BATH HOUSE HOTEL,07/12/2018,82.5
D1200G-RESIDENT SERVICES (GF),Travel/Subsistence,OYSTER AUTO-TOP UP,07/12/2018,40
D1200G-RESIDENT SERVICES (GF),Travel/Subsistence,VIRGIN TRAINS,30/11/2018,100.5
D1200G-RESIDENT SERVICES (GF),Travel/Subsistence,OYSTER ONLINE,04/10/2018,180
D1200G-RESIDENT SERVICES (GF),Domestic Goods-Other,POUNDLAND LTD 1203,04/10/2018,1
D1200G-RESIDENT SERVICES (GF),Travel/Subsistence,OYSTER AUTO-TOP UP,13/10/2018,60
D1200G-RESIDENT SERVICES (GF),Education-Library Books,ABEBOOKS.UK FP5L96,17/10/2018,3.47
D1200G-RESIDENT SERVICES (GF),Education-Library Books,AMZN Mktp UK,19/12/2018,33.98
D1200G-RESIDENT SERVICES (GF),Education-Other,AMAZON.CO.UK,05/11/2018,69
D1200G-RESIDENT SERVICES (GF),Consultancy-Business,BLS*MONDAY.COM,12/12/2018,148.8
D1200G-RESIDENT SERVICES (GF),Education-Library Books,AMZN Mktp UK,04/10/2018,19.89
D1200G-RESIDENT SERVICES (GF),Travel/Subsistence,TRIP.COM TRIP.COM,18/12/2018,69.66
D1200G-RESIDENT SERVICES (GF),Travel/Subsistence,OYSTER ONLINE,27/11/2018,30
D1200G-RESIDENT SERVICES (GF),Travel/Subsistence,OYSTER ONLINE,14/12/2018,30
D1200G-RESIDENT SERVICES (GF),Travel/Subsistence,OYSTER AUTO-TOP UP,12/12/2018,40
D1200G-RESIDENT SERVICES (GF),Clothing-Children/Adults,WE BRAND IT,12/12/2018,170.4
D1200G-RESIDENT SERVICES (GF),Travel/Subsistence,OYSTER AUTO-TOP UP,16/12/2018,20
D1200G-RESIDENT SERVICES (GF),Travel/Subsistence,OYSTER ONLINE,14/11/2018,20
D1200G-RESIDENT SERVICES (GF),IT Software-Customised,WP ENGINE,06/11/2018,426.97
D1200G-RESIDENT SERVICES (GF),Travel/Subsistence,OYSTER ONLINE,03/10/2018,60
D1200G-RESIDENT SERVICES (GF),Travel/Subsistence,OYSTER ONLINE,05/10/2018,40
D1200G-RESIDENT SERVICES (GF),Education-Library Books,AMZN MKTP UK,23/11/2018,11.79
D1200G-RESIDENT SERVICES (GF),Facilities-Market Research,Amazon Prime,11/11/2018,7.99
D1200G-RESIDENT SERVICES (GF),Travel/Subsistence,OYSTER AUTO-TOP UP,21/12/2018,40
D1200G-RESIDENT SERVICES (GF),Taxi Fares,GREYHOUND CARS LTD,27/11/2018,69.8
D1200G-RESIDENT SERVICES (GF),Travel/Subsistence,OYSTER AUTO-TOP UP,26/11/2018,40
D1200G-RESIDENT SERVICES (GF),Haulage,www.anyvan.com,22/11/2018,87
D1200G-RESIDENT SERVICES (GF),Taxi Fares,SW16 TO SW2 RETURN,12/12/2018,50
D1200G-RESIDENT SERVICES (GF),Travel/Subsistence,OYSTER ONLINE,15/11/2018,15
D1200G-RESIDENT SERVICES (GF),Taxi Fares,TWO LAST JOBS,29/10/2018,210
D1200G-RESIDENT SERVICES (GF),Travel/Subsistence,OYSTER AUTO-TOP UP,09/10/2018,20
D1200G-RESIDENT SERVICES (GF),Travel/Subsistence,OYSTER AUTO-TOP UP,09/11/2018,20
D1200G-RESIDENT SERVICES (GF),Travel/Subsistence,OYSTER AUTO-TOP UP,25/10/2018,40
D1200G-RESIDENT SERVICES (GF),Travel/Subsistence,SE BRIXTON TO,28/11/2018,79.8
D1200G-RESIDENT SERVICES (GF),Domestic Goods-Other,WWW.ARGOS.CO.UK,10/12/2018,63.91
D1200G-RESIDENT SERVICES (GF),Domestic Goods-Other,WWW.ARGOS.CO.UK,18/12/2018,183.94
D1200G-RESIDENT SERVICES (GF),Travel/Subsistence,OYSTER AUTO-TOP UP,06/12/2018,40
D1200G-RESIDENT SERVICES (GF),Travel/Subsistence,OYSTER AUTO-TOP UP,30/12/2018,20
D1200G-RESIDENT SERVICES (GF),Travel/Subsistence,OYSTER AUTO-TOP UP,30/12/2018,20
D1200G-RESIDENT SERVICES (GF),Travel/Subsistence,OYSTER AUTO-TOP UP,17/11/2018,20
D1200G-RESIDENT SERVICES (GF),Facilities-Storage,BIG YELLOW BOX & LOCK,06/11/2018,146.4
D1200G-RESIDENT SERVICES (GF),Travel/Subsistence,OYSTER AUTO-TOP UP,01/11/2018,20
D1200G-RESIDENT SERVICES (GF),Building-Paint,S LONDON DECORTORS,14/11/2018,129.28
D1200G-RESIDENT SERVICES (GF),Education-Library Books,AMZN Mktp UK,18/12/2018,29.99
D1200G-RESIDENT SERVICES (GF),IT Software,SIMPLY PROPERTY,30/11/2018,150
D1200G-RESIDENT SERVICES (GF),Education-Musical Instruments,SOUTH LONDON MUSIC,09/11/2018,41.99
D1200G-RESIDENT SERVICES (GF),Travel/Subsistence,OYSTER AUTO-TOP UP,25/11/2018,20
D1200G-RESIDENT SERVICES (GF),Arts & Leisure Services,BETTER/SPORTS CO - RT,13/12/2018,30
D1200G-RESIDENT SERVICES (GF),Travel/Subsistence,OYSTER AUTO-TOP UP,16/12/2018,40
D1200G-RESIDENT SERVICES (GF),Catering Food & Drink,APNI RASIO,20/11/2018,177
D1200G-RESIDENT SERVICES (GF),Accommodation,LHG,20/11/2018,315.66
D1200G-RESIDENT SERVICES (GF),Accommodation,FLEXISTAY LTD,12/11/2018,650
D1200G-RESIDENT SERVICES (GF),Travel/Subsistence,OYSTER AUTO-TOP UP,19/10/2018,120
D1200G-RESIDENT SERVICES (GF),Travel/Subsistence,OYSTER ONLINE,10/10/2018,30
D1200G-RESIDENT SERVICES (GF),Horticultural-Other,WWW.PRESTIGEFLOWERS.CO.U,08/10/2018,67.58
D1200G-RESIDENT SERVICES (GF),Travel/Subsistence,OYSTER AUTO-TOP UP,08/11/2018,100
D1200G-RESIDENT SERVICES (GF),Education-Other,AMZN Mktp UK,09/12/2018,7.99
D1200G-RESIDENT SERVICES (GF),Education-Other,EUROFFICE.CO.UK,25/10/2018,908.43
D1200G-RESIDENT SERVICES (GF),Travel/Subsistence,LUL TICKET MACHINE,10/10/2018,50
D1200G-RESIDENT SERVICES (GF),Travel/Subsistence,OYSTER AUTO-TOP UP,21/12/2018,20
D1200G-RESIDENT SERVICES (GF),Travel/Subsistence,OYSTER AUTO-TOP UP,20/12/2018,80
D1200G-RESIDENT SERVICES (GF),Facilities-Storage,WWW.BIGYELLOW.CO.UK,27/11/2018,98
D1200G-RESIDENT SERVICES (GF),Financial Services-Grants,ALLPAY *PEABODY,15/11/2018,300
D1200G-RESIDENT SERVICES (GF),Financial Services,HM PASSPORT OFFICE,14/11/2018,49
D1200G-RESIDENT SERVICES (GF),Domestic Goods-Other,WWW.ARGOS.CO.UK,15/11/2018,-79.99
D1200G-RESIDENT SERVICES (GF),Travel/Subsistence,OYSTER AUTO-TOP UP,13/10/2018,20
D1200G-RESIDENT SERVICES (GF),Travel/Subsistence,OYSTER AUTO-TOP UP,03/10/2018,20
D1200G-RESIDENT SERVICES (GF),Education-Other,SAINSBURYS           CASH,05/11/2018,200
D1200G-RESIDENT SERVICES (GF),Education-Other,MORLEYS,24/10/2018,50
D1200G-RESIDENT SERVICES (GF),Building-Floors,FLOOR FASHION LTD,29/11/2018,455
D1200G-RESIDENT SERVICES (GF),Domestic Goods-Other,WWW.ARGOS.CO.UK,14/11/2018,131.95
D1200G-RESIDENT SERVICES (GF),Accommodation,AIRBNB * HM28J3HYCH,31/10/2018,51.96
D1200G-RESIDENT SERVICES (GF),Arts & Leisure Services,WWW.TENPIN.CO.UK,19/10/2018,32.25
D1200G-RESIDENT SERVICES (GF),Taxi Fares,2ND NOV TILL 9TH NOV,06/11/2018,480
D1200G-RESIDENT SERVICES (GF),Taxi Fares,WWW.MINICABS.CO.UK,09/10/2018,27.5
D1200G-RESIDENT SERVICES (GF),Education-Library Books,AMAZON.CO.UK,18/11/2018,26.08
D1200G-RESIDENT SERVICES (GF),Travel/Subsistence,TFL ROAD CHARGE,16/10/2018,14
D1200G-RESIDENT SERVICES (GF),Catering Food & Drink,TESCO STORES-2143,10/10/2018,34.6
D1200G-RESIDENT SERVICES (GF),Travel/Subsistence,OYSTER AUTO-TOP UP,10/10/2018,20
D1200G-RESIDENT SERVICES (GF),Taxi Fares,CIVIC TO SW16 MIHEALA,02/11/2018,25
D1200G-RESIDENT SERVICES (GF),Education-Library Books,AMZN MKTP UK,10/11/2018,31.96
D1200G-RESIDENT SERVICES (GF),Travel/Subsistence,OYSTER ONLINE,10/12/2018,20
D1200G-RESIDENT SERVICES (GF),Financial Services,GRO HM PASSPORT OFFICE,28/11/2018,9.25
D1200G-RESIDENT SERVICES (GF),Travel/Subsistence,OYSTER ONLINE,09/11/2018,30
D1200G-RESIDENT SERVICES (GF),Stationery,AMZN Mktp UK,05/10/2018,40.96
D1200G-RESIDENT SERVICES (GF),Travel/Subsistence,OYSTER ONLINE,18/10/2018,-10
D1200G-RESIDENT SERVICES (GF),Financial Services,HM PASSPORT OFFICE,12/11/2018,90
D1200G-RESIDENT SERVICES (GF),Financial Services,HM PASSPORT OFFICE,10/11/2018,170
D1200G-RESIDENT SERVICES (GF),Travel/Subsistence,OYSTER AUTO-TOP UP,04/11/2018,20
D1200G-RESIDENT SERVICES (GF),Education-Other,POUND PLUS,10/12/2018,15
D1200G-RESIDENT SERVICES (GF),Catering Food & Drink,TESCO STORES 5999,02/10/2018,9.85
D1200G-RESIDENT SERVICES (GF),Utilities,CASTLE WATER,05/12/2018,203.29
D1200G-RESIDENT SERVICES (GF),Stationery,AMZN MKTP UK,27/11/2018,33.72
D1200G-RESIDENT SERVICES (GF),Domestic Goods-Other,WWW.ARGOS.CO.UK,20/12/2018,193.94
D1200G-RESIDENT SERVICES (GF),Catering Food & Drink,TESCO STORE 2143,24/11/2018,66.26
D1200G-RESIDENT SERVICES (GF),Domestic Goods-Other,WWW.ARGOS.CO.UK,12/12/2018,40
D1200G-RESIDENT SERVICES (GF),Clothing-Children/Adults,WHITEHALL CLOTHIER,17/12/2018,127.95
D1200G-RESIDENT SERVICES (GF),Travel/Subsistence,OYSTER AUTO-TOP UP,19/11/2018,20
D1200G-RESIDENT SERVICES (GF),Travel/Subsistence,OYSTER ONLINE,06/11/2018,90
D1200G-RESIDENT SERVICES (GF),Travel/Subsistence,OYSTER ONLINE,11/10/2018,-50
D1200G-RESIDENT SERVICES (GF),Cleaning-Chemical,PAYPAL,31/10/2018,7.95
D1200G-RESIDENT SERVICES (GF),Taxi Fares,LEONIE BOOKING,07/11/2018,50
D1200G-RESIDENT SERVICES (GF),Education-Other,AMZN MKTP UK,05/11/2018,39.99
D1200G-RESIDENT SERVICES (GF),Travel/Subsistence,OYSTER ONLINE,21/12/2018,60
D1200G-RESIDENT SERVICES (GF),Travel/Subsistence,OYSTER ONLINE,19/12/2018,30
D1200G-RESIDENT SERVICES (GF),Domestic Goods-Other,POUNDLAND LTD 1203,03/12/2018,6.05
D1200G-RESIDENT SERVICES (GF),Mail Services-Postage,TESCO STORE 2143,11/10/2018,41.76
D1200G-RESIDENT SERVICES (GF),Travel/Subsistence,LUL TICKET MACHINE,21/11/2018,59.1
D1200G-RESIDENT SERVICES (GF),Travel/Subsistence,OYSTER AUTO-TOP UP,19/10/2018,20
D1200G-RESIDENT SERVICES (GF),Financial Services,HM PASSPORT OFFICE,23/10/2018,175.5
D1200G-RESIDENT SERVICES (GF),Travel/Subsistence,OYSTER ONLINE,02/10/2018,10
D1200G-RESIDENT SERVICES (GF),Taxi Fares,CIVIC TO SW16 RETURN,01/10/2018,50
D1200G-RESIDENT SERVICES (GF),Travel/Subsistence,LUL TICKET MACHINE,13/11/2018,30
D1200G-RESIDENT SERVICES (GF),Books/Publications/Resources,Milano Stores Ltd,08/11/2018,71
D1200G-RESIDENT SERVICES (GF),Facilities-Printing,CENTRAL SOURCE LTD,12/10/2018,479.28
D1200G-RESIDENT SERVICES (GF),Facilities-Advertising,EXPRESS NEWS,20/12/2018,60
D1200G-RESIDENT SERVICES (GF),Mail Services-Postage,POST OFFICE SELF SERVI,07/11/2018,6.5
D1200G-RESIDENT SERVICES (GF),Travel/Subsistence,TFL AUTOSETTLEMENT,09/11/2018,20
D1200G-RESIDENT SERVICES (GF),Facilities-Advertising,WH SMITH,03/10/2018,3.49
D1200G-RESIDENT SERVICES (GF),Travel/Subsistence,OYSTER AUTO-TOP UP,03/10/2018,40
D1200G-RESIDENT SERVICES (GF),Travel/Subsistence,OYSTER ONLINE,09/11/2018,10
D1200G-RESIDENT SERVICES (GF),Building-Timber,SCREWFIX BRIXTON,05/12/2018,93.23
D1200G-RESIDENT SERVICES (GF),Education-Library Books,AMZN MKTP UK,11/12/2018,13.8
D1200G-RESIDENT SERVICES (GF),Travel/Subsistence,OYSTER AUTO-TOP UP,20/12/2018,80
D1200G-RESIDENT SERVICES (GF),Taxi Fares,CM16 TO SW8,22/11/2018,120
D1200G-RESIDENT SERVICES (GF),Travel/Subsistence,OYSTER ONLINE,13/12/2018,30
D1200G-RESIDENT SERVICES (GF),Domestic Goods-Other,WWW.ARGOS.CO.UK,21/11/2018,141.95
D1200G-RESIDENT SERVICES (GF),Furniture-Domestic Furniture,F4H HOLDINGS LTD,21/11/2018,314.99
D1200G-RESIDENT SERVICES (GF),Travel/Subsistence,OYSTER AUTO-TOP UP,14/11/2018,60
D1200G-RESIDENT SERVICES (GF),Travel/Subsistence,OYSTER AUTO-TOP UP,14/10/2018,40
D1200G-RESIDENT SERVICES (GF),Domestic Goods-Other,AMAZON.CO.UK AMAZON.CO.UK,17/10/2018,240
D1200G-RESIDENT SERVICES (GF),Catering Food & Drink,LOW COST SUPERMARKET,02/10/2018,25
D1200G-RESIDENT SERVICES (GF),Catering Food & Drink,SAINSBURY'S SMKT,08/11/2018,200
D1200G-RESIDENT SERVICES (GF),Travel/Subsistence,TRAINLINE,22/10/2018,177.62
D1200G-RESIDENT SERVICES (GF),Travel/Subsistence,OYSTER AUTO-TOP UP,24/10/2018,40
D1200G-RESIDENT SERVICES (GF),Travel/Subsistence,AUTO TOP-UP ARREARS,29/11/2018,20
D1200G-RESIDENT SERVICES (GF),Travel/Subsistence,OYSTER AUTO-TOP UP,23/11/2018,80
D1200G-RESIDENT SERVICES (GF),Travel/Subsistence,OYSTER AUTO-TOP UP,13/12/2018,40
D1200G-RESIDENT SERVICES (GF),Travel/Subsistence,OYSTER AUTO-TOP UP,03/10/2018,60
D1200G-RESIDENT SERVICES (GF),Facilities-Storage,SAFESTORE LIMITED,13/11/2018,552.11
D1200G-RESIDENT SERVICES (GF),Travel/Subsistence,OYSTER AUTO-TOP UP,03/11/2018,40
D1200G-RESIDENT SERVICES (GF),Education-Other,AMZN Mktp UK,07/12/2018,59.99
D1200G-RESIDENT SERVICES (GF),Education-Other,OSC FURNITURE LTD,25/10/2018,609.8
D1200G-RESIDENT SERVICES (GF),Travel/Subsistence,OYSTER AUTO-TOP UP,13/12/2018,40
D1200G-RESIDENT SERVICES (GF),Travel/Subsistence,OYSTER ONLINE,14/11/2018,60
D1200G-RESIDENT SERVICES (GF),Travel/Subsistence,OYSTER ONLINE,09/10/2018,-10
D1200G-RESIDENT SERVICES (GF),Travel/Subsistence,AUTO TOP-UP ARREARS,21/11/2018,20
D1200G-RESIDENT SERVICES (GF),Education-Library Books,Amazon.co.uk,10/10/2018,25.49
D1200G-RESIDENT SERVICES (GF),Travel/Subsistence,OYSTER AUTO-TOP UP,14/12/2018,40
D1200G-RESIDENT SERVICES (GF),Facilities-Market Research,MAILCHIMP,16/12/2018,72.38
D1200G-RESIDENT SERVICES (GF),Facilities-Market Research,MAILCHIMP,16/10/2018,69.34
D1200G-RESIDENT SERVICES (GF),Education-Library Books,AMZN MKTP UK,15/10/2018,79.96
D1200G-RESIDENT SERVICES (GF),Travel/Subsistence,TRAINLINE,05/11/2018,-7
D1200G-RESIDENT SERVICES (GF),Domestic Goods-Other,WWW.ARGOS.CO.UK,20/12/2018,26.95
D1200G-RESIDENT SERVICES (GF),Domestic Goods-Other,WWW.ARGOS.CO.UK,05/12/2018,-139.99
D1200G-RESIDENT SERVICES (GF),Furniture-Domestic Furniture,WWW.IKEA.COM,19/12/2018,230
D1200G-RESIDENT SERVICES (GF),Travel/Subsistence,OYSTER AUTO-TOP UP,15/12/2018,20
D1200G-RESIDENT SERVICES (GF),Taxi Fares,CIVIC DA5 RETURN,15/10/2018,160
D1200G-RESIDENT SERVICES (GF),Travel/Subsistence,OYSTER AUTO-TOP UP,14/10/2018,60
D1200G-RESIDENT SERVICES (GF),Travel/Subsistence,OYSTER AUTO-TOP UP,01/10/2018,40
D1200G-RESIDENT SERVICES (GF),Taxi Fares,TW13 TO SS14,12/11/2018,280
D1200G-RESIDENT SERVICES (GF),Travel/Subsistence,OYSTER AUTO-TOP UP,02/11/2018,20
D1200G-RESIDENT SERVICES (GF),Travel/Subsistence,OYSTER AUTO-TOP UP,05/10/2018,60
D1200G-RESIDENT SERVICES (GF),Education-Library Books,AMZN Mktp UK,19/11/2018,45.9
D1200G-RESIDENT SERVICES (GF),Cemetery & Crematorium,AMZN Mktp UK,16/10/2018,49.02
D1200G-RESIDENT SERVICES (GF),Catering Food & Drink,TESCO STORE 2143,21/12/2018,30
D1200G-RESIDENT SERVICES (GF),Travel/Subsistence,TFL ROAD CHARGE,18/12/2018,11.5
D1200G-RESIDENT SERVICES (GF),Domestic Goods-Other,ARGOS RETAIL GROUP,29/11/2018,69
D1200G-RESIDENT SERVICES (GF),Travel/Subsistence,OYSTER ONLINE,20/11/2018,20
D1200G-RESIDENT SERVICES (GF),Travel/Subsistence,OYSTER ONLINE,18/10/2018,180
D1200G-RESIDENT SERVICES (GF),Travel/Subsistence,TRAINLINE,04/10/2018,18.55
D1200G-RESIDENT SERVICES (GF),Travel/Subsistence,OYSTER AUTO-TOP UP,14/10/2018,20
D1200G-RESIDENT SERVICES (GF),Travel/Subsistence,OYSTER AUTO-TOP UP,17/11/2018,60
D1200G-RESIDENT SERVICES (GF),Travel/Subsistence,OYSTER ONLINE,10/10/2018,30
D1200G-RESIDENT SERVICES (GF),Travel/Subsistence,OYSTER ONLINE,02/11/2018,-30
D1200G-RESIDENT SERVICES (GF),Travel/Subsistence,OYSTER ONLINE,05/11/2018,100
D1200G-RESIDENT SERVICES (GF),Domestic Goods-Other,POUNDLAND LTD 1203,29/10/2018,7
D1200G-RESIDENT SERVICES (GF),Travel/Subsistence,LUL TICKET MACHINE,22/10/2018,30
D1200G-RESIDENT SERVICES (GF),Building-Timber,SCREWFIX BRIXTON,19/12/2018,3.09
D1200G-RESIDENT SERVICES (GF),Financial Services,HM PASSPORT OFFICE,29/11/2018,58.5
D1200G-RESIDENT SERVICES (GF),Financial Services,GRO HM PASSPORT OFFICE,06/11/2018,58.3
D1200G-RESIDENT SERVICES (GF),Domestic Goods-Other,ARGOS RETAIL GROUP,11/10/2018,20
D1200G-RESIDENT SERVICES (GF),Travel/Subsistence,OYSTER ONLINE,17/10/2018,25
D1200G-RESIDENT SERVICES (GF),Taxi Fares,SW2 TO SW2,12/10/2018,10
D1200G-RESIDENT SERVICES (GF),Furniture-Domestic Furniture,DFS Trading Limited,07/11/2018,468
D1200G-RESIDENT SERVICES (GF),Taxi Fares,WWW.ADDISONLEE.COM,07/10/2018,39.75
D1200G-RESIDENT SERVICES (GF),Education-Library Books,AMAZON.CO.UK,22/11/2018,25.84
D1200G-RESIDENT SERVICES (GF),Books/Publications/Resources,SAINSBURYS           CASH,02/10/2018,160
D1200G-RESIDENT SERVICES (GF),Education-Arts/Crafts,AMAZON PRIME,05/12/2018,7.99
D1200G-RESIDENT SERVICES (GF),Education-Library Books,AMZN Mktp UK,07/10/2018,251.52
D1200G-RESIDENT SERVICES (GF),Building-Floors,ONLINECARPETS.COUK,11/10/2018,170.48
D1200G-RESIDENT SERVICES (GF),Travel/Subsistence,OYSTER AUTO-TOP UP,12/12/2018,40
D1200G-RESIDENT SERVICES (GF),Travel/Subsistence,OYSTER AUTO-TOP UP,23/12/2018,40
D1200G-RESIDENT SERVICES (GF),Travel/Subsistence,OYSTER ONLINE,20/12/2018,10
D1200G-RESIDENT SERVICES (GF),Sports Equipment,SPORTSDIRECT.COM,07/12/2018,44.99
D1200G-RESIDENT SERVICES (GF),Travel/Subsistence,OYSTER ONLINE,07/12/2018,30
D1200G-RESIDENT SERVICES (GF),Haulage,SIMPLY REMOVALS,27/12/2018,168
D1200G-RESIDENT SERVICES (GF),Travel/Subsistence,TRAINLINE,16/10/2018,-8.8
D1200G-RESIDENT SERVICES (GF),Mail Services-Postage,POST OFFICE COUNTER,31/10/2018,12.39
D1200G-RESIDENT SERVICES (GF),Education-Library Books,AMZN Mktp UK,31/10/2018,30.59
D1200G-RESIDENT SERVICES (GF),Education-Other,B & Q 1009,12/12/2018,35.79
D1200G-RESIDENT SERVICES (GF),Building-Timber,SELCO TRADING CTR,09/10/2018,70.29
D1200G-RESIDENT SERVICES (GF),Travel/Subsistence,OYSTER AUTO-TOP UP,05/12/2018,60
D1200G-RESIDENT SERVICES (GF),Travel/Subsistence,OYSTER AUTO-TOP UP,19/12/2018,60
D1200G-RESIDENT SERVICES (GF),Travel/Subsistence,OYSTER AUTO-TOP UP,02/12/2018,20
D1200G-RESIDENT SERVICES (GF),Travel/Subsistence,OYSTER AUTO-TOP UP,23/11/2018,100
D1200G-RESIDENT SERVICES (GF),Travel/Subsistence,OYSTER ONLINE,26/11/2018,95
D1200G-RESIDENT SERVICES (GF),Travel/Subsistence,TRAINLINE,19/11/2018,126.62
D1200G-RESIDENT SERVICES (GF),Taxi Fares,IVY CR2 TO ME7,13/11/2018,220
D1200G-RESIDENT SERVICES (GF),Travel/Subsistence,OYSTER AUTO-TOP UP,20/10/2018,20
D1200G-RESIDENT SERVICES (GF),Catering Food & Drink,ASDA GEORGE COM LEEDS,18/10/2018,29.5
D1200G-RESIDENT SERVICES (GF),Travel/Subsistence,TRAINLINE,18/10/2018,44.44
D1200G-RESIDENT SERVICES (GF),Travel/Subsistence,OYSTER AUTO-TOP UP,11/10/2018,20
D1200G-RESIDENT SERVICES (GF),Education-Library Books,AMZN MKTP UK,19/11/2018,32.07
D1200G-RESIDENT SERVICES (GF),Domestic Goods-Other,ARGOS LTD,09/12/2018,18
D1200G-RESIDENT SERVICES (GF),Catering Food & Drink,PRET A MANGER,05/12/2018,2.45
D1200G-RESIDENT SERVICES (GF),Travel/Subsistence,OYSTER AUTO-TOP UP,28/11/2018,20
D1200G-RESIDENT SERVICES (GF),Mail Services-Postage,THE POST OFFICE,22/11/2018,158
D1200G-RESIDENT SERVICES (GF),Domestic Goods-Other,ARGOS,03/12/2018,14
D1200G-RESIDENT SERVICES (GF),Facilities-Advertising,WH SMITH,12/12/2018,44.04
D1200G-RESIDENT SERVICES (GF),Travel/Subsistence,OYSTER AUTO-TOP UP,14/12/2018,20
D1200G-RESIDENT SERVICES (GF),Travel/Subsistence,OYSTER ONLINE,11/10/2018,-25
D1200G-RESIDENT SERVICES (GF),Travel/Subsistence,OYSTER ONLINE,13/11/2018,10
D1200G-RESIDENT SERVICES (GF),Education-Library Books,AMZN MKTP UK,30/10/2018,44.24
D1200G-RESIDENT SERVICES (GF),Catering Food & Drink,TESCO STORE 2143,08/11/2018,40
D1200G-RESIDENT SERVICES (GF),Travel/Subsistence,LUL TICKET MACHINE,01/11/2018,85
D1200G-RESIDENT SERVICES (GF),Taxi Fares,WWW.ADDISONLEE.COM,09/11/2018,450.98
D1200G-RESIDENT SERVICES (GF),Education-Other,A&S  HOMECARE LTD,06/11/2018,27.96
D1200G-RESIDENT SERVICES (GF),Education-Other,B & Q 1009,05/11/2018,67.05
D1200G-RESIDENT SERVICES (GF),Consultancy-Business,FORTRESS MASTER LOCKSMITH,28/12/2018,17.5
D1200G-RESIDENT SERVICES (GF),Books/Publications/Resources,WHICH,08/11/2018,10.75
D1200G-RESIDENT SERVICES (GF),Building-Timber,SCREWFIX BRIXTON,30/10/2018,188.98
D1200G-RESIDENT SERVICES (GF),Education-Library Books,AMZN Mktp UK,18/10/2018,11.8
D1200G-RESIDENT SERVICES (GF),Catering Food & Drink,AMZN Mktp UK,31/10/2018,39.98
D1200G-RESIDENT SERVICES (GF),Travel/Subsistence,OYSTER AUTO-TOP UP,22/12/2018,20
D1200G-RESIDENT SERVICES (GF),Travel/Subsistence,OYSTER AUTO-TOP UP,08/12/2018,40
D1200G-RESIDENT SERVICES (GF),Travel/Subsistence,OYSTER ONLINE,13/12/2018,-70
D1200G-RESIDENT SERVICES (GF),Facilities-Advertising,WH SMITH,11/10/2018,15.98
D1200G-RESIDENT SERVICES (GF),Domestic Goods-Other,CURRYS T/SALES,26/10/2018,479.99
D1200G-RESIDENT SERVICES (GF),Travel/Subsistence,TRAINLINE,03/10/2018,103.5
D1200G-RESIDENT SERVICES (GF),Travel/Subsistence,OYSTER AUTO-TOP UP,03/11/2018,40
D1200G-RESIDENT SERVICES (GF),Education-Library Books,AMZN Mktp UK,05/10/2018,319.2
D1200G-RESIDENT SERVICES (GF),Education-Library Books,AMZN MKTP UK,28/11/2018,43.45
D1200G-RESIDENT SERVICES (GF),Travel/Subsistence,AUTO TOP-UP ARREARS,27/11/2018,20
D1200G-RESIDENT SERVICES (GF),Travel/Subsistence,OYSTER ONLINE,26/10/2018,20
D1200G-RESIDENT SERVICES (GF),Travel/Subsistence,OYSTER AUTO-TOP UP,11/10/2018,40
D1200G-RESIDENT SERVICES (GF),Accommodation,PREMIER INN 44536865,01/10/2018,134
D1200G-RESIDENT SERVICES (GF),Facilities-Market Research,Amazon Prime,03/11/2018,7.99
D1200G-RESIDENT SERVICES (GF),Taxi Fares,MUTIBALE STOS,09/11/2018,240
D1250G-SUSTAINABLE GROWTH & OPPORTUNITY,Consultancy-Other,BD4JOBS.CO.UK,06/12/2018,600
D1250G-SUSTAINABLE GROWTH & OPPORTUNITY,Travel/Subsistence,LUL TICKET MACHINE,10/10/2018,60
D1250G-SUSTAINABLE GROWTH & OPPORTUNITY,Couriers,MOVECORP LIMITED,13/11/2018,74.99
D1250G-SUSTAINABLE GROWTH & OPPORTUNITY,Facilities-Advertising,DEZEENLIMIT,12/12/2018,360
D1250G-SUSTAINABLE GROWTH & OPPORTUNITY,Financial Services-Grants,PAYPAL,12/12/2018,500
D1250G-SUSTAINABLE GROWTH & OPPORTUNITY,Travel/Subsistence,LUL TICKET MACHINE,22/11/2018,50
D1250G-SUSTAINABLE GROWTH & OPPORTUNITY,Travel/Subsistence,LUL TICKET MACHINE,22/11/2018,50
D1250G-SUSTAINABLE GROWTH & OPPORTUNITY,Consultancy-Other,HAYMARKET MEDIA GROUP,12/12/2018,198
D1250G-SUSTAINABLE GROWTH & OPPORTUNITY,Facilities-Printing,EMAP PUBLISHING LTD E-000,12/12/2018,750
D1300G-FINANCE & INVESTMENT,IT Office Equipment,SPN VITECIMGDISTUK,09/10/2018,64.9
D1300G-FINANCE & INVESTMENT,Healthcare Services,WWW.CIPS.ORG,06/12/2018,187
D1300G-FINANCE & INVESTMENT,Domestic Goods-Other,WWW.ARGOS.CO.UK,31/10/2018,162.94
D1300G-FINANCE & INVESTMENT,IT Services,PANTHEON SYSTEMS INC,04/11/2018,27.83
D1300G-FINANCE & INVESTMENT,Financial Services,LAND REGISTRY,09/10/2018,3
D1300G-FINANCE & INVESTMENT,IT Services,GOOGLE,01/12/2018,13.2
D1300G-FINANCE & INVESTMENT,Financial Services,LAND REGISTRY,05/12/2018,3
D1300G-FINANCE & INVESTMENT,Travel/Subsistence,HOTELS.COM153925463995,05/12/2018,162.01
D1300G-FINANCE & INVESTMENT,Mail Services-Postage,POST OFFICE SELF SERVI,26/10/2018,14.84
D1300G-FINANCE & INVESTMENT,Travel/Subsistence,TRAINLINE,11/10/2018,210.01
D1300G-FINANCE & INVESTMENT,IT Office Equipment,AMZN MKTP UK,21/11/2018,36.26
D1300G-FINANCE & INVESTMENT,IT Services,AWS EMEA,03/10/2018,136.22
D1300G-FINANCE & INVESTMENT,Financial Services,LAND REGISTRY,04/12/2018,3
D1300G-FINANCE & INVESTMENT,IT Services,NATIONBUILDER,01/12/2018,177.12
D1300G-FINANCE & INVESTMENT,Mail Services-Postage,THE POST OFFICE,09/11/2018,1.77
D1300G-FINANCE & INVESTMENT,Travel/Subsistence,TRAINLINE,16/10/2018,131.6
D1300G-FINANCE & INVESTMENT,IT Services,PANTHEON SYSTEMS INC,04/10/2018,27.89
D1300G-FINANCE & INVESTMENT,IT Services,NATIONBUILDER,01/10/2018,173.3
D1300G-FINANCE & INVESTMENT,Consultancy-Other,PAYPAL,15/11/2018,780
D1300G-FINANCE & INVESTMENT,IT Services,GOOGLE,01/11/2018,13.2
D1300G-FINANCE & INVESTMENT,Facilities-Advertising,EXPRESS NEWS,08/11/2018,50
D1300G-FINANCE & INVESTMENT,Domestic Goods-Other,AMAZON.CO.UK,19/12/2018,15.3
D1300G-FINANCE & INVESTMENT,Facilities-Design & Photography,WWW.ISTOCK.COM,30/10/2018,750
D1300G-FINANCE & INVESTMENT,Financial Services,LAND REGISTRY,23/10/2018,6
D1300G-FINANCE & INVESTMENT,Facilities-Market Research,FACEBK Z7RK7JN5M2,19/11/2018,20
D1300G-FINANCE & INVESTMENT,Financial Services,LAND REGISTRY,26/11/2018,3
D1300G-FINANCE & INVESTMENT,Mail Services-Postage,POST OFFICE SELF SERVI,19/10/2018,20.16
D1300G-FINANCE & INVESTMENT,Travel/Subsistence,OYSTER AUTO-TOP UP,22/11/2018,20
D1300G-FINANCE & INVESTMENT,Travel/Subsistence,GWR WEBSALES,12/10/2018,266.6
D1300G-FINANCE & INVESTMENT,Education-Library Books,AMZN Mktp UK,30/10/2018,5.66
D1300G-FINANCE & INVESTMENT,Financial Services,LAND REGISTRY,25/10/2018,3
D1300G-FINANCE & INVESTMENT,Financial Services,LAND REGISTRY,21/12/2018,3
D1300G-FINANCE & INVESTMENT,Financial Services-Grants,JUSTGIVING.COM,13/12/2018,262.5
D1300G-FINANCE & INVESTMENT,Travel/Subsistence,OYSTER AUTO-TOP UP,21/12/2018,40
D1300G-FINANCE & INVESTMENT,IT Services,123 REG R/T,24/10/2018,23.99
D1300G-FINANCE & INVESTMENT,Mail Services-Postage,POST OFFICE SELF SERVI,12/12/2018,9.84
D1300G-FINANCE & INVESTMENT,Financial Services,LAND REGISTRY,12/12/2018,9
D1300G-FINANCE & INVESTMENT,Catering Food & Drink,MARKS&SPENCER PLC,19/11/2018,68.5
D1300G-FINANCE & INVESTMENT,Travel/Subsistence,NEW SOUTHERN RAILW,18/10/2018,50
D1300G-FINANCE & INVESTMENT,Financial Services,LAND REGISTRY,31/10/2018,6
D1300G-FINANCE & INVESTMENT,Travel/Subsistence,TRAINLINE,15/11/2018,44.24
D1300G-FINANCE & INVESTMENT,Mail Services-Postage,POST OFFICE SELF SERVI,12/10/2018,26.66
D1300G-FINANCE & INVESTMENT,Financial Services,LAND REGISTRY,28/12/2018,3
D1300G-FINANCE & INVESTMENT,Financial Services,LAND REGISTRY,23/11/2018,3
D1300G-FINANCE & INVESTMENT,Financial Services,LAND REGISTRY,11/10/2018,9
D1300G-FINANCE & INVESTMENT,Education-Library Books,AMZN Mktp UK,31/10/2018,49.52
D1300G-FINANCE & INVESTMENT,Financial Services,UKBA7371993044,19/11/2018,3199
D1300G-FINANCE & INVESTMENT,Facilities-Market Research,Amazon Prime,07/11/2018,7.99
D1300G-FINANCE & INVESTMENT,Financial Services,LAND REGISTRY,13/11/2018,6
D1300G-FINANCE & INVESTMENT,Financial Services,LAND REGISTRY,29/11/2018,9
D1300G-FINANCE & INVESTMENT,IT Services,NATIONBUILDER,03/12/2018,96.47
D1300G-FINANCE & INVESTMENT,Financial Services,LAND REGISTRY,06/12/2018,3
D1300G-FINANCE & INVESTMENT,Travel/Subsistence,OYSTER ONLINE,08/10/2018,20
D1300G-FINANCE & INVESTMENT,Financial Services,UKBA6396497987,17/12/2018,3199
D1300G-FINANCE & INVESTMENT,Financial Services,LAND REGISTRY,22/11/2018,9
D1300G-FINANCE & INVESTMENT,IT Office Equipment,WWW.GUITARGUITAR.CO.UK,08/10/2018,161.95
D1300G-FINANCE & INVESTMENT,Consultancy-Other,PAYPAL,11/10/2018,2340
D1300G-FINANCE & INVESTMENT,Mail Services-Postage,POST OFFICE SELF SERVI,03/10/2018,17.62
D1300G-FINANCE & INVESTMENT,Consultancy-Business,AWS EMEA,03/11/2018,140.45
D1300G-FINANCE & INVESTMENT,IT Software,ADOBE  CREATIVE CLOUD,20/12/2018,141.6
D1300G-FINANCE & INVESTMENT,IT Office Equipment,Amazon.co.uk,07/11/2018,4.2
D1300G-FINANCE & INVESTMENT,Travel/Subsistence,OYSTER ONLINE,15/10/2018,-20
D1300G-FINANCE & INVESTMENT,IT Software,ADOBE  CREATIVE CLOUD,20/11/2018,141.6
D1300G-FINANCE & INVESTMENT,Mail Services-Postage,POST OFFICE SELF SERVI,02/11/2018,19.15
D1300G-FINANCE & INVESTMENT,IT Office Equipment,AMAZON.CO.UK AMAZON.CO.UK,15/10/2018,23.24
D1300G-FINANCE & INVESTMENT,Domestic Goods-Other,AMAZON.CO.UK,18/12/2018,16.61
D1300G-FINANCE & INVESTMENT,IT Software,ADOBE  CREATIVE CLOUD,20/10/2018,141.6
D1300G-FINANCE & INVESTMENT,Mail Services-Postage,POST OFFICE SELF SERVI,16/11/2018,15.33
D1300G-FINANCE & INVESTMENT,Financial Services,LAND REGISTRY,21/11/2018,3
D1300G-FINANCE & INVESTMENT,Domestic Goods-Other,AMAZON.CO.UK,21/12/2018,7.83
D1300G-FINANCE & INVESTMENT,Financial Services,LAND REGISTRY,02/10/2018,3
D1300G-FINANCE & INVESTMENT,IT Office Equipment,Amazon.co.uk,14/11/2018,10.2
D1300G-FINANCE & INVESTMENT,IT Services,123 REG R/T,29/12/2018,23.99
D1300G-FINANCE & INVESTMENT,Travel/Subsistence,TFL ROAD CHARGE,06/11/2018,11.5
D1300G-FINANCE & INVESTMENT,Travel/Subsistence,OYSTER AUTO-TOP UP,12/10/2018,40
D1300G-FINANCE & INVESTMENT,Travel/Subsistence,AUTO TOP-UP ARREARS,08/10/2018,40
D1300G-FINANCE & INVESTMENT,IT Services,123 REG R/T,24/11/2018,23.99
D1300G-FINANCE & INVESTMENT,IT Office Equipment,AMZ*CVP London,05/11/2018,16.99
D1300G-FINANCE & INVESTMENT,Mail Services-Postage,THE POST OFFICE,20/12/2018,3.98
D1300G-FINANCE & INVESTMENT,Travel/Subsistence,TFL AUTOSETTLEMENT,08/10/2018,20
D1300G-FINANCE & INVESTMENT,Travel/Subsistence,OYSTER AUTO-TOP UP,15/12/2018,40
D1300G-FINANCE & INVESTMENT,Financial Services,LAND REGISTRY,15/10/2018,9
D1300G-FINANCE & INVESTMENT,Financial Services,LONDON BRGH OF LAMBETH,03/10/2018,90
D1300G-FINANCE & INVESTMENT,IT Office Equipment,AMZN Mktp UK,16/10/2018,41.98
D1300G-FINANCE & INVESTMENT,Travel/Subsistence,LUL TICKET MACHINE,04/12/2018,50
D1300G-FINANCE & INVESTMENT,IT Services,NATIONBUILDER,03/10/2018,70.9
D1300G-FINANCE & INVESTMENT,Travel/Subsistence,TRAINLINE,18/12/2018,111.19
D1300G-FINANCE & INVESTMENT,IT Services,NATIONBUILDER,03/11/2018,94.61
D1300G-FINANCE & INVESTMENT,Travel/Subsistence,OYSTER AUTO-TOP UP,24/11/2018,20
D1300G-FINANCE & INVESTMENT,Financial Services,LAND REGISTRY,19/11/2018,3
D1300G-FINANCE & INVESTMENT,Travel/Subsistence,OYSTER AUTO-TOP UP,10/11/2018,40
D1300G-FINANCE & INVESTMENT,Mail Services-Postage,POST OFFICE SELF SERVI,20/12/2018,14.35
D1300G-FINANCE & INVESTMENT,Financial Services,LAND REGISTRY,29/10/2018,9
D1300G-FINANCE & INVESTMENT,IT Services,AWS EMEA,03/12/2018,137.61
D1300G-FINANCE & INVESTMENT,Travel/Subsistence,LUL TICKET MACHINE,09/10/2018,50
D1300G-FINANCE & INVESTMENT,Domestic Goods-Other,AMAZON.CO.UK,30/11/2018,26.48
D1300G-FINANCE & INVESTMENT,IT Services,PANTHEON SYSTEMS INC,04/12/2018,28.47
D1300G-FINANCE & INVESTMENT,Financial Services,LAND REGISTRY,28/11/2018,3
D1300G-FINANCE & INVESTMENT,Consultancy-Business,WWW.THINKDIFFERENTEVEN,06/11/2018,300
D1300G-FINANCE & INVESTMENT,Travel/Subsistence,OYSTER ONLINE,08/10/2018,20
D1300G-FINANCE & INVESTMENT,IT Services,NATIONBUILDER,01/11/2018,176.7
D1300G-FINANCE & INVESTMENT,Healthcare Services,WWW.CIPS.ORG,04/10/2018,134
D1300G-FINANCE & INVESTMENT,IT Office Equipment,AMZ*IntaAudio Ltd,14/11/2018,24.98
D1300G-FINANCE & INVESTMENT,IT Office Equipment,AMZN Mktp UK,08/10/2018,138.52
D1300G-FINANCE & INVESTMENT,Travel/Subsistence,VIRGIN TRAINS,08/11/2018,38
D1300G-FINANCE & INVESTMENT,IT Office Equipment,Amazon.co.uk,06/11/2018,29.2
D1300G-FINANCE & INVESTMENT,IT Office Equipment,SHOULDERPOD S.L.,08/10/2018,76.89
D1300G-FINANCE & INVESTMENT,Mail Services-Postage,POST OFFICE SELF SERVI,23/11/2018,10.29
D1350G-CHIEF EXCECUTIVE DIRECTORATE,Education-Library Books,AMZN MKTP UK,27/12/2018,19.99
D1350G-CHIEF EXCECUTIVE DIRECTORATE,Catering Food & Drink,TESCO STORES-2143,10/12/2018,3
D1350G-CHIEF EXCECUTIVE DIRECTORATE,Stationery,AMZN Mktp UK,14/12/2018,29.99
D1350G-CHIEF EXCECUTIVE DIRECTORATE,Domestic Goods-Other,WWW.TROPHIESANDMEDALS.,20/12/2018,229.85
D1350G-CHIEF EXCECUTIVE DIRECTORATE,Catering Food & Drink,TESCO STORE 2143,03/12/2018,4
D1350G-CHIEF EXCECUTIVE DIRECTORATE,Education-Library Books,Amazon.co.uk,21/12/2018,49.99
D1350G-CHIEF EXCECUTIVE DIRECTORATE,Consultancy-Other,WWW.THEHUBEVENTS.COM,13/11/2018,598.8
D1350G-CHIEF EXCECUTIVE DIRECTORATE,Catering Food & Drink,JS ONLINE GROCERY,04/12/2018,192.83
D1350G-CHIEF EXCECUTIVE DIRECTORATE,Catering Food & Drink,TESCO STORE 2143,28/11/2018,144.5
D1350G-CHIEF EXCECUTIVE DIRECTORATE,Mail Services-Postage,THE POST OFFICE,10/12/2018,92.8
D1350G-CHIEF EXCECUTIVE DIRECTORATE,Travel/Subsistence,VIRGIN TRAINS,27/12/2018,82
D1350G-CHIEF EXCECUTIVE DIRECTORATE,Catering Food & Drink,TESCO STORES-2143,30/11/2018,24.2
D1350G-CHIEF EXCECUTIVE DIRECTORATE,Travel/Subsistence,EXPEDIA 7383343078060,01/10/2018,135.15
D1350G-CHIEF EXCECUTIVE DIRECTORATE,Domestic Goods-Other,AMAZON.CO.UK,07/11/2018,26.94
D1350G-CHIEF EXCECUTIVE DIRECTORATE,Arts & Leisure Services,SMC COACH HIRE LTD,19/10/2018,750
D1350G-CHIEF EXCECUTIVE DIRECTORATE,Stationery,AMZN Mktp UK,16/12/2018,14.48
D1400G-CHILDREN'S SERVICES,Catering Food & Drink,ICELAND,05/12/2018,9.5
D1400G-CHILDREN'S SERVICES,Travel/Subsistence,OYSTER AUTO-TOP UP,10/12/2018,20
D1400G-CHILDREN'S SERVICES,Catering Food & Drink,TESCO STORE 2143,30/10/2018,32.16
D1400G-CHILDREN'S SERVICES,Catering Food & Drink,MARKS&SPENCER PLC SACA,01/10/2018,5.65
D1400G-CHILDREN'S SERVICES,Professional & Advisory Services,PAYPAL,20/11/2018,13
D1400G-CHILDREN'S SERVICES,Travel/Subsistence,OYSTER ONLINE,21/11/2018,-30
D1400G-CHILDREN'S SERVICES,Taxi Fares,CIVIC TO SW16,18/12/2018,10
D1400G-CHILDREN'S SERVICES,Travel/Subsistence,OYSTER ONLINE,16/10/2018,30
D1400G-CHILDREN'S SERVICES,Travel/Subsistence,OYSTER AUTO-TOP UP,29/10/2018,20
D1400G-CHILDREN'S SERVICES,Travel/Subsistence,OYSTER AUTO-TOP UP,01/11/2018,60
D1400G-CHILDREN'S SERVICES,Travel/Subsistence,OYSTER AUTO-TOP UP,27/10/2018,20
D1400G-CHILDREN'S SERVICES,Domestic Goods-Other,WWW.ARGOS.CO.UK,02/10/2018,21.95
D1400G-CHILDREN'S SERVICES,Travel/Subsistence,OYSTER AUTO-TOP UP,23/11/2018,40
D1400G-CHILDREN'S SERVICES,Travel/Subsistence,OYSTER ONLINE,29/10/2018,30
D1400G-CHILDREN'S SERVICES,Building-Tools,HALLMARK CATERING AND E,22/11/2018,-195.36
D1400G-CHILDREN'S SERVICES,Travel/Subsistence,OYSTER AUTO-TOP UP,30/11/2018,20
D1400G-CHILDREN'S SERVICES,Travel/Subsistence,OYSTER AUTO-TOP UP,13/12/2018,40
D1400G-CHILDREN'S SERVICES,Facilities-Printing,THE FAMILY PLANNING AS,25/10/2018,85.94
D1400G-CHILDREN'S SERVICES,Taxi Fares,CIVIC TOSE5 TODA11 RET,29/11/2018,180
D1400G-CHILDREN'S SERVICES,Travel/Subsistence,OYSTER ONLINE,05/12/2018,12.2
D1400G-CHILDREN'S SERVICES,Travel/Subsistence,OYSTER AUTO-TOP UP,28/11/2018,40
D1400G-CHILDREN'S SERVICES,Travel/Subsistence,OYSTER AUTO-TOP UP,17/11/2018,40
D1400G-CHILDREN'S SERVICES,Catering Food & Drink,DOMINO,24/11/2018,140
D1400G-CHILDREN'S SERVICES,Arts & Leisure Services,RUSSELL UP EVENTS LIMITED,21/11/2018,144
D1400G-CHILDREN'S SERVICES,Travel/Subsistence,OYSTER AUTO-TOP UP,15/11/2018,20
D1400G-CHILDREN'S SERVICES,Travel/Subsistence,OYSTER AUTO-TOP UP,18/10/2018,60
D1400G-CHILDREN'S SERVICES,Catering Food & Drink,SAINSBURYS S/MKTS,07/11/2018,3.4
D1400G-CHILDREN'S SERVICES,Public Transport,OYSTER AUTO-TOP UP,07/10/2018,40
D1400G-CHILDREN'S SERVICES,Catering Food & Drink,POUND PLUS,24/11/2018,12.48
D1400G-CHILDREN'S SERVICES,Travel/Subsistence,OYSTER AUTO-TOP UP,14/11/2018,40
D1400G-CHILDREN'S SERVICES,Accommodation,HIGHSTREET VOCUHERS,14/12/2018,504.25
D1400G-CHILDREN'S SERVICES,Accommodation,HILTON HOTELS,27/11/2018,124.1
D1400G-CHILDREN'S SERVICES,Travel/Subsistence,OYSTER AUTO-TOP UP,25/10/2018,40
D1400G-CHILDREN'S SERVICES,Travel/Subsistence,OYSTER AUTO-TOP UP,25/11/2018,20
D1400G-CHILDREN'S SERVICES,Stationery,AMAZON.CO.UK,13/11/2018,40.75
D1400G-CHILDREN'S SERVICES,Travel/Subsistence,OYSTER AUTO-TOP UP,08/11/2018,20.00
D1400G-CHILDREN'S SERVICES,Professional & Advisory Services,PAYPAL,13/11/2018,650
D1400G-CHILDREN'S SERVICES,Travel/Subsistence,OYSTER AUTO-TOP UP,22/11/2018,20
D1400G-CHILDREN'S SERVICES,Accommodation,JURYS INN MANCHESTER,10/11/2018,375
D1400G-CHILDREN'S SERVICES,Domestic Goods-Other,WWW.ARGOS.CO.UK,13/11/2018,133.94
D1400G-CHILDREN'S SERVICES,Building-Tools,HALLMARK CATERING AND E,21/11/2018,195.36
D1400G-CHILDREN'S SERVICES,Travel/Subsistence,OYSTER AUTO-TOP UP,18/11/2018,20
D1400G-CHILDREN'S SERVICES,Travel/Subsistence,OYSTER ONLINE,14/11/2018,30
D1400G-CHILDREN'S SERVICES,Catering Food & Drink,DOMINOS PIZZA UK & IRELAN,20/11/2018,20.24
D1400G-CHILDREN'S SERVICES,Catering Food & Drink,JAMAICA SPICE BAKERY L,07/11/2018,12.8
D1400G-CHILDREN'S SERVICES,Travel/Subsistence,OYSTER AUTO-TOP UP,15/11/2018,40
D1400G-CHILDREN'S SERVICES,Travel/Subsistence,AUTO TOP-UP ARREARS,16/10/2018,20
D1400G-CHILDREN'S SERVICES,Travel/Subsistence,OYSTER AUTO-TOP UP,02/12/2018,20
D1400G-CHILDREN'S SERVICES,Travel/Subsistence,OYSTER AUTO-TOP UP,15/10/2018,20
D1400G-CHILDREN'S SERVICES,Catering Food & Drink,TESCO STORE 2143,24/10/2018,112.57
D1400G-CHILDREN'S SERVICES,Domestic Goods-Other,POUNDLAND LTD 1203,24/11/2018,3
D1400G-CHILDREN'S SERVICES,Catering Food & Drink,TESCO STORES-2143,22/11/2018,3.6
D1400G-CHILDREN'S SERVICES,Catering Food & Drink,JAMAICA SPICE BAKERY L,05/12/2018,16
D1400G-CHILDREN'S SERVICES,Catering Food & Drink,SAINSBURYS S/MKTS,24/11/2018,1.7
D1400G-CHILDREN'S SERVICES,Catering Food & Drink,ASDA  STORES LTD TOTTE,18/10/2018,34.8
D1400G-CHILDREN'S SERVICES,Travel/Subsistence,OYSTER AUTO-TOP UP,18/11/2018,40
D1400G-CHILDREN'S SERVICES,Travel/Subsistence,BRIXTONHILL EXPRESS,18/10/2018,90
D1400G-CHILDREN'S SERVICES,Travel/Subsistence,OYSTER ONLINE,04/12/2018,60
D1400G-CHILDREN'S SERVICES,Travel/Subsistence,OYSTER AUTO-TOP UP,09/12/2018,20
D1400G-CHILDREN'S SERVICES,Catering Food & Drink,MARKS&SPENCER PLC SACA,03/10/2018,21.5
D1400G-CHILDREN'S SERVICES,Catering Food & Drink,TESCO STORE 2143,09/10/2018,7.96
D1400G-CHILDREN'S SERVICES,Building-Others,EXCHANGE SUPPLIES,25/10/2018,131
D1400G-CHILDREN'S SERVICES,Catering Food & Drink,ICELAND,03/10/2018,11
D1400G-CHILDREN'S SERVICES,Travel/Subsistence,BRIXTONHILL EXPRESS,05/12/2018,30
D1400G-CHILDREN'S SERVICES,Travel/Subsistence,OYSTER AUTO-TOP UP,09/12/2018,20
D1400G-CHILDREN'S SERVICES,Travel/Subsistence,OYSTER AUTO-TOP UP,11/11/2018,20
D1400G-CHILDREN'S SERVICES,Travel/Subsistence,OYSTER AUTO-TOP UP,01/12/2018,40
D1400G-CHILDREN'S SERVICES,Catering Food & Drink,TESCO STORE 2143,19/12/2018,100
D1400G-CHILDREN'S SERVICES,Catering Food & Drink,JAMAICA SPICE BAKERY L,01/10/2018,3.2
D1400G-CHILDREN'S SERVICES,Building-Tools,CASABLANCA HIRE,21/11/2018,228
D1400G-CHILDREN'S SERVICES,Travel/Subsistence,OYSTER ONLINE,03/12/2018,30
D1400G-CHILDREN'S SERVICES,Travel/Subsistence,OYSTER AUTO-TOP UP,30/12/2018,20
D1400G-CHILDREN'S SERVICES,Public Transport,OYSTER AUTO-TOP UP,03/10/2018,20
D1400G-CHILDREN'S SERVICES,Travel/Subsistence,OYSTER ONLINE,23/10/2018,30
D1400G-CHILDREN'S SERVICES,Travel/Subsistence,OYSTER AUTO-TOP UP,15/12/2018,20
D1400G-CHILDREN'S SERVICES,Arts & Leisure Services,PAYPAL,22/11/2018,122.03
D1400G-CHILDREN'S SERVICES,Catering Food & Drink,JAMAICA SPICE BAKERY L,03/10/2018,9.6
D1400G-CHILDREN'S SERVICES,Catering Food & Drink,MARKS&SPENCER PLC SACA,24/11/2018,75.1
D1400G-CHILDREN'S SERVICES,Catering Food & Drink,MARKS&SPENCER PLC SACA,05/12/2018,15.5
D1400G-CHILDREN'S SERVICES,Travel/Subsistence,OYSTER AUTO-TOP UP,24/11/2018,20
D1400G-CHILDREN'S SERVICES,Catering Food & Drink,MARKS&SPENCER PLC SACA,07/11/2018,25.3
D1400G-CHILDREN'S SERVICES,Travel/Subsistence,OYSTER ONLINE,05/11/2018,30
D1400G-CHILDREN'S SERVICES,Travel/Subsistence,OYSTER AUTO-TOP UP,29/11/2018,20
D1400G-CHILDREN'S SERVICES,Travel/Subsistence,OYSTER AUTO-TOP UP,19/10/2018,20
D1400G-CHILDREN'S SERVICES,Travel/Subsistence,OYSTER AUTO-TOP UP,08/12/2018,20
D1400G-CHILDREN'S SERVICES,Professional & Advisory Services,PAYPAL,14/11/2018,300.6
D1400G-CHILDREN'S SERVICES,Organised Activities,WWW.DRINKAWARE.CO.UK,25/10/2018,4.4
D1400G-CHILDREN'S SERVICES,Travel/Subsistence,OYSTER AUTO-TOP UP,14/12/2018,40
D1400G-CHILDREN'S SERVICES,Furniture-Other,AMZN MKTP UK,17/11/2018,30.44
D1400G-CHILDREN'S SERVICES,Travel/Subsistence,OYSTER AUTO-TOP UP,15/12/2018,80
D1400G-CHILDREN'S SERVICES,Travel/Subsistence,BRIXTONHILL EXPRESS,06/11/2018,120
D1400G-CHILDREN'S SERVICES,Catering Food & Drink,SAINSBURYS S/MKTS,29/11/2018,7.75
D1400G-CHILDREN'S SERVICES,Travel/Subsistence,OYSTER ONLINE,19/11/2018,30
D1400G-CHILDREN'S SERVICES,Travel/Subsistence,OYSTER AUTO-TOP UP,09/11/2018,40
D1400G-CHILDREN'S SERVICES,Accommodation,HILTON HOTELS,28/11/2018,552.5
D1400G-CHILDREN'S SERVICES,Travel/Subsistence,OYSTER AUTO-TOP UP,11/11/2018,20
D1400G-CHILDREN'S SERVICES,Travel/Subsistence,OYSTER AUTO-TOP UP,12/10/2018,20
D1400G-CHILDREN'S SERVICES,Catering Food & Drink,TESCO STORE 2143,24/11/2018,125.4
D1400G-CHILDREN'S SERVICES,Travel/Subsistence,OYSTER AUTO-TOP UP,02/11/2018,20
D1400G-CHILDREN'S SERVICES,Domestic Goods-Other,PAPERCHASE PRODUCTS,23/11/2018,9.15
D1800G-RESIDENT SERVICES (HRA),IT Software-Customised,INTELLISOFTWARE LTD,19/10/2018,52.8
D1800G-RESIDENT SERVICES (HRA),Travel/Subsistence,LUL TICKET MACHINE,26/11/2018,20
D1800G-RESIDENT SERVICES (HRA),Building-Timber,BREWERS,22/11/2018,47.39
D1800G-RESIDENT SERVICES (HRA),Travel/Subsistence,TSGN,08/11/2018,25
D1800G-RESIDENT SERVICES (HRA),Financial Services-Insurance,MARKEL INTERNATIONAL LTD,01/11/2018,116.48
D1800G-RESIDENT SERVICES (HRA),Building-Timber,B & Q 1009,16/11/2018,13.76
D1800G-RESIDENT SERVICES (HRA),Travel/Subsistence,LUL TICKET MACHINE,19/12/2018,70
D1800G-RESIDENT SERVICES (HRA),Catering Food & Drink,RAKS CORNER,12/12/2018,10.5
D1800G-RESIDENT SERVICES (HRA),Organised Activities,TRANSNATIONAL CORPORAT,23/10/2018,125
D1800G-RESIDENT SERVICES (HRA),Domestic Goods-Other,CADENT GAS,06/12/2018,40.38
D1800G-RESIDENT SERVICES (HRA),Works-Construction/Materials,LOCKSMITHS AT THE TOOL,21/11/2018,35.5
D1800G-RESIDENT SERVICES (HRA),Building-Timber,B & Q 1009,20/12/2018,12.34
D1800G-RESIDENT SERVICES (HRA),Travel/Subsistence,NEW SOUTHERN RAILW,14/11/2018,50
D1800G-RESIDENT SERVICES (HRA),Catering Food & Drink,TESCO STORES 5999,12/12/2018,173.77
D1800G-RESIDENT SERVICES (HRA),Mail Services-Postage,POST OFFICE COUNTER,19/10/2018,55.68
D1800G-RESIDENT SERVICES (HRA),Building-Timber,BLISSETTS BUILDERS SUPPLI,22/10/2018,246.04
D1800G-RESIDENT SERVICES (HRA),Travel/Subsistence,LUL TICKET MACHINE,14/12/2018,50
D1800G-RESIDENT SERVICES (HRA),Travel/Subsistence,TSGN,21/11/2018,50
D1800G-RESIDENT SERVICES (HRA),Facilities-Market Research,AMAZON PRIME,21/11/2018,7.99
D1800G-RESIDENT SERVICES (HRA),Travel/Subsistence,LUL TICKET MACHINE,11/10/2018,420
D1800G-RESIDENT SERVICES (HRA),IT Consumables,CARTRIDGEPEOPLE.COM,22/10/2018,19.98
D1800G-RESIDENT SERVICES (HRA),Travel/Subsistence,LUL TICKET MACHINE,03/12/2018,20
D1800G-RESIDENT SERVICES (HRA),Stationery,AMZN Mktp UK,07/10/2018,27.98
D1800G-RESIDENT SERVICES (HRA),Facilities-Market Research,Amazon Prime,21/12/2018,7.99
D1800G-RESIDENT SERVICES (HRA),Education-Library Books,AMZN Mktp UK,06/12/2018,24.75
D1800G-RESIDENT SERVICES (HRA),Stationery,AMZ*Zentesi,05/10/2018,-23.98
D1800G-RESIDENT SERVICES (HRA),Building-General,HOWARD BROS. (CAMBERWE,05/12/2018,199.38
D1800G-RESIDENT SERVICES (HRA),Travel/Subsistence,NEW SOUTHERN RAILW,19/10/2018,50
D1800G-RESIDENT SERVICES (HRA),Facilities-Printing,Amazon.co.uk,09/12/2018,24.8
D1800G-RESIDENT SERVICES (HRA),Education-Library Books,AMZN Mktp UK,23/10/2018,89.75
D1800G-RESIDENT SERVICES (HRA),Travel/Subsistence,LUL TICKET MACHINE,30/10/2018,50
D1800G-RESIDENT SERVICES (HRA),Catering Food & Drink,TESCO STORES 5999,27/10/2018,85.96
D1800G-RESIDENT SERVICES (HRA),Travel/Subsistence,LUL TICKET MACHINE,17/12/2018,60
D1800G-RESIDENT SERVICES (HRA),Works-Construction/Materials,LOCKSMITHS AT THE TOOL,14/11/2018,39
D1800G-RESIDENT SERVICES (HRA),Catering Food & Drink,SAN MARINO,03/12/2018,331
D1800G-RESIDENT SERVICES (HRA),Travel/Subsistence,NEW SOUTHERN RAILW,20/12/2018,50
D1800G-RESIDENT SERVICES (HRA),Travel/Subsistence,LUL TICKET MACHINE,10/12/2018,50
D1800G-RESIDENT SERVICES (HRA),Travel/Subsistence,LUL TICKET MACHINE,21/11/2018,40
D1800G-RESIDENT SERVICES (HRA),Building-Timber,BLISSETTS BUILDERS SUPPLI,07/12/2018,11.25
D1800G-RESIDENT SERVICES (HRA),IT Consumables,AMZN Mktp UK,05/10/2018,28.4
D1800G-RESIDENT SERVICES (HRA),Financial Services,LONDON BRGH OF LAMBETH,08/11/2018,30.00
D1800G-RESIDENT SERVICES (HRA),Mail Services-Postage,POST OFFICE COUNTER,12/11/2018,48.24
D1800G-RESIDENT SERVICES (HRA),Travel/Subsistence,LUL TICKET MACHINE,26/10/2018,10
D1800G-RESIDENT SERVICES (HRA),IT Consumables,argos,22/10/2018,83.94
D1800G-RESIDENT SERVICES (HRA),Building-Floors,CARPETRIGHT,07/12/2018,931.38
D1800G-RESIDENT SERVICES (HRA),Building-General,JD HARDWARE STORE,26/10/2018,39
D1800G-RESIDENT SERVICES (HRA),Building-Timber,B & Q 1009,14/11/2018,24.15
D1800G-RESIDENT SERVICES (HRA),Facilities-Market Research,Amazon Prime,21/10/2018,7.99
D1800G-RESIDENT SERVICES (HRA),Travel/Subsistence,LUL TICKET MACHINE,01/11/2018,10
D1800G-RESIDENT SERVICES (HRA),Domestic Goods-Other,AMZ*SKYWISH,07/12/2018,-24.75
D1800G-RESIDENT SERVICES (HRA),Travel/Subsistence,LUL TICKET MACHINE,27/11/2018,20
D1800G-RESIDENT SERVICES (HRA),Domestic Goods-Other,ARGOS LTD,23/11/2018,55
